{"text_format":"1","workbook":"xlsx","n_sheets":7,"sheets":["表紙","基本情報・事業者情報の作成","届出書の作成","eAppData","ETL","LIST","【自動入力】様式第20"],"not_rendered":{"charts":0,"images":0,"macros":1,"external_links":0,"defined_names":23,"comments":0,"pivot_tables":0},"unopened":[],"bounds":{"document_bytes":16777216,"sheet_cells":100000,"rows_first":2000,"rows_last":500,"rows_between":2000,"halvings":0,"cell_chars":16384,"cell_head_chars":4096},"cells_cut":0,"cells_raw":0,"read":"whole","date_system":"1900"}

{"sheet":"表紙","index":0,"n_rows":42,"n_cols":27,"rows_kept":42,"cut":false,"hidden":false,"merged":[[38,3,38,17],[41,3,41,7],[33,2,33,26],[20,3,20,26],[21,3,21,11],[23,3,23,26],[29,3,29,26],[32,3,32,26],[28,11,28,17],[24,11,24,26],[26,3,26,26],[1,1,1,26],[4,1,4,26],[15,3,15,10],[18,3,18,10],[10,2,10,17],[9,1,9,26]]}
[null,"Version","2.0.1",null,null,null,null,null,null,null,null,null,null,null,null,null,null,null,null,null,null,null,null,null,null,null,"様式改訂：2024/06/27"]
[null,"化兵法に基づく第一種、第二種指定物質の輸出入実績届出（様式第２０）の作成"]
[]
[null,null,"基本情報・事業者情報の作成シートでは、化兵法に基づく届出書の基本情報と事業者情報を入力してください。"]
[null,"濃度しきい値を超えた指定物質を少量でも輸出入した場合、様式第２０による実績届出が必要です。"]
[null,"濃度しきい値："]
[null,null,"・第一種指定物質の毒性物質は１％超"]
[null,null,"・第一種指定物質の原料物質は３０％超"]
[null,null,"・第二種指定物質は３０％超"]
[null,"第一種指定物質、第二種指定物質に該当する物質については以下の経済産業省ホームページ５（２）の「第一種指定物質及び第二種指定物質」を参照して下さい。"]
[null,null,"https://www.meti.go.jp/policy/chemical_management/cwc/todokede.html"]
[]
[null,"届出書の作成・提出手順"]
[]
[null,null,"①","「基本情報・事業者情報の作成」シートで届出する基本情報と事業者情報を入力して下さい。"]
[null,null,null,"基本情報・事業者情報の入力へ→　"]
[]
[null,null,"②","「届出書の作成」シートで届出する情報を入力して下さい。"]
[null,null,null,"届出書の情報の入力へ→　"]
[]
[null,null,"③","「【自動入力】様式第２０」シートで届出の内容を確認して下さい。修正が必要な場合は、①または②のシートに入力された情報を修正してください。"]
[null,null,null,"【自動入力】様式第２０へ→"]
[]
[null,null,"④","エクセルファイルを保存してください。なお、ファイルの名称はわかりやすいように変更していただいてかまいませんが、ファイル名先頭の３文字（「Y20」）は変更しないでください（\"20\"は届出様式番号２桁を示しており、当該文字列がないと電子申請が受理されません。）。また、e-Govでは一部の記号文字をファイル名に使うことができません（例：“-”、“_”等。詳細は以下のe-Gov電子申請ウェブサイトを参照ください）。"]
[null,null,null,null,"ファイル名に使用できる文字：",null,null,null,null,null,null,"https://shinsei.e-gov.go.jp/contents/help/notes/filename-letters.html"]
[]
[null,null,"⑥","保存された電子申請用エクセルファイルと任意の添付資料（内訳資料等）をe-Gov電子申請ウェブサイトから電子申請します。"]
[]
[null,null,null,null,"e-Gov電子申請ウェブサイト：",null,null,null,null,null,null,"https://shinsei.e-gov.go.jp/"]
[null,null,null,"※ご不明な点などございましたら、下記「参考情報」欄の経済産業省ウェブサイトをご参照下さい。"]
[]
[null,"注意事項"]
[]
[null,null,"・当該ファイルはマクロ機能を利用しておりますため、マクロ機能を有効に（「コンテンツの有効化」）していただけますようお願いいたします。\n・入力欄のコピー＆ペーストは行わないようにお願いいたします（セルの構造が壊れてしまいますため）。\n・上記①（「基本情報・事業者情報の作成」）及び②（「届出書の作成」）のシートにつきましては、一番右の列（Ｘ列）に自動入力チェック欄がございます。その欄に「未入力」と表示されている箇所がございましたら、同じ行の情報をご入力いただけますようお願いいたします。"]
[]
[null,"参考情報"]
[]
[null,null,"○経済産業省ウェブサイト（化学兵器禁止法　届出・申告関係及びお問合せ先）"]
[null,null,null,"https://www.meti.go.jp/policy/chemical_management/cwc/todokede.html"]
[]
[null,null,"○gビズID（e-Gov他様々な行政サービスにログインできるサービス）"]
[null,null,null,"https://gbiz-id.go.jp/top/"]

{"sheet":"基本情報・事業者情報の作成","index":1,"n_rows":113,"n_cols":24,"rows_kept":113,"cut":false,"hidden":false,"merged":[[108,1,112,5],[110,21,110,22],[111,21,111,22],[112,21,112,22],[108,6,108,20],[108,21,108,22],[46,21,46,22],[109,21,109,22],[69,3,76,10],[69,21,69,22],[70,21,70,22],[71,21,71,22],[72,21,72,22],[73,21,73,22],[74,21,74,22],[75,21,75,22],[76,21,76,22],[61,3,68,10],[61,21,61,22],[62,21,62,22],[63,21,63,22],[64,21,64,22],[65,21,65,22],[66,21,66,22],[67,21,67,22],[68,21,68,22],[47,21,47,22],[48,21,48,22],[49,21,49,22],[53,3,60,10],[53,21,53,22],[54,21,54,22],[55,21,55,22],[56,21,56,22],[57,21,57,22],[58,21,58,22],[59,21,59,22],[60,21,60,22],[26,2,26,21],[40,3,40,6],[40,8,40,9],[40,11,40,12],[43,3,43,6],[43,8,43,9],[43,11,43,12],[24,2,24,22],[1,1,1,23],[3,2,3,22],[6,3,6,6],[6,7,6,21],[7,7,7,21],[8,7,8,22],[9,3,9,6],[9,7,9,21],[10,7,10,22],[11,3,11,6],[11,7,11,21]]}
[null,null,null,null,null,null,null,null,null,null,null,null,null,null,null,null,null,null,null,null,null,null,null,"様式改訂：2024/06/27"]
[null,"化兵法に基づく届出書の基本情報・事業者情報"]
[]
[null,null,"基本情報・事業者情報の作成シートでは、化兵法に基づく届出書の基本情報と事業者情報を入力してください。"]
[]
[]
[null,null,null,"ピンク",null,null,null," の部分は、入力必須です。"]
[]
[]
[null,null,null,"ブルー",null,null,null," の部分は、設問項目に該当しない場合は、入力不要（空欄可）です。"]
[]
[null,null,null,"グレー",null,null,null," の部分は、入力不要です。"]
[]
[]
[]
[]
[]
[]
[]
[]
[]
[]
[null,"過去の化兵法届出で作成した基本情報・事業者情報を自動で転記することができます。"]
[]
[null,null,"①化兵法の届出エクセルファイルを指定してください。（「ファイル選択…」ボタン）\n②「取込」ボタンをクリックすると、「基本情報・事業所情報の作成」「届出・申告書の作成」シートに入力した内容が各シートに転記されます。\n※既に入力済の項目は上書きされますのでご注意ください。(念のため、このファイルのバックアップを取ってから実行することをお勧めします。）"]
[null,null,"転記元ファイル："]
[]
[]
[]
[]
[]
[]
[]
[null,null,"・当該ファイルはマクロ機能を利用しておりますため、マクロ機能を有効に（「コンテンツの有効化」）していただけますようお願いいたします。\n・入力欄のコピー＆ペーストは行わないようにお願いいたします（セルの構造が壊れてしまいますため）。\n・上記①（「基本情報・事業者情報の作成」）及び②（「届出書の作成」）のシートにつきましては、一番右の列（Ｘ列）に自動入力チェック欄がございます。その欄に「未入力」と表示されている箇所がございましたら、同じ行の情報をご入力いただけますようお願いいたします。"]
[]
[]
[]
[null,"基本情報を入力してください。"]
[]
[null,"１．届出日を西暦で入力してください。（例：2025年2月15日）",null,null,null,null,null,null,null,null,null,null,null,null,null,null,null,null,null,null,null,null,null,"自動入力チェック"]
[null,null,null,null,null,null,null,"年",null,null,"月",null,null,"日",null,null,null,null,null,null,null,null,null,{"$f":"IF(OR($D41=\"\",$I41=\"\",$L41=\"\"),\"未入力\",\"\")","v":"未入力"}]
[]
[null,"２．届出対象年を西暦４桁で入力してください。（例：2025年2月に届出される前年分の実績届出では、”2024年”が届出対象年となりますので、”2024”を入力します）",null,null,null,null,null,null,null,null,null,null,null,null,null,null,null,null,null,null,null,null,null,"自動入力チェック"]
[null,null,null,null,null,null,null,"年",null,null,null,null,null,null,null,null,null,null,null,null,null,null,null,{"$f":"IF($D44=\"\",\"未入力\",\"\")","v":"未入力"}]
[null,"３．届出者の情報を入力してください（届出者が法人代表でない場合には、届出を委任された届出者の情報（例：事業所長、工場長）を記入してください。）。"]
[null,null,null,null,null,null,null,null,null,null,null,null,null,null,null,null,null,null,null,null,null,"日本語",null,"自動入力チェック"]
[null,null,null,"氏名または名称",null,null,null,null,null,null,null,null,null,null,null,null,null,null,null,null,null,null,null,{"$f":"IF($V47=\"\",\"未入力\",\"\")","v":"未入力"}]
[null,null,null,"法人にあっては、\nその代表者の役職",null,null,null,null,null,null,null,null,null,null,null,null,null,null,null,null,null,null,null,""]
[null,null,null,"法人にあっては、\nその代表者の氏名",null,null,null,null,null,null,null,null,null,null,null,null,null,null,null,null,null,null,null,""]
[null,null,null,"住所",null,null,null,null,null,null,null,null,null,null,null,null,null,null,null,null,null,null,null,{"$f":"IF($V50=\"\",\"未入力\",\"\")","v":"未入力"}]
[]
[]
[null,"４．届出関係担当者の情報を入力してください。",null,null,null,null,null,null,null,null,null,null,null,null,null,null,null,null,null,null,null,"日本語",null,"自動入力チェック"]
[null,null,null,"担当者の情報①",null,null,null,null,null,null,null,"氏名",null,null,null,null,null,null,null,null,null,null,null,{"$f":"IF($V54=\"\",\"未入力\",\"\")","v":"未入力"}]
[null,null,null,null,null,null,null,null,null,null,null,"郵便番号",null,null,null,null,null,null,null,null,null,null,null,""]
[null,null,null,null,null,null,null,null,null,null,null,"住所",null,null,null,null,null,null,null,null,null,null,null,""]
[null,null,null,null,null,null,null,null,null,null,null,"部署名",null,null,null,null,null,null,null,null,null,null,null,""]
[null,null,null,null,null,null,null,null,null,null,null,"役職",null,null,null,null,null,null,null,null,null,null,null,""]
[null,null,null,null,null,null,null,null,null,null,null,"電話番号",null,null,null,null,null,null,null,null,null,null,null,{"$f":"IF($V59=\"\",\"未入力\",\"\")","v":"未入力"}]
[null,null,null,null,null,null,null,null,null,null,null,"FAX番号",null,null,null,null,null,null,null,null,null,null,null,""]
[null,null,null,null,null,null,null,null,null,null,null,"メールアドレス",null,null,null,null,null,null,null,null,null,null,null,{"$f":"IF($V61=\"\",\"未入力\",\"\")","v":"未入力"}]
[null,null,null,"担当者の情報②",null,null,null,null,null,null,null,"氏名",null,null,null,null,null,null,null,null,null,null,null,""]
[null,null,null,null,null,null,null,null,null,null,null,"郵便番号",null,null,null,null,null,null,null,null,null,null,null,""]
[null,null,null,null,null,null,null,null,null,null,null,"住所",null,null,null,null,null,null,null,null,null,null,null,""]
[null,null,null,null,null,null,null,null,null,null,null,"部署名",null,null,null,null,null,null,null,null,null,null,null,""]
[null,null,null,null,null,null,null,null,null,null,null,"役職",null,null,null,null,null,null,null,null,null,null,null,""]
[null,null,null,null,null,null,null,null,null,null,null,"電話番号",null,null,null,null,null,null,null,null,null,null,null,""]
[null,null,null,null,null,null,null,null,null,null,null,"FAX番号",null,null,null,null,null,null,null,null,null,null,null,""]
[null,null,null,null,null,null,null,null,null,null,null,"メールアドレス",null,null,null,null,null,null,null,null,null,null,null,""]
[null,null,null,"担当者の情報③",null,null,null,null,null,null,null,"氏名",null,null,null,null,null,null,null,null,null,null,null,""]
[null,null,null,null,null,null,null,null,null,null,null,"郵便番号",null,null,null,null,null,null,null,null,null,null,null,""]
[null,null,null,null,null,null,null,null,null,null,null,"住所",null,null,null,null,null,null,null,null,null,null,null,""]
[null,null,null,null,null,null,null,null,null,null,null,"部署名",null,null,null,null,null,null,null,null,null,null,null,""]
[null,null,null,null,null,null,null,null,null,null,null,"役職",null,null,null,null,null,null,null,null,null,null,null,""]
[null,null,null,null,null,null,null,null,null,null,null,"電話番号",null,null,null,null,null,null,null,null,null,null,null,""]
[null,null,null,null,null,null,null,null,null,null,null,"FAX番号",null,null,null,null,null,null,null,null,null,null,null,""]
[null,null,null,null,null,null,null,null,null,null,null,"メールアドレス",null,null,null,null,null,null,null,null,null,null,null,""]
[]
[]
[]
[]
[]
[]
[]
[]
[]
[]
[]
[]
[]
[]
[]
[]
[]
[]
[]
[]
[]
[]
[]
[]
[]
[]
[]
[]
[null,"届出を行う事業者の情報を入力して下さい。"]
[]
[null,null,null,null,null,null,null,null,null,null,null,null,null,null,null,null,null,null,null,null,null,"日本語",null,"自動入力チェック"]
[null,"事業者の情報",null,null,null,null,"事業者の名称",null,null,null,null,null,null,null,null,null,null,null,null,null,null,null,null,{"$f":"IF($V109=\"\",\"未入力\",\"\")","v":"未入力"}]
[null,null,null,null,null,null,"事業者コード（Yから始まるコード）",null,null,null,null,null,null,null,null,null,null,null,null,null,null,null,null,{"$f":"IF($V110=\"\",\"未入力\",\"\")","v":"未入力"}]
[null,null,null,null,null,null,"所在地",null,null,null,null,"都道府県",null,null,null,null,null,null,null,null,null,null,null,{"$f":"IF($V111=\"\",\"未入力\",\"\")","v":"未入力"}]
[null,null,null,null,null,null,null,null,null,null,null,"市／区／郡",null,null,null,null,null,null,null,null,null,null,null,{"$f":"IF($V112=\"\",\"未入力\",\"\")","v":"未入力"}]
[null,null,null,null,null,null,null,null,null,null,null,"町村および番地",null,null,null,null,null,null,null,null,null,null,null,{"$f":"IF($V113=\"\",\"未入力\",\"\")","v":"未入力"}]

{"sheet":"届出書の作成","index":2,"n_rows":142,"n_cols":24,"rows_kept":142,"cut":false,"hidden":false,"merged":[[126,1,141,2],[127,8,127,20],[128,8,128,20],[129,8,129,20],[130,8,130,20],[131,3,131,20],[132,3,132,20],[133,3,133,20],[134,3,134,20],[135,3,141,13],[135,14,135,20],[136,14,136,20],[137,14,137,20],[138,14,138,20],[139,14,139,20],[140,14,140,20],[141,14,141,20],[109,1,124,2],[110,8,110,20],[111,8,111,20],[112,8,112,20],[113,8,113,20],[114,3,114,20],[115,3,115,20],[116,3,116,20],[117,3,117,20],[118,3,124,13],[118,14,118,20],[119,14,119,20],[120,14,120,20],[121,14,121,20],[122,14,122,20],[123,14,123,20],[124,14,124,20],[89,14,89,20],[90,14,90,20],[92,1,107,2],[93,8,93,20],[94,8,94,20],[95,8,95,20],[96,8,96,20],[97,3,97,20],[98,3,98,20],[99,3,99,20],[100,3,100,20],[101,3,107,13],[101,14,101,20],[102,14,102,20],[103,14,103,20],[104,14,104,20],[105,14,105,20],[106,14,106,20],[107,14,107,20],[73,14,73,20],[75,1,90,2],[76,8,76,20],[77,8,77,20],[78,8,78,20],[79,8,79,20],[80,3,80,20],[81,3,81,20],[82,3,82,20],[83,3,83,20],[84,3,90,13],[84,14,84,20],[85,14,85,20],[86,14,86,20],[87,14,87,20],[88,14,88,20],[58,1,73,2],[59,8,59,20],[60,8,60,20],[61,8,61,20],[62,8,62,20],[63,3,63,20],[64,3,64,20],[65,3,65,20],[47,3,47,20],[48,3,48,20],[49,3,49,20],[50,3,56,13],[50,14,50,20],[51,14,51,20],[52,14,52,20],[53,14,53,20],[54,14,54,20],[55,14,55,20],[56,14,56,20],[17,21,17,22],[1,1,1,23],[3,2,3,22],[6,3,6,6],[6,7,6,21],[7,7,7,21],[8,7,8,22],[9,3,9,6],[9,7,9,21],[10,7,10,22],[11,3,11,6],[11,7,11,21],[32,3,32,20],[22,3,22,5],[24,1,39,2],[25,8,25,20],[26,8,26,20],[27,8,27,20],[28,8,28,20],[29,3,29,20],[30,3,30,20],[31,3,31,20],[148,2,148,23],[149,2,149,23],[33,14,33,20],[35,14,35,20],[37,14,37,20],[39,14,39,20],[33,3,39,13],[38,14,38,20],[34,14,34,20],[36,14,36,20],[41,1,56,2],[42,8,42,20],[43,8,43,20],[44,8,44,20],[45,8,45,20],[46,3,46,20],[66,3,66,20],[67,3,73,13],[67,14,67,20],[68,14,68,20],[69,14,69,20],[70,14,70,20],[71,14,71,20],[72,14,72,20]]}
[null,null,null,null,null,null,null,null,null,null,null,null,null,null,null,null,null,null,null,null,null,null,null,"様式改訂：2024/06/27"]
[null,"化兵法に基づく第一種、第二種指定物質の輸出入実績届出（様式第２０）の作成"]
[]
[null,null,"基本情報・事業者情報の作成シートでは、化兵法に基づく届出書の基本情報と事業者情報を入力してください。"]
[]
[]
[null,null,null,"ピンク",null,null,null," の部分は、入力必須です。"]
[]
[]
[null,null,null,"ブルー",null,null,null," の部分は、設問項目に該当しない場合は、入力不要（空欄可）です。"]
[]
[null,null,null,"グレー",null,null,null," の部分は、入力不要です。"]
[]
[]
[null,"昨年の届出内容から変更がある場合には、変更内容を入力して下さい。（入力誤り／真に変更された点のどちらかを判別するため）"]
[null,"また、届出内容について、特記すべき事項がもしあれば入力して下さい。"]
[]
[null,null,null,"前回の届出内容からの変更点および届出内容についての特記事項",null,null,null,null,null,null,null,null,null,null,null,null,null,null,null,null,null,null,null,""]
[]
[null,"様式第20の項目を入力してください。(最大7枚）"]
[null,"様式第20の作成のための入力ブロック"]
[]
[null,"様式第２０の数：",null,1,null,null,null,"←初めに選択してください。"]
[null,null,null,null,null,null,null,null,null,null,null,null,null,null,null,null,null,null,null,null,null,"日本語",null,"自動入力チェック"]
[null,"輸出（輸入）をした物質の情報（１）\n\n",null,"輸出または輸入の別",null,null,null,null,null,null,null,null,null,null,null,null,null,null,null,null,null,null,null,{"$f":"IF($V25=\"\",\"未入力\",\"\")","v":"未入力"}]
[null,null,null,"物質の情報\n\n",null,null,null,null,"CAS番号",null,null,null,null,null,null,null,null,null,null,null,null,null,null,{"$f":"IF($V26=\"\",\"未入力\",\"\")","v":"未入力"}]
[null,null,null,null,null,null,null,null,"物質名称（日本語名）",null,null,null,null,null,null,null,null,null,null,null,null,null,null,{"$f":"IF(AND($V26<>STRING_NOCAS, $V27=\"\"),\"未入力\",\"\")","v":"未入力"}]
[null,null,null,null,null,null,null,null,"※「CAS番号なし」の場合入力\nCAS番号",null,null,null,null,null,null,null,null,null,null,null,null,null,null,{"$f":"IF(AND($V26=STRING_NOCAS, $V28=\"\"),\"未入力\",\"\")","v":""}]
[null,null,null,null,null,null,null,null,"※「CAS番号なし」の場合入力\n物質名称（日本語名）",null,null,null,null,null,null,null,null,null,null,null,null,null,null,{"$f":"IF(AND($V26=STRING_NOCAS, $V29=\"\"),\"未入力\",\"\")","v":""}]
[null,null,null,"第一種、第二種の区分",null,null,null,null,null,null,null,null,null,null,null,null,null,null,null,null,null,null,null,{"$f":"IF($V30=\"\",\"未入力\",\"\")","v":"未入力"}]
[null,null,null,"指定物質番号",null,null,null,null,null,null,null,null,null,null,null,null,null,null,null,null,null,null,null,{"$f":"IF($V31=\"\",\"未入力\",\"\")","v":"未入力"}]
[null,null,null,"相手国の数",null,null,null,null,null,null,null,null,null,null,null,null,null,null,null,null,null,1,null,{"$f":"IF($V32=\"\",\"未入力\",\"\")","v":""}]
[null,null,null,null,null,null,null,null,null,null,null,null,null,null,null,null,null,null,null,null,null,"相手国","数量(kg)","自動入力チェック"]
[null,null,null,"輸出（輸入）をした指定物質の数量（相手国ごとに記入すること。）",null,null,null,null,null,null,null,null,null,null,"相手国（１）",null,null,null,null,null,null,null,null,{"$f":"IF(OR($V34 = \"\", $W34 = 0),\"未入力\",\"\")","v":"未入力"}]
[null,null,null,null,null,null,null,null,null,null,null,null,null,null,"相手国（２）",null,null,null,null,null,null,null,null,{"$f":"IF(AND($V32 > 1, OR($V35 = \"\", $W35 = 0)),\"未入力\",\"\")","v":""}]
[null,null,null,null,null,null,null,null,null,null,null,null,null,null,"相手国（３）",null,null,null,null,null,null,null,null,{"$f":"IF(AND($V32 > 2, OR($V36 = \"\", $W36 = 0)),\"未入力\",\"\")","v":""}]
[null,null,null,null,null,null,null,null,null,null,null,null,null,null,"相手国（４）",null,null,null,null,null,null,null,null,{"$f":"IF(AND($V32 > 3, OR($V37 = \"\", $W37 = 0)),\"未入力\",\"\")","v":""}]
[null,null,null,null,null,null,null,null,null,null,null,null,null,null,"相手国（５）",null,null,null,null,null,null,null,null,{"$f":"IF(AND($V32 > 4, OR($V38 = \"\", $W38 = 0)),\"未入力\",\"\")","v":""}]
[null,null,null,null,null,null,null,null,null,null,null,null,null,null,"相手国（６）",null,null,null,null,null,null,null,null,{"$f":"IF(AND($V32 > 5, OR($V39 = \"\", $W39 = 0)),\"未入力\",\"\")","v":""}]
[null,null,null,null,null,null,null,null,null,null,null,null,null,null,"相手国（７）",null,null,null,null,null,null,null,null,{"$f":"IF(AND($V32 > 6, OR($V40 = \"\", $W40 = 0)),\"未入力\",\"\")","v":""}]
[null,null,null,null,null,null,null,null,null,null,null,null,null,null,null,null,null,null,null,null,null,"日本語",null,"自動入力チェック"]
[null,"輸出（輸入）をした物質の情報（２）\n\n",null,"輸出または輸入の別",null,null,null,null,null,null,null,null,null,null,null,null,null,null,null,null,null,null,null,{"$f":"IF($V42=\"\",\"未入力\",\"\")","v":"未入力"}]
[null,null,null,"物質の情報\n\n",null,null,null,null,"CAS番号",null,null,null,null,null,null,null,null,null,null,null,null,null,null,{"$f":"IF($V43=\"\",\"未入力\",\"\")","v":"未入力"}]
[null,null,null,null,null,null,null,null,"物質名称（日本語名）",null,null,null,null,null,null,null,null,null,null,null,null,null,null,{"$f":"IF(AND($V43<>STRING_NOCAS, $V44=\"\"),\"未入力\",\"\")","v":"未入力"}]
[null,null,null,null,null,null,null,null,"※「CAS番号なし」の場合入力\nCAS番号",null,null,null,null,null,null,null,null,null,null,null,null,null,null,{"$f":"IF(AND($V43=STRING_NOCAS, $V45=\"\"),\"未入力\",\"\")","v":""}]
[null,null,null,null,null,null,null,null,"※「CAS番号なし」の場合入力\n物質名称（日本語名）",null,null,null,null,null,null,null,null,null,null,null,null,null,null,{"$f":"IF(AND($V43=STRING_NOCAS, $V46=\"\"),\"未入力\",\"\")","v":""}]
[null,null,null,"第一種、第二種の区分",null,null,null,null,null,null,null,null,null,null,null,null,null,null,null,null,null,null,null,{"$f":"IF($V47=\"\",\"未入力\",\"\")","v":"未入力"}]
[null,null,null,"指定物質番号",null,null,null,null,null,null,null,null,null,null,null,null,null,null,null,null,null,null,null,{"$f":"IF($V48=\"\",\"未入力\",\"\")","v":"未入力"}]
[null,null,null,"相手国の数",null,null,null,null,null,null,null,null,null,null,null,null,null,null,null,null,null,1,null,{"$f":"IF($V49=\"\",\"未入力\",\"\")","v":""}]
[null,null,null,null,null,null,null,null,null,null,null,null,null,null,null,null,null,null,null,null,null,"相手国","数量(kg)","自動入力チェック"]
[null,null,null,"輸出（輸入）をした指定物質の数量（相手国ごとに記入すること。）",null,null,null,null,null,null,null,null,null,null,"相手国（１）",null,null,null,null,null,null,null,null,{"$f":"IF(OR($V51 = \"\", $W51 = 0),\"未入力\",\"\")","v":"未入力"}]
[null,null,null,null,null,null,null,null,null,null,null,null,null,null,"相手国（２）",null,null,null,null,null,null,null,null,{"$f":"IF(AND($V49 > 1, OR($V52 = \"\", $W52 = 0)),\"未入力\",\"\")","v":""}]
[null,null,null,null,null,null,null,null,null,null,null,null,null,null,"相手国（３）",null,null,null,null,null,null,null,null,{"$f":"IF(AND($V49 > 2, OR($V53 = \"\", $W53 = 0)),\"未入力\",\"\")","v":""}]
[null,null,null,null,null,null,null,null,null,null,null,null,null,null,"相手国（４）",null,null,null,null,null,null,null,null,{"$f":"IF(AND($V49 > 3, OR($V54 = \"\", $W54 = 0)),\"未入力\",\"\")","v":""}]
[null,null,null,null,null,null,null,null,null,null,null,null,null,null,"相手国（５）",null,null,null,null,null,null,null,null,{"$f":"IF(AND($V49 > 4, OR($V55 = \"\", $W55 = 0)),\"未入力\",\"\")","v":""}]
[null,null,null,null,null,null,null,null,null,null,null,null,null,null,"相手国（６）",null,null,null,null,null,null,null,null,{"$f":"IF(AND($V49 > 5, OR($V56 = \"\", $W56 = 0)),\"未入力\",\"\")","v":""}]
[null,null,null,null,null,null,null,null,null,null,null,null,null,null,"相手国（７）",null,null,null,null,null,null,null,null,{"$f":"IF(AND($V49 > 6, OR($V57 = \"\", $W57 = 0)),\"未入力\",\"\")","v":""}]
[null,null,null,null,null,null,null,null,null,null,null,null,null,null,null,null,null,null,null,null,null,"日本語",null,"自動入力チェック"]
[null,"輸出（輸入）をした物質の情報（３）\n\n",null,"輸出または輸入の別",null,null,null,null,null,null,null,null,null,null,null,null,null,null,null,null,null,null,null,{"$f":"IF($V59=\"\",\"未入力\",\"\")","v":"未入力"}]
[null,null,null,"物質の情報\n\n",null,null,null,null,"CAS番号",null,null,null,null,null,null,null,null,null,null,null,null,null,null,{"$f":"IF($V60=\"\",\"未入力\",\"\")","v":"未入力"}]
[null,null,null,null,null,null,null,null,"物質名称（日本語名）",null,null,null,null,null,null,null,null,null,null,null,null,null,null,{"$f":"IF(AND($V60<>STRING_NOCAS, $V61=\"\"),\"未入力\",\"\")","v":"未入力"}]
[null,null,null,null,null,null,null,null,"※「CAS番号なし」の場合入力\nCAS番号",null,null,null,null,null,null,null,null,null,null,null,null,null,null,{"$f":"IF(AND($V60=STRING_NOCAS, $V62=\"\"),\"未入力\",\"\")","v":""}]
[null,null,null,null,null,null,null,null,"※「CAS番号なし」の場合入力\n物質名称（日本語名）",null,null,null,null,null,null,null,null,null,null,null,null,null,null,{"$f":"IF(AND($V60=STRING_NOCAS, $V63=\"\"),\"未入力\",\"\")","v":""}]
[null,null,null,"第一種、第二種の区分",null,null,null,null,null,null,null,null,null,null,null,null,null,null,null,null,null,null,null,{"$f":"IF($V64=\"\",\"未入力\",\"\")","v":"未入力"}]
[null,null,null,"指定物質番号",null,null,null,null,null,null,null,null,null,null,null,null,null,null,null,null,null,null,null,{"$f":"IF($V65=\"\",\"未入力\",\"\")","v":"未入力"}]
[null,null,null,"相手国の数",null,null,null,null,null,null,null,null,null,null,null,null,null,null,null,null,null,1,null,{"$f":"IF($V66=\"\",\"未入力\",\"\")","v":""}]
[null,null,null,null,null,null,null,null,null,null,null,null,null,null,null,null,null,null,null,null,null,"相手国","数量(kg)","自動入力チェック"]
[null,null,null,"輸出（輸入）をした指定物質の数量（相手国ごとに記入すること。）",null,null,null,null,null,null,null,null,null,null,"相手国（１）",null,null,null,null,null,null,null,null,{"$f":"IF(OR($V68 = \"\", $W68 = 0),\"未入力\",\"\")","v":"未入力"}]
[null,null,null,null,null,null,null,null,null,null,null,null,null,null,"相手国（２）",null,null,null,null,null,null,null,null,{"$f":"IF(AND($V66 > 1, OR($V69 = \"\", $W69 = 0)),\"未入力\",\"\")","v":""}]
[null,null,null,null,null,null,null,null,null,null,null,null,null,null,"相手国（３）",null,null,null,null,null,null,null,null,{"$f":"IF(AND($V66 > 2, OR($V70 = \"\", $W70 = 0)),\"未入力\",\"\")","v":""}]
[null,null,null,null,null,null,null,null,null,null,null,null,null,null,"相手国（４）",null,null,null,null,null,null,null,null,{"$f":"IF(AND($V66 > 3, OR($V71 = \"\", $W71 = 0)),\"未入力\",\"\")","v":""}]
[null,null,null,null,null,null,null,null,null,null,null,null,null,null,"相手国（５）",null,null,null,null,null,null,null,null,{"$f":"IF(AND($V66 > 4, OR($V72 = \"\", $W72 = 0)),\"未入力\",\"\")","v":""}]
[null,null,null,null,null,null,null,null,null,null,null,null,null,null,"相手国（６）",null,null,null,null,null,null,null,null,{"$f":"IF(AND($V66 > 5, OR($V73 = \"\", $W73 = 0)),\"未入力\",\"\")","v":""}]
[null,null,null,null,null,null,null,null,null,null,null,null,null,null,"相手国（７）",null,null,null,null,null,null,null,null,{"$f":"IF(AND($V66 > 6, OR($V74 = \"\", $W74 = 0)),\"未入力\",\"\")","v":""}]
[null,null,null,null,null,null,null,null,null,null,null,null,null,null,null,null,null,null,null,null,null,"日本語",null,"自動入力チェック"]
[null,"輸出（輸入）をした物質の情報（４）\n\n",null,"輸出または輸入の別",null,null,null,null,null,null,null,null,null,null,null,null,null,null,null,null,null,null,null,{"$f":"IF($V76=\"\",\"未入力\",\"\")","v":"未入力"}]
[null,null,null,"物質の情報\n\n",null,null,null,null,"CAS番号",null,null,null,null,null,null,null,null,null,null,null,null,null,null,{"$f":"IF($V77=\"\",\"未入力\",\"\")","v":"未入力"}]
[null,null,null,null,null,null,null,null,"物質名称（日本語名）",null,null,null,null,null,null,null,null,null,null,null,null,null,null,{"$f":"IF(AND($V77<>STRING_NOCAS, $V78=\"\"),\"未入力\",\"\")","v":"未入力"}]
[null,null,null,null,null,null,null,null,"※「CAS番号なし」の場合入力\nCAS番号",null,null,null,null,null,null,null,null,null,null,null,null,null,null,{"$f":"IF(AND($V77=STRING_NOCAS, $V79=\"\"),\"未入力\",\"\")","v":""}]
[null,null,null,null,null,null,null,null,"※「CAS番号なし」の場合入力\n物質名称（日本語名）",null,null,null,null,null,null,null,null,null,null,null,null,null,null,{"$f":"IF(AND($V77=STRING_NOCAS, $V80=\"\"),\"未入力\",\"\")","v":""}]
[null,null,null,"第一種、第二種の区分",null,null,null,null,null,null,null,null,null,null,null,null,null,null,null,null,null,null,null,{"$f":"IF($V81=\"\",\"未入力\",\"\")","v":"未入力"}]
[null,null,null,"指定物質番号",null,null,null,null,null,null,null,null,null,null,null,null,null,null,null,null,null,null,null,{"$f":"IF($V82=\"\",\"未入力\",\"\")","v":"未入力"}]
[null,null,null,"相手国の数",null,null,null,null,null,null,null,null,null,null,null,null,null,null,null,null,null,1,null,{"$f":"IF($V83=\"\",\"未入力\",\"\")","v":""}]
[null,null,null,null,null,null,null,null,null,null,null,null,null,null,null,null,null,null,null,null,null,"相手国","数量(kg)","自動入力チェック"]
[null,null,null,"輸出（輸入）をした指定物質の数量（相手国ごとに記入すること。）",null,null,null,null,null,null,null,null,null,null,"相手国（１）",null,null,null,null,null,null,null,null,{"$f":"IF(OR($V85 = \"\", $W85 = 0),\"未入力\",\"\")","v":"未入力"}]
[null,null,null,null,null,null,null,null,null,null,null,null,null,null,"相手国（２）",null,null,null,null,null,null,null,null,{"$f":"IF(AND($V83 > 1, OR($V86 = \"\", $W86 = 0)),\"未入力\",\"\")","v":""}]
[null,null,null,null,null,null,null,null,null,null,null,null,null,null,"相手国（３）",null,null,null,null,null,null,null,null,{"$f":"IF(AND($V83 > 2, OR($V87 = \"\", $W87 = 0)),\"未入力\",\"\")","v":""}]
[null,null,null,null,null,null,null,null,null,null,null,null,null,null,"相手国（４）",null,null,null,null,null,null,null,null,{"$f":"IF(AND($V83 > 3, OR($V88 = \"\", $W88 = 0)),\"未入力\",\"\")","v":""}]
[null,null,null,null,null,null,null,null,null,null,null,null,null,null,"相手国（５）",null,null,null,null,null,null,null,null,{"$f":"IF(AND($V83 > 4, OR($V89 = \"\", $W89 = 0)),\"未入力\",\"\")","v":""}]
[null,null,null,null,null,null,null,null,null,null,null,null,null,null,"相手国（６）",null,null,null,null,null,null,null,null,{"$f":"IF(AND($V83 > 5, OR($V90 = \"\", $W90 = 0)),\"未入力\",\"\")","v":""}]
[null,null,null,null,null,null,null,null,null,null,null,null,null,null,"相手国（７）",null,null,null,null,null,null,null,null,{"$f":"IF(AND($V83 > 6, OR($V91 = \"\", $W91 = 0)),\"未入力\",\"\")","v":""}]
[null,null,null,null,null,null,null,null,null,null,null,null,null,null,null,null,null,null,null,null,null,"日本語",null,"自動入力チェック"]
[null,"輸出（輸入）をした物質の情報（５）\n\n",null,"輸出または輸入の別",null,null,null,null,null,null,null,null,null,null,null,null,null,null,null,null,null,null,null,{"$f":"IF($V93=\"\",\"未入力\",\"\")","v":"未入力"}]
[null,null,null,"物質の情報\n\n",null,null,null,null,"CAS番号",null,null,null,null,null,null,null,null,null,null,null,null,null,null,{"$f":"IF($V94=\"\",\"未入力\",\"\")","v":"未入力"}]
[null,null,null,null,null,null,null,null,"物質名称（日本語名）",null,null,null,null,null,null,null,null,null,null,null,null,null,null,{"$f":"IF(AND($V94<>STRING_NOCAS, $V95=\"\"),\"未入力\",\"\")","v":"未入力"}]
[null,null,null,null,null,null,null,null,"※「CAS番号なし」の場合入力\nCAS番号",null,null,null,null,null,null,null,null,null,null,null,null,null,null,{"$f":"IF(AND($V94=STRING_NOCAS, $V96=\"\"),\"未入力\",\"\")","v":""}]
[null,null,null,null,null,null,null,null,"※「CAS番号なし」の場合入力\n物質名称（日本語名）",null,null,null,null,null,null,null,null,null,null,null,null,null,null,{"$f":"IF(AND($V94=STRING_NOCAS, $V97=\"\"),\"未入力\",\"\")","v":""}]
[null,null,null,"第一種、第二種の区分",null,null,null,null,null,null,null,null,null,null,null,null,null,null,null,null,null,null,null,{"$f":"IF($V98=\"\",\"未入力\",\"\")","v":"未入力"}]
[null,null,null,"指定物質番号",null,null,null,null,null,null,null,null,null,null,null,null,null,null,null,null,null,null,null,{"$f":"IF($V99=\"\",\"未入力\",\"\")","v":"未入力"}]
[null,null,null,"相手国の数",null,null,null,null,null,null,null,null,null,null,null,null,null,null,null,null,null,1,null,{"$f":"IF($V100=\"\",\"未入力\",\"\")","v":""}]
[null,null,null,null,null,null,null,null,null,null,null,null,null,null,null,null,null,null,null,null,null,"相手国","数量(kg)","自動入力チェック"]
[null,null,null,"輸出（輸入）をした指定物質の数量（相手国ごとに記入すること。）",null,null,null,null,null,null,null,null,null,null,"相手国（１）",null,null,null,null,null,null,null,null,{"$f":"IF(OR($V102 = \"\", $W102 = 0),\"未入力\",\"\")","v":"未入力"}]
[null,null,null,null,null,null,null,null,null,null,null,null,null,null,"相手国（２）",null,null,null,null,null,null,null,null,{"$f":"IF(AND($V100 > 1, OR($V103 = \"\", $W103 = 0)),\"未入力\",\"\")","v":""}]
[null,null,null,null,null,null,null,null,null,null,null,null,null,null,"相手国（３）",null,null,null,null,null,null,null,null,{"$f":"IF(AND($V100 > 2, OR($V104 = \"\", $W104 = 0)),\"未入力\",\"\")","v":""}]
[null,null,null,null,null,null,null,null,null,null,null,null,null,null,"相手国（４）",null,null,null,null,null,null,null,null,{"$f":"IF(AND($V100 > 3, OR($V105 = \"\", $W105 = 0)),\"未入力\",\"\")","v":""}]
[null,null,null,null,null,null,null,null,null,null,null,null,null,null,"相手国（５）",null,null,null,null,null,null,null,null,{"$f":"IF(AND($V100 > 4, OR($V106 = \"\", $W106 = 0)),\"未入力\",\"\")","v":""}]
[null,null,null,null,null,null,null,null,null,null,null,null,null,null,"相手国（６）",null,null,null,null,null,null,null,null,{"$f":"IF(AND($V100 > 5, OR($V107 = \"\", $W107 = 0)),\"未入力\",\"\")","v":""}]
[null,null,null,null,null,null,null,null,null,null,null,null,null,null,"相手国（７）",null,null,null,null,null,null,null,null,{"$f":"IF(AND($V100 > 6, OR($V108 = \"\", $W108 = 0)),\"未入力\",\"\")","v":""}]
[null,null,null,null,null,null,null,null,null,null,null,null,null,null,null,null,null,null,null,null,null,"日本語",null,"自動入力チェック"]
[null,"輸出（輸入）をした物質の情報（６）\n\n",null,"輸出または輸入の別",null,null,null,null,null,null,null,null,null,null,null,null,null,null,null,null,null,null,null,{"$f":"IF($V110=\"\",\"未入力\",\"\")","v":"未入力"}]
[null,null,null,"物質の情報\n\n",null,null,null,null,"CAS番号",null,null,null,null,null,null,null,null,null,null,null,null,null,null,{"$f":"IF($V111=\"\",\"未入力\",\"\")","v":"未入力"}]
[null,null,null,null,null,null,null,null,"物質名称（日本語名）",null,null,null,null,null,null,null,null,null,null,null,null,null,null,{"$f":"IF(AND($V111<>STRING_NOCAS, $V112=\"\"),\"未入力\",\"\")","v":"未入力"}]
[null,null,null,null,null,null,null,null,"※「CAS番号なし」の場合入力\nCAS番号",null,null,null,null,null,null,null,null,null,null,null,null,null,null,{"$f":"IF(AND($V111=STRING_NOCAS, $V113=\"\"),\"未入力\",\"\")","v":""}]
[null,null,null,null,null,null,null,null,"※「CAS番号なし」の場合入力\n物質名称（日本語名）",null,null,null,null,null,null,null,null,null,null,null,null,null,null,{"$f":"IF(AND($V111=STRING_NOCAS, $V114=\"\"),\"未入力\",\"\")","v":""}]
[null,null,null,"第一種、第二種の区分",null,null,null,null,null,null,null,null,null,null,null,null,null,null,null,null,null,null,null,{"$f":"IF($V115=\"\",\"未入力\",\"\")","v":"未入力"}]
[null,null,null,"指定物質番号",null,null,null,null,null,null,null,null,null,null,null,null,null,null,null,null,null,null,null,{"$f":"IF($V116=\"\",\"未入力\",\"\")","v":"未入力"}]
[null,null,null,"相手国の数",null,null,null,null,null,null,null,null,null,null,null,null,null,null,null,null,null,1,null,{"$f":"IF($V117=\"\",\"未入力\",\"\")","v":""}]
[null,null,null,null,null,null,null,null,null,null,null,null,null,null,null,null,null,null,null,null,null,"相手国","数量(kg)","自動入力チェック"]
[null,null,null,"輸出（輸入）をした指定物質の数量（相手国ごとに記入すること。）",null,null,null,null,null,null,null,null,null,null,"相手国（１）",null,null,null,null,null,null,null,null,{"$f":"IF(OR($V119 = \"\", $W119 = 0),\"未入力\",\"\")","v":"未入力"}]
[null,null,null,null,null,null,null,null,null,null,null,null,null,null,"相手国（２）",null,null,null,null,null,null,null,null,{"$f":"IF(AND($V117 > 1, OR($V120 = \"\", $W120 = 0)),\"未入力\",\"\")","v":""}]
[null,null,null,null,null,null,null,null,null,null,null,null,null,null,"相手国（３）",null,null,null,null,null,null,null,null,{"$f":"IF(AND($V117 > 2, OR($V121 = \"\", $W121 = 0)),\"未入力\",\"\")","v":""}]
[null,null,null,null,null,null,null,null,null,null,null,null,null,null,"相手国（４）",null,null,null,null,null,null,null,null,{"$f":"IF(AND($V117 > 3, OR($V122 = \"\", $W122 = 0)),\"未入力\",\"\")","v":""}]
[null,null,null,null,null,null,null,null,null,null,null,null,null,null,"相手国（５）",null,null,null,null,null,null,null,null,{"$f":"IF(AND($V117 > 4, OR($V123 = \"\", $W123 = 0)),\"未入力\",\"\")","v":""}]
[null,null,null,null,null,null,null,null,null,null,null,null,null,null,"相手国（６）",null,null,null,null,null,null,null,null,{"$f":"IF(AND($V117 > 5, OR($V124 = \"\", $W124 = 0)),\"未入力\",\"\")","v":""}]
[null,null,null,null,null,null,null,null,null,null,null,null,null,null,"相手国（７）",null,null,null,null,null,null,null,null,{"$f":"IF(AND($V117 > 6, OR($V125 = \"\", $W125 = 0)),\"未入力\",\"\")","v":""}]
[null,null,null,null,null,null,null,null,null,null,null,null,null,null,null,null,null,null,null,null,null,"日本語",null,"自動入力チェック"]
[null,"輸出（輸入）をした物質の情報（７）\n\n",null,"輸出または輸入の別",null,null,null,null,null,null,null,null,null,null,null,null,null,null,null,null,null,null,null,{"$f":"IF($V127=\"\",\"未入力\",\"\")","v":"未入力"}]
[null,null,null,"物質の情報\n\n",null,null,null,null,"CAS番号",null,null,null,null,null,null,null,null,null,null,null,null,null,null,{"$f":"IF($V128=\"\",\"未入力\",\"\")","v":"未入力"}]
[null,null,null,null,null,null,null,null,"物質名称（日本語名）",null,null,null,null,null,null,null,null,null,null,null,null,null,null,{"$f":"IF(AND($V128<>STRING_NOCAS, $V129=\"\"),\"未入力\",\"\")","v":"未入力"}]
[null,null,null,null,null,null,null,null,"※「CAS番号なし」の場合入力\nCAS番号",null,null,null,null,null,null,null,null,null,null,null,null,null,null,{"$f":"IF(AND($V128=STRING_NOCAS, $V130=\"\"),\"未入力\",\"\")","v":""}]
[null,null,null,null,null,null,null,null,"※「CAS番号なし」の場合入力\n物質名称（日本語名）",null,null,null,null,null,null,null,null,null,null,null,null,null,null,{"$f":"IF(AND($V128=STRING_NOCAS, $V131=\"\"),\"未入力\",\"\")","v":""}]
[null,null,null,"第一種、第二種の区分",null,null,null,null,null,null,null,null,null,null,null,null,null,null,null,null,null,null,null,{"$f":"IF($V132=\"\",\"未入力\",\"\")","v":"未入力"}]
[null,null,null,"指定物質番号",null,null,null,null,null,null,null,null,null,null,null,null,null,null,null,null,null,null,null,{"$f":"IF($V133=\"\",\"未入力\",\"\")","v":"未入力"}]
[null,null,null,"相手国の数",null,null,null,null,null,null,null,null,null,null,null,null,null,null,null,null,null,1,null,{"$f":"IF($V134=\"\",\"未入力\",\"\")","v":""}]
[null,null,null,null,null,null,null,null,null,null,null,null,null,null,null,null,null,null,null,null,null,"相手国","数量(kg)","自動入力チェック"]
[null,null,null,"輸出（輸入）をした指定物質の数量（相手国ごとに記入すること。）",null,null,null,null,null,null,null,null,null,null,"相手国（１）",null,null,null,null,null,null,null,null,{"$f":"IF(OR($V136 = \"\", $W136 = 0),\"未入力\",\"\")","v":"未入力"}]
[null,null,null,null,null,null,null,null,null,null,null,null,null,null,"相手国（２）",null,null,null,null,null,null,null,null,{"$f":"IF(AND($V134 > 1, OR($V137 = \"\", $W137 = 0)),\"未入力\",\"\")","v":""}]
[null,null,null,null,null,null,null,null,null,null,null,null,null,null,"相手国（３）",null,null,null,null,null,null,null,null,{"$f":"IF(AND($V134 > 2, OR($V138 = \"\", $W138 = 0)),\"未入力\",\"\")","v":""}]
[null,null,null,null,null,null,null,null,null,null,null,null,null,null,"相手国（４）",null,null,null,null,null,null,null,null,{"$f":"IF(AND($V134 > 3, OR($V139 = \"\", $W139 = 0)),\"未入力\",\"\")","v":""}]
[null,null,null,null,null,null,null,null,null,null,null,null,null,null,"相手国（５）",null,null,null,null,null,null,null,null,{"$f":"IF(AND($V134 > 4, OR($V140 = \"\", $W140 = 0)),\"未入力\",\"\")","v":""}]
[null,null,null,null,null,null,null,null,null,null,null,null,null,null,"相手国（６）",null,null,null,null,null,null,null,null,{"$f":"IF(AND($V134 > 5, OR($V141 = \"\", $W141 = 0)),\"未入力\",\"\")","v":""}]
[null,null,null,null,null,null,null,null,null,null,null,null,null,null,"相手国（７）",null,null,null,null,null,null,null,null,{"$f":"IF(AND($V134 > 6, OR($V142 = \"\", $W142 = 0)),\"未入力\",\"\")","v":""}]

{"sheet":"eAppData","index":3,"n_rows":27,"n_cols":52,"rows_kept":27,"cut":false,"hidden":true,"merged":[]}
["事業所マスタ",1,null,null,null,null,"配布Version",2,"様式種別","20","←配布Version、様式種別はR5年改修時追加項目"]
["No","AM018_PlantSiteCode","AM018_PlantSiteName","AM018_ProvinceCode","AM018_Province","AM018_City","AM018_Address","AM018_Report_Post_1","AM018_Report_Address_1","AM018_Report_Department_1","AM018_Report_Position_1","AM018_Report_Person_1","AM018_Report_Tel_1","AM018_Report_Fax_1","AM018_Report_Email_1","AM018_Report_Post_2","AM018_Report_Address_2","AM018_Report_Department_2","AM018_Report_Position_2","AM018_Report_Person_2","AM018_Report_Tel_2","AM018_Report_Fax_2","AM018_Report_Email_2","AM018_Report_Post_3","AM018_Report_Address_3","AM018_Report_Department_3","AM018_Report_Position_3","AM018_Report_Person_3","AM018_Report_Tel_3","AM018_Report_Fax_3","AM018_Report_Email_3","AM018_Inspectiont_Address_1","AM018_Inspectiont_Department_1","AM018_Inspectiont_Position_1","AM018_Inspectiont_Person_1","AM018_Inspectiont_Tel_1","AM018_Inspectiont_Fax_1","AM018_Inspectiont_Email_1","AM018_Inspectiont_Address_2","AM018_Inspectiont_Department_2","AM018_Inspectiont_Position_2","AM018_Inspectiont_Person_2","AM018_Inspectiont_Tel_2","AM018_Inspectiont_Fax_2","AM018_Inspectiont_Email_2","AM018_Inspectiont_Address_3","AM018_Inspectiont_Department_3","AM018_Inspectiont_Position_3","AM018_Inspectiont_Person_3","AM018_Inspectiont_Tel_3","AM018_Inspectiont_Fax_3","AM018_Inspectiont_Email_3"]
[1,{"$f":"ETL!$D$61","v":""},{"$f":"ETL!$D$59","v":""},{"$f":"ETL!$G$62","v":""},{"$f":"ETL!$D$62","v":""},{"$f":"ETL!$D$64","v":""},{"$f":"ETL!$D$66","v":""},{"$f":"ETL!$D$13","v":""},{"$f":"ETL!$D$14","v":""},{"$f":"ETL!$D$15","v":""},{"$f":"ETL!$D$16","v":""},{"$f":"ETL!$D$12","v":""},{"$f":"ETL!$D$17","v":""},{"$f":"ETL!$D$18","v":""},{"$f":"ETL!$D$19","v":""},{"$f":"ETL!$D$21","v":""},{"$f":"ETL!$D$22","v":""},{"$f":"ETL!$D$23","v":""},{"$f":"ETL!$D$24","v":""},{"$f":"ETL!$D$20","v":""},{"$f":"ETL!$D$25","v":""},{"$f":"ETL!$D$26","v":""},{"$f":"ETL!$D$27","v":""},{"$f":"ETL!$D$29","v":""},{"$f":"ETL!$D$30","v":""},{"$f":"ETL!$D$31","v":""},{"$f":"ETL!$D$32","v":""},{"$f":"ETL!$D$28","v":""},{"$f":"ETL!$D$33","v":""},{"$f":"ETL!$D$34","v":""},{"$f":"ETL!$D$35","v":""}]
["↓セルA５はVBAのバージョン管理処理にて使用しているため修正時注意する"]
["様式20の数",{"$f":"ETL!$D$80","v":1}]
["No","AT005_PlantSiteCode","AT005_RelatesYear","AT005_ReportDay","AT005_TraderName","AT005_TraderAddress","AT005_ExportImportType","AT005_SubstancesType","AT005_GovOrdinance","AT005_CASRegistryNumber","AT005_ChemicalId","相手国の数(DBにはない項目)","AT005_CountryID1","AT005_QuantityCountry1","AT005_QuantityCountryValue1","AT005_CountryID2","AT005_QuantityCountry2","AT005_QuantityCountryValue2","AT005_CountryID3","AT005_QuantityCountry3","AT005_QuantityCountryValue3","AT005_CountryID4","AT005_QuantityCountry4","AT005_QuantityCountryValue4","AT005_CountryID5","AT005_QuantityCountry5","AT005_QuantityCountryValue5","AT005_CountryID6","AT005_QuantityCountry6","AT005_QuantityCountryValue6","AT005_CountryID7","AT005_QuantityCountry7","AT005_QuantityCountryValue7"]
[1,{"$f":"ETL!$D$61","v":""},{"$f":"ETL!$D$6","v":0},{"$f":"ETL!$G$3","v":{"$error":"#NUM!"}},{"$f":"ETL!$G$7","v":""},{"$f":"ETL!$D$11","v":""},{"$f":"ETL!$G$81","v":""},{"$f":"ETL!$G$86","v":""},{"$f":"ETL!$G$87","v":""},{"$f":"ETL!$G$82","v":""},{"$f":"ETL!$G$84","v":0},{"$f":"ETL!$D$88","v":1},{"$f":"ETL!$K$90","v":""},{"$f":"ETL!$I$90","v":"0"},{"$f":"ETL!$H$90","v":0},{"$f":"ETL!$K$91","v":""},{"$f":"ETL!$I$91","v":""},{"$f":"ETL!$H$91","v":0},{"$f":"ETL!$K$92","v":""},{"$f":"ETL!$I$92","v":""},{"$f":"ETL!$H$92","v":0},{"$f":"ETL!$K$93","v":""},{"$f":"ETL!$I$93","v":""},{"$f":"ETL!$H$93","v":0},{"$f":"ETL!$K$94","v":""},{"$f":"ETL!$I$94","v":""},{"$f":"ETL!$H$94","v":0},{"$f":"ETL!$K$95","v":""},{"$f":"ETL!$I$95","v":""},{"$f":"ETL!$H$95","v":0},{"$f":"ETL!$K$96","v":""},{"$f":"ETL!$I$96","v":""},{"$f":"ETL!$H$96","v":0}]
[2,{"$f":"IF($B$5>1,ETL!$D$61,\"\")","v":""},{"$f":"IF($B$5>1,ETL!$D$6, \"\")","v":""},{"$f":"IF($B$5>1,ETL!$G$3, \"\")","v":""},{"$f":"IF($B$5>1,ETL!$G$7, \"\")","v":""},{"$f":"IF($B$5>1,ETL!$D$11, \"\")","v":""},{"$f":"IF($B$5>1,ETL!$G$98, \"\")","v":""},{"$f":"IF($B$5>1,ETL!$G$103, \"\")","v":""},{"$f":"IF($B$5>1,ETL!$G$104, \"\")","v":""},{"$f":"IF($B$5>1,ETL!$G$99,\"\")","v":""},{"$f":"IF($B$5>1,ETL!$G$101, \"\")","v":""},{"$f":"ETL!$D$105","v":1},{"$f":"IF($B$5>1,ETL!$K$107, \"\")","v":""},{"$f":"IF($B$5>1,ETL!$I$107, \"\")","v":""},{"$f":"IF($B$5>1,ETL!$H$107, \"\")","v":""},{"$f":"IF($B$5>1,ETL!$K$108, \"\")","v":""},{"$f":"IF($B$5>1,ETL!$I$108, \"\")","v":""},{"$f":"IF($B$5>1,ETL!$H$108, \"\")","v":""},{"$f":"IF($B$5>1,ETL!$K$109, \"\")","v":""},{"$f":"IF($B$5>1,ETL!$I$109, \"\")","v":""},{"$f":"IF($B$5>1,ETL!$H$109,\"\")","v":""},{"$f":"IF($B$5>1,ETL!$K$110, \"\")","v":""},{"$f":"IF($B$5>1,ETL!$I$110, \"\")","v":""},{"$f":"IF($B$5>1,ETL!$H$110, \"\")","v":""},{"$f":"IF($B$5>1,ETL!$K$111, \"\")","v":""},{"$f":"IF($B$5>1,ETL!$I$111, \"\")","v":""},{"$f":"IF($B$5>1,ETL!$H$111, \"\")","v":""},{"$f":"IF($B$5>1,ETL!$K$112, \"\")","v":""},{"$f":"IF($B$5>1,ETL!$I$112, \"\")","v":""},{"$f":"IF($B$5>1,ETL!$H$112, \"\")","v":""},{"$f":"IF($B$5>1,ETL!$K$113, \"\")","v":""},{"$f":"IF($B$5>1,ETL!$I$113, \"\")","v":""},{"$f":"IF($B$5>1,ETL!$H$113, \"\")","v":""}]
[3,{"$f":"IF($B$5>2,ETL!$D$61,\"\")","v":""},{"$f":"IF($B$5>2,ETL!$D$6, \"\")","v":""},{"$f":"IF($B$5>2,ETL!$G$3, \"\")","v":""},{"$f":"IF($B$5>2,ETL!$G$7, \"\")","v":""},{"$f":"IF($B$5>2,ETL!$D$11, \"\")","v":""},{"$f":"IF($B$5>2,ETL!$G$115, \"\")","v":""},{"$f":"IF($B$5>2,ETL!$G$120, \"\")","v":""},{"$f":"IF($B$5>2,ETL!$G$121, \"\")","v":""},{"$f":"IF($B$5>2,ETL!$G$116,\"\")","v":""},{"$f":"IF($B$5>2,ETL!$G$118, \"\")","v":""},{"$f":"ETL!$D$122","v":1},{"$f":"IF($B$5>2,ETL!$K$124, \"\")","v":""},{"$f":"IF($B$5>2,ETL!$I$124, \"\")","v":""},{"$f":"IF($B$5>2,ETL!$H$124, \"\")","v":""},{"$f":"IF($B$5>2,ETL!$K$125, \"\")","v":""},{"$f":"IF($B$5>2,ETL!$I$125, \"\")","v":""},{"$f":"IF($B$5>2,ETL!$H$125, \"\")","v":""},{"$f":"IF($B$5>2,ETL!$K$126, \"\")","v":""},{"$f":"IF($B$5>2,ETL!$I$126, \"\")","v":""},{"$f":"IF($B$5>2,ETL!$H$126,\"\")","v":""},{"$f":"IF($B$5>2,ETL!$K$127, \"\")","v":""},{"$f":"IF($B$5>2,ETL!$I$127, \"\")","v":""},{"$f":"IF($B$5>2,ETL!$H$127, \"\")","v":""},{"$f":"IF($B$5>2,ETL!$K$128, \"\")","v":""},{"$f":"IF($B$5>2,ETL!$I$128, \"\")","v":""},{"$f":"IF($B$5>2,ETL!$H$128, \"\")","v":""},{"$f":"IF($B$5>2,ETL!$K$129, \"\")","v":""},{"$f":"IF($B$5>2,ETL!$I$129, \"\")","v":""},{"$f":"IF($B$5>2,ETL!$H$129, \"\")","v":""},{"$f":"IF($B$5>2,ETL!$K$130, \"\")","v":""},{"$f":"IF($B$5>2,ETL!$I$130, \"\")","v":""},{"$f":"IF($B$5>2,ETL!$H$130, \"\")","v":""}]
[4,{"$f":"IF($B$5>3,ETL!$D$61,\"\")","v":""},{"$f":"IF($B$5>3,ETL!$D$6, \"\")","v":""},{"$f":"IF($B$5>3,ETL!$G$3, \"\")","v":""},{"$f":"IF($B$5>3,ETL!$G$7, \"\")","v":""},{"$f":"IF($B$5>3,ETL!$D$11, \"\")","v":""},{"$f":"IF($B$5>3,ETL!$G$132, \"\")","v":""},{"$f":"IF($B$5>3,ETL!$G$137, \"\")","v":""},{"$f":"IF($B$5>3,ETL!$G$138, \"\")","v":""},{"$f":"IF($B$5>3,ETL!$G$133,\"\")","v":""},{"$f":"IF($B$5>3,ETL!$G$135, \"\")","v":""},{"$f":"ETL!$D$139","v":1},{"$f":"IF($B$5>3,ETL!$K$141, \"\")","v":""},{"$f":"IF($B$5>3,ETL!$I$141, \"\")","v":""},{"$f":"IF($B$5>3,ETL!$H$141, \"\")","v":""},{"$f":"IF($B$5>3,ETL!$K$142, \"\")","v":""},{"$f":"IF($B$5>3,ETL!$I$142, \"\")","v":""},{"$f":"IF($B$5>3,ETL!$H$142, \"\")","v":""},{"$f":"IF($B$5>3,ETL!$K$143, \"\")","v":""},{"$f":"IF($B$5>3,ETL!$I$143, \"\")","v":""},{"$f":"IF($B$5>3,ETL!$H$143,\"\")","v":""},{"$f":"IF($B$5>3,ETL!$K$144, \"\")","v":""},{"$f":"IF($B$5>3,ETL!$I$144, \"\")","v":""},{"$f":"IF($B$5>3,ETL!$H$144, \"\")","v":""},{"$f":"IF($B$5>3,ETL!$K$145, \"\")","v":""},{"$f":"IF($B$5>3,ETL!$I$145, \"\")","v":""},{"$f":"IF($B$5>3,ETL!$H$145, \"\")","v":""},{"$f":"IF($B$5>3,ETL!$K$146, \"\")","v":""},{"$f":"IF($B$5>3,ETL!$I$146, \"\")","v":""},{"$f":"IF($B$5>3,ETL!$H$146, \"\")","v":""},{"$f":"IF($B$5>3,ETL!$K$147, \"\")","v":""},{"$f":"IF($B$5>3,ETL!$I$147, \"\")","v":""},{"$f":"IF($B$5>3,ETL!$H$147, \"\")","v":""}]
[5,{"$f":"IF($B$5>4,ETL!$D$61,\"\")","v":""},{"$f":"IF($B$5>4,ETL!$D$6, \"\")","v":""},{"$f":"IF($B$5>4,ETL!$G$3, \"\")","v":""},{"$f":"IF($B$5>4,ETL!$G$7, \"\")","v":""},{"$f":"IF($B$5>4,ETL!$D$11, \"\")","v":""},{"$f":"IF($B$5>4,ETL!$G$149, \"\")","v":""},{"$f":"IF($B$5>4,ETL!$G$154, \"\")","v":""},{"$f":"IF($B$5>4,ETL!$G$155, \"\")","v":""},{"$f":"IF($B$5>4,ETL!$G$150,\"\")","v":""},{"$f":"IF($B$5>4,ETL!$G$152, \"\")","v":""},{"$f":"ETL!$D$156","v":1},{"$f":"IF($B$5>4,ETL!$K$158, \"\")","v":""},{"$f":"IF($B$5>4,ETL!$I$158, \"\")","v":""},{"$f":"IF($B$5>4,ETL!$H$158, \"\")","v":""},{"$f":"IF($B$5>4,ETL!$K$159, \"\")","v":""},{"$f":"IF($B$5>4,ETL!$I$159, \"\")","v":""},{"$f":"IF($B$5>4,ETL!$H$159, \"\")","v":""},{"$f":"IF($B$5>4,ETL!$K$160, \"\")","v":""},{"$f":"IF($B$5>4,ETL!$I$160, \"\")","v":""},{"$f":"IF($B$5>4,ETL!$H$160,\"\")","v":""},{"$f":"IF($B$5>4,ETL!$K$161, \"\")","v":""},{"$f":"IF($B$5>4,ETL!$I$161, \"\")","v":""},{"$f":"IF($B$5>4,ETL!$H$161, \"\")","v":""},{"$f":"IF($B$5>4,ETL!$K$162, \"\")","v":""},{"$f":"IF($B$5>4,ETL!$I$162, \"\")","v":""},{"$f":"IF($B$5>4,ETL!$H$162, \"\")","v":""},{"$f":"IF($B$5>4,ETL!$K$163, \"\")","v":""},{"$f":"IF($B$5>4,ETL!$I$163, \"\")","v":""},{"$f":"IF($B$5>4,ETL!$H$163, \"\")","v":""},{"$f":"IF($B$5>4,ETL!$K$164, \"\")","v":""},{"$f":"IF($B$5>4,ETL!$I$164, \"\")","v":""},{"$f":"IF($B$5>4,ETL!$H$164, \"\")","v":""}]
[6,{"$f":"IF($B$5>5,ETL!$D$61,\"\")","v":""},{"$f":"IF($B$5>5,ETL!$D$6, \"\")","v":""},{"$f":"IF($B$5>5,ETL!$G$3, \"\")","v":""},{"$f":"IF($B$5>5,ETL!$G$7, \"\")","v":""},{"$f":"IF($B$5>5,ETL!$D$11, \"\")","v":""},{"$f":"IF($B$5>5,ETL!$G$166, \"\")","v":""},{"$f":"IF($B$5>5,ETL!$G$171, \"\")","v":""},{"$f":"IF($B$5>5,ETL!$G$172, \"\")","v":""},{"$f":"IF($B$5>5,ETL!$G$167,\"\")","v":""},{"$f":"IF($B$5>5,ETL!$G$169, \"\")","v":""},{"$f":"ETL!$D$173","v":1},{"$f":"IF($B$5>5,ETL!$K$175, \"\")","v":""},{"$f":"IF($B$5>5,ETL!$I$175, \"\")","v":""},{"$f":"IF($B$5>5,ETL!$H$175, \"\")","v":""},{"$f":"IF($B$5>5,ETL!$K$176, \"\")","v":""},{"$f":"IF($B$5>5,ETL!$I$176, \"\")","v":""},{"$f":"IF($B$5>5,ETL!$H$176, \"\")","v":""},{"$f":"IF($B$5>5,ETL!$K$177, \"\")","v":""},{"$f":"IF($B$5>5,ETL!$I$177, \"\")","v":""},{"$f":"IF($B$5>5,ETL!$H$177,\"\")","v":""},{"$f":"IF($B$5>5,ETL!$K$178, \"\")","v":""},{"$f":"IF($B$5>5,ETL!$I$178, \"\")","v":""},{"$f":"IF($B$5>5,ETL!$H$178, \"\")","v":""},{"$f":"IF($B$5>5,ETL!$K$179, \"\")","v":""},{"$f":"IF($B$5>5,ETL!$I$179, \"\")","v":""},{"$f":"IF($B$5>5,ETL!$H$179, \"\")","v":""},{"$f":"IF($B$5>5,ETL!$K$180, \"\")","v":""},{"$f":"IF($B$5>5,ETL!$I$180, \"\")","v":""},{"$f":"IF($B$5>5,ETL!$H$180, \"\")","v":""},{"$f":"IF($B$5>5,ETL!$K$181, \"\")","v":""},{"$f":"IF($B$5>5,ETL!$I$181, \"\")","v":""},{"$f":"IF($B$5>5,ETL!$H$181, \"\")","v":""}]
[7,{"$f":"IF($B$5>6,ETL!$D$61,\"\")","v":""},{"$f":"IF($B$5>6,ETL!$D$6, \"\")","v":""},{"$f":"IF($B$5>6,ETL!$G$3, \"\")","v":""},{"$f":"IF($B$5>6,ETL!$G$7, \"\")","v":""},{"$f":"IF($B$5>6,ETL!$D$11, \"\")","v":""},{"$f":"IF($B$5>6,ETL!$G$183, \"\")","v":""},{"$f":"IF($B$5>6,ETL!$G$188, \"\")","v":""},{"$f":"IF($B$5>6,ETL!$G$189, \"\")","v":""},{"$f":"IF($B$5>6,ETL!$G$184,\"\")","v":""},{"$f":"IF($B$5>6,ETL!$G$186, \"\")","v":""},{"$f":"ETL!$D$190","v":1},{"$f":"IF($B$5>6,ETL!$K$192, \"\")","v":""},{"$f":"IF($B$5>6,ETL!$I$192, \"\")","v":""},{"$f":"IF($B$5>6,ETL!$H$192, \"\")","v":""},{"$f":"IF($B$5>6,ETL!$K$193, \"\")","v":""},{"$f":"IF($B$5>6,ETL!$I$193, \"\")","v":""},{"$f":"IF($B$5>6,ETL!$H$193, \"\")","v":""},{"$f":"IF($B$5>6,ETL!$K$194, \"\")","v":""},{"$f":"IF($B$5>6,ETL!$I$194, \"\")","v":""},{"$f":"IF($B$5>6, ETL!$H$194,\"\")","v":""},{"$f":"IF($B$5>6,ETL!$K$195, \"\")","v":""},{"$f":"IF($B$5>6,ETL!$I$195, \"\")","v":""},{"$f":"IF($B$5>6,ETL!$H$195, \"\")","v":""},{"$f":"IF($B$5>6,ETL!$K$196, \"\")","v":""},{"$f":"IF($B$5>6,ETL!$I$196, \"\")","v":""},{"$f":"IF($B$5>6,ETL!$H$196, \"\")","v":""},{"$f":"IF($B$5>6,ETL!$K$197, \"\")","v":""},{"$f":"IF($B$5>6,ETL!$I$197, \"\")","v":""},{"$f":"IF($B$5>6,ETL!$H$197, \"\")","v":""},{"$f":"IF($B$5>6,ETL!$K$198, \"\")","v":""},{"$f":"IF($B$5>6,ETL!$I$198, \"\")","v":""},{"$f":"IF($B$5>6,ETL!$H$198, \"\")","v":""}]
[]
["物質マスタ",{"$f":"ETL!$D$80","v":1},"←様式20の数と同じ↓CAS番号なしが選択された行のみ出力（ほかは空欄）"]
["No","AM019_CASRegistryNumber","AM019_GovOrdinance","AM019_ScheduleId",null,"AM019_JapaneseChemicalName","AM019_SelectFlag"]
[1,{"$f":"IF(ETL!$D$82=STRING_NOCAS,ETL!$G$82,\"\")","v":""},{"$f":"IF($B17 <> \"\",ETL!$G$87,\"\")","v":""},{"$f":"IF($B17 <> \"\",ETL!$G$88,\"\")","v":""},null,{"$f":"IF($B17 <> \"\",ETL!$G$83,\"\")","v":""},{"$f":"IF($B17 <> \"\", \"1\"&\"\", \"\")","v":""}]
[2,{"$f":"IF(ETL!$D$99=STRING_NOCAS,ETL!$G$99,\"\")","v":""},{"$f":"IF($B18 <> \"\",ETL!$G$104,\"\")","v":""},{"$f":"IF($B18 <> \"\",ETL!$G$105,\"\")","v":""},null,{"$f":"IF($B18 <> \"\",ETL!$G$100,\"\")","v":""},{"$f":"IF($B18 <> \"\", \"1\"&\"\", \"\")","v":""}]
[3,{"$f":"IF(ETL!$D$116=STRING_NOCAS,ETL!$G$116,\"\")","v":""},{"$f":"IF($B19 <> \"\",ETL!$G$121,\"\")","v":""},{"$f":"IF($B19 <> \"\",ETL!$G$122,\"\")","v":""},null,{"$f":"IF($B19 <> \"\",ETL!$G$117,\"\")","v":""},{"$f":"IF($B19 <> \"\", \"1\"&\"\", \"\")","v":""}]
[4,{"$f":"IF(ETL!$D$133=STRING_NOCAS,ETL!$G$133,\"\")","v":""},{"$f":"IF($B20 <> \"\",ETL!$G$138,\"\")","v":""},{"$f":"IF($B20 <> \"\",ETL!$G$139,\"\")","v":""},null,{"$f":"IF($B20 <> \"\",ETL!$G$134,\"\")","v":""},""]
[5,{"$f":"IF(ETL!$D$150=STRING_NOCAS,ETL!$G$150,\"\")","v":""},{"$f":"IF($B21 <> \"\",ETL!$G$155,\"\")","v":""},{"$f":"IF($B21 <> \"\",ETL!$G$156,\"\")","v":""},null,{"$f":"IF($B21 <> \"\",ETL!$G$151,\"\")","v":""},""]
[6,{"$f":"IF(ETL!$D$167=STRING_NOCAS,ETL!$G$167,\"\")","v":""},{"$f":"IF($B22 <> \"\",ETL!$G$172,\"\")","v":""},{"$f":"IF($B22 <> \"\",ETL!$G$173,\"\")","v":""},null,{"$f":"IF($B22 <> \"\",ETL!$G$168,\"\")","v":""},""]
[7,{"$f":"IF(ETL!$D$184=STRING_NOCAS,ETL!$G$184,\"\")","v":""},{"$f":"IF($B23 <> \"\",ETL!$G$189,\"\")","v":""},{"$f":"IF($B23 <> \"\",ETL!$G$190,\"\")","v":""},null,{"$f":"IF($B23 <> \"\",ETL!$G$185,\"\")","v":""},""]
[]
["輸出入備考情報",1]
["No","AT025_RelatesYear","AT025_PlantSiteCode","AT025_Remark"]
[1,{"$f":"ETL!$D$6","v":0},{"$f":"ETL!$D$61","v":""},{"$f":"ETL!$D$77","v":""}]

{"sheet":"ETL","index":4,"n_rows":198,"n_cols":12,"rows_kept":198,"cut":false,"hidden":true,"merged":[[42,0,48,0],[49,0,55,0],[57,0,57,2],[61,0,72,0],[1,0,1,2],[11,0,18,0],[19,0,26,0],[27,0,34,0],[35,0,41,0],[182,0,197,0],[75,0,75,2],[76,0,76,2],[97,0,112,0],[114,0,129,0],[131,0,146,0],[148,0,163,0],[165,0,180,0],[80,0,95,0],[78,0,78,2],[79,0,79,2]]}
["基本情報"]
["項目",null,null,"値",null,"データ変換","値"]
["届出日","年",null,{"$f":"基本情報・事業者情報の作成!$D$41","v":0},null,"届出年月日",{"$f":"DATE(D3,  D4, D5)","v":{"$error":"#NUM!"}}]
[null,"月",null,{"$f":"基本情報・事業者情報の作成!$I$41","v":0},null,null,{"$f":"CONCATENATE(TEXT($G$3,\"ggge年\"), \"(\", $D$3, ,\"年)\",$D$4,\"月\",$D$5,\"日\")","v":{"$error":"#NUM!"}}]
[null,"日",null,{"$f":"基本情報・事業者情報の作成!$L$41","v":0}]
["届出対象年",null,null,{"$f":"基本情報・事業者情報の作成!$D$44","v":0}]
["氏名または名称",null,null,{"$f":"基本情報・事業者情報の作成!$V$47&\"\"","v":""},null,"氏名、法人役職、氏名の結合",{"$f":"CONCATENATE(D7,IF(D9=\"\",\"\",CONCATENATE(\" \",D9)),IF(D10=\"\",\"\",CONCATENATE(\" \",D10)))","v":""}]
["氏名または名称（英語）",null,null,{"$f":"基本情報・事業者情報の作成!$W$47&\"\"","v":""},null,"法人役職、氏名の結合",{"$f":"CONCATENATE(D9,IF(D10=\"\",\"\",CONCATENATE(\" \",D10)))","v":""}]
["法人にあっては、\nその代表者の役職",null,null,{"$f":"基本情報・事業者情報の作成!$V$48&\"\"","v":""}]
["法人にあっては、\nその代表者の氏名",null,null,{"$f":"基本情報・事業者情報の作成!$V$49&\"\"","v":""}]
["住所",null,null,{"$f":"基本情報・事業者情報の作成!$V$50&\"\"","v":""}]
["届出書関係担当者の情報①","氏名",null,{"$f":"基本情報・事業者情報の作成!$V$54&\"\"","v":""}]
[null,"郵便番号",null,{"$f":"基本情報・事業者情報の作成!$V$55&\"\"","v":""}]
[null,"住所",null,{"$f":"基本情報・事業者情報の作成!$V$56&\"\"","v":""}]
[null,"部署名",null,{"$f":"基本情報・事業者情報の作成!$V$57&\"\"","v":""}]
[null,"役職",null,{"$f":"基本情報・事業者情報の作成!$V$58&\"\"","v":""}]
[null,"電話番号",null,{"$f":"基本情報・事業者情報の作成!$V$59&\"\"","v":""}]
[null,"FAX番号",null,{"$f":"基本情報・事業者情報の作成!$V$60&\"\"&\"\"","v":""}]
[null,"メールアドレス",null,{"$f":"基本情報・事業者情報の作成!$V$61&\"\"","v":""}]
["届出書関係担当者の情報②","氏名",null,{"$f":"基本情報・事業者情報の作成!$V$62&\"\"","v":""}]
[null,"郵便番号",null,{"$f":"基本情報・事業者情報の作成!$V$63&\"\"","v":""}]
[null,"住所",null,{"$f":"基本情報・事業者情報の作成!$V$64&\"\"","v":""}]
[null,"部署名",null,{"$f":"基本情報・事業者情報の作成!$V$65&\"\"","v":""}]
[null,"役職",null,{"$f":"基本情報・事業者情報の作成!$V$66&\"\"","v":""}]
[null,"電話番号",null,{"$f":"基本情報・事業者情報の作成!$V$67&\"\"","v":""}]
[null,"FAX番号",null,{"$f":"基本情報・事業者情報の作成!$V$68&\"\"&\"\"","v":""}]
[null,"メールアドレス",null,{"$f":"基本情報・事業者情報の作成!$V$69&\"\"","v":""}]
["届出書関係担当者の情報③","氏名",null,{"$f":"基本情報・事業者情報の作成!$V$70&\"\"","v":""}]
[null,"郵便番号",null,{"$f":"基本情報・事業者情報の作成!$V$71&\"\"","v":""}]
[null,"住所",null,{"$f":"基本情報・事業者情報の作成!$V$72&\"\"","v":""}]
[null,"部署名",null,{"$f":"基本情報・事業者情報の作成!$V$73&\"\"","v":""}]
[null,"役職",null,{"$f":"基本情報・事業者情報の作成!$V$74&\"\"","v":""}]
[null,"電話番号",null,{"$f":"基本情報・事業者情報の作成!$V$75&\"\"","v":""}]
[null,"FAX番号",null,{"$f":"基本情報・事業者情報の作成!$V$76&\"\"&\"\"","v":""}]
[null,"メールアドレス",null,{"$f":"基本情報・事業者情報の作成!$V$77&\"\"","v":""}]
["国際検査通告書関係担当者の情報①","氏名",null,{"$f":"基本情報・事業者情報の作成!$V$81&\"\"","v":""}]
[null,"住所",null,{"$f":"基本情報・事業者情報の作成!$V$82&\"\"","v":""}]
[null,"部署名",null,{"$f":"基本情報・事業者情報の作成!$V$83&\"\"","v":""}]
[null,"役職",null,{"$f":"基本情報・事業者情報の作成!$V$84&\"\"","v":""}]
[null,"電話番号",null,{"$f":"基本情報・事業者情報の作成!$V$85&\"\"","v":""}]
[null,"FAX番号",null,{"$f":"基本情報・事業者情報の作成!$V$86&\"\"","v":""}]
[null,"メールアドレス",null,{"$f":"基本情報・事業者情報の作成!$V$87&\"\"","v":""}]
["国際検査通告書関係担当者の情報②","氏名",null,{"$f":"基本情報・事業者情報の作成!$V$88&\"\"","v":""}]
[null,"住所",null,{"$f":"基本情報・事業者情報の作成!$V$89&\"\"","v":""}]
[null,"部署名",null,{"$f":"基本情報・事業者情報の作成!$V$90&\"\"","v":""}]
[null,"役職",null,{"$f":"基本情報・事業者情報の作成!$V$91&\"\"","v":""}]
[null,"電話番号",null,{"$f":"基本情報・事業者情報の作成!$V$92&\"\"","v":""}]
[null,"FAX番号",null,{"$f":"基本情報・事業者情報の作成!$V$93&\"\"","v":""}]
[null,"メールアドレス",null,{"$f":"基本情報・事業者情報の作成!$V$94&\"\"","v":""}]
["国際検査通告書関係担当者の情報③","氏名",null,{"$f":"基本情報・事業者情報の作成!$V$95&\"\"","v":""}]
[null,"住所",null,{"$f":"基本情報・事業者情報の作成!$V$96&\"\"","v":""}]
[null,"部署名",null,{"$f":"基本情報・事業者情報の作成!$V$97&\"\"","v":""}]
[null,"役職",null,{"$f":"基本情報・事業者情報の作成!$V$98&\"\"","v":""}]
[null,"電話番号",null,{"$f":"基本情報・事業者情報の作成!$V$99&\"\"","v":""}]
[null,"FAX番号",null,{"$f":"基本情報・事業者情報の作成!$V$100&\"\"","v":""}]
[null,"メールアドレス",null,{"$f":"基本情報・事業者情報の作成!$V$101&\"\"","v":""}]
["事業所情報"]
["項目",null,null,"値",null,"データ変換","値"]
["事業所の名称",null,null,{"$f":"基本情報・事業者情報の作成!$V$109&\"\"","v":""}]
["事業所の名称（英語）",null,null,{"$f":"基本情報・事業者情報の作成!$W$109&\"\"","v":""}]
["事業所コード",null,null,{"$f":"UPPER(基本情報・事業者情報の作成!$V$110&\"\")","v":""}]
["所在地","都道府県",null,{"$f":"基本情報・事業者情報の作成!$V$111&\"\"","v":""},null,"都道府県コード",{"$f":"TEXT(IF(D62=\"\", \"\", (VLOOKUP(D62, LIST!B5:C51, 2, FALSE))), \"@\")","v":""}]
[null,"都道府県（英語）",null,{"$f":"基本情報・事業者情報の作成!$W$111&\"\"","v":""},null,"事業所所在地",{"$f":"CONCATENATE(D62, D64, D66)","v":""}]
[null,"市／区／郡",null,{"$f":"基本情報・事業者情報の作成!$V$112&\"\"","v":""}]
[null,"市／区／郡（英語）",null,{"$f":"基本情報・事業者情報の作成!$W$112&\"\"","v":""}]
[null,"町村および番地",null,{"$f":"基本情報・事業者情報の作成!$V$113&\"\"","v":""}]
[null,"町村および番地（英語）",null,{"$f":"基本情報・事業者情報の作成!$W$113&\"\"","v":""}]
[null,"緯度（度）",null,{"$f":"基本情報・事業者情報の作成!$V$114","v":0},null,"緯度経度",{"$f":"CONCATENATE(D68, \"/\", D69, \"/\", D70, \" N \", D71, \"/\", D72, \"/\", D73, \" E\")","v":"0/0/0 N 0/0/0 E"}]
[null,"緯度（分）",null,{"$f":"基本情報・事業者情報の作成!$V$114","v":0}]
[null,"緯度（秒）",null,{"$f":"基本情報・事業者情報の作成!$V$114","v":0}]
[null,"経度（度）",null,{"$f":"基本情報・事業者情報の作成!$V$114","v":0}]
[null,"経度（分）",null,{"$f":"基本情報・事業者情報の作成!$V$114","v":0}]
[null,"経度（秒）",null,{"$f":"基本情報・事業者情報の作成!$V$114","v":0}]
["事業所についての追加的情報（英語で記入）",null,null,{"$f":"基本情報・事業者情報の作成!$V$114&\"\"","v":""}]
["変更点"]
["項目",null,null,"値"]
["変更点",null,null,{"$f":"届出書の作成!$V$18&\"\"","v":""}]
["様式20"]
["項目",null,null,"値"]
["様式20の数",null,null,{"$f":"CNT_Form20","v":1}]
["輸出（輸入）をした物質の情報（１）","輸出または輸入の別",null,{"$f":"届出書の作成!$V25&\"\"","v":""},null,"輸出入区分",{"$f":"TEXT(IF(D81=\"\", \"\", IFERROR(VLOOKUP(D81, LIST!$N$5:$O$100, 2, FALSE), \"\")), \"@\")","v":""}]
[null,"CAS番号",null,{"$f":"届出書の作成!$V26&\"\"","v":""},null,"CAS番号",{"$f":"IF($D82=STRING_NOCAS, $D84, $D82)","v":""}]
[null,"物質名称（日本語名）",null,{"$f":"届出書の作成!$V27&\"\"","v":""},null,"物質名称",{"$f":"IF($D82=STRING_NOCAS, $D85, $D83)","v":""}]
[null,"CASなし　CAS番号",null,{"$f":"届出書の作成!$V28&\"\"","v":""},null,"物質ID",{"$f":"IF($D82=STRING_NOCAS, 0, IFERROR(VLOOKUP($D82,LIST!$AG$6:$AL$500,2,FALSE), 0))","v":0}]
[null,"CASなし　物質名称（日本語名）",null,{"$f":"届出書の作成!$V29&\"\"","v":""}]
[null,"第一種、第二種の区分",null,{"$f":"届出書の作成!$V30&\"\"","v":""},null,"物質区分",{"$f":"TEXT(IF(D86=\"\", \"\", IFERROR(VLOOKUP(D86, LIST!$U$5:$V$100, 2, FALSE), \"\")), \"@\")","v":""}]
[null,"指定物質番号",null,{"$f":"届出書の作成!$V31&\"\"","v":""},null,"政令番号",{"$f":"TEXT(IF(OR($D86=\"\", $D87=\"\"), \"\", IFERROR(VLOOKUP(CONCATENATE($D86, \"_\", $D87), LIST!$Z$5:$AD$100, 2, FALSE), \"\")), \"@\")","v":""}]
[null,"相手国の数",null,{"$f":"届出書の作成!$V32","v":1},null,"条約剤番号",{"$f":"TEXT(IF(OR($D86=\"\", $D87=\"\"), \"\", IFERROR(VLOOKUP(CONCATENATE($D86, \"_\", $D87), LIST!$Z$5:$AD$100, 5, FALSE), \"\")), \"@\")","v":""}]
[null,null,"相手国","数量(kg)",null,"国名","国コード","数値（DB decimal 16,7）","文字列（DB decimal 16,7）","文字列（帳票）","国ID","行数"]
[null,"相手国（１）",{"$f":"届出書の作成!$V34&\"\"","v":""},{"$f":"届出書の作成!$W34","v":0},null,{"$f":"TEXT(IF($C90=\"\", \"\", IFERROR(VLOOKUP($C90, LIST!$Q$5:$S$500, 2, FALSE), \"\")), \"@\")","v":""},{"$f":"TEXT(IF($C90=\"\", \"\", IFERROR(VLOOKUP($C90, LIST!$Q$5:$S$500, 3, FALSE), \"\")), \"@\")","v":""},{"$f":"$D90","v":0},{"$f":"IF($H90=0,\"0\"&\"\",IF(RIGHT(TEXT($H90, \"0.#######\"),1)=\".\", TEXT($H90, \"#0\"), TEXT($H90, \"#0.#######\")))","v":"0"},{"$f":"IF($H90=0,\"0\"&\"\",IF(RIGHT(TEXT($H90, \"0.#######\"),1)=\".\", TEXT($H90, \"#,###\"), TEXT($H90, \"#,##0.#######\")))","v":"0"},{"$f":"TEXT(IF($G90=\"\", \"\", IFERROR(VLOOKUP($G90, LIST!$S$5:$T$500, 2, FALSE), \"\")), \"@\")","v":""},1]
[null,"相手国（２）",{"$f":"届出書の作成!$V35&\"\"","v":""},{"$f":"届出書の作成!$W35","v":0},null,{"$f":"IF( $D88 > 1, TEXT(IF($C91=\"\", \"\", IFERROR(VLOOKUP($C91, LIST!$Q$5:$S$500, 2, FALSE), \"\")), \"@\"), \"\")","v":""},{"$f":"IF( $D88 > 1, TEXT(IF($C91=\"\", \"\", IFERROR(VLOOKUP($C91, LIST!$Q$5:$S$500, 3, FALSE), \"\")), \"@\"), \"\")","v":""},{"$f":"$D91","v":0},{"$f":"IF($D$88 < $L91,\"\",IF($H91=0,\"0\"&\"\",IF(RIGHT(TEXT($H91, \"0.#######\"),1)=\".\", TEXT($H91, \"#0\"), TEXT($H91, \"#0.#######\"))))","v":""},{"$f":"IF($D$88 < $L91,\"\",IF($H91=0,\"0\"&\"\",IF(RIGHT(TEXT($H91, \"0.#######\"),1)=\".\", TEXT($H91, \"#,##0\"), TEXT($H91, \"#,##0.#######\"))))","v":""},{"$f":"TEXT(IF($G91=\"\", \"\", IFERROR(VLOOKUP($G91, LIST!$S$5:$T$500, 2, FALSE), \"\")), \"@\")","v":""},2]
[null,"相手国（３）",{"$f":"届出書の作成!$V36&\"\"","v":""},{"$f":"届出書の作成!$W36","v":0},null,{"$f":"IF( $D88 > 2, TEXT(IF($C92=\"\", \"\", IFERROR(VLOOKUP($C92, LIST!$Q$5:$S$500, 2, FALSE), \"\")), \"@\"), \"\")","v":""},{"$f":"IF( $D88 > 2, TEXT(IF($C92=\"\", \"\", IFERROR(VLOOKUP($C92, LIST!$Q$5:$S$500, 3, FALSE), \"\")), \"@\"), \"\")","v":""},0,{"$f":"IF($D$88 < $L92,\"\",IF($H92=0,\"0\"&\"\",IF(RIGHT(TEXT($H92, \"0.#######\"),1)=\".\", TEXT($H92, \"#0\"), TEXT($H92, \"#0.#######\"))))","v":""},{"$f":"IF($D$88 < $L92,\"\",IF($H92=0,\"0\"&\"\",IF(RIGHT(TEXT($H92, \"0.#######\"),1)=\".\", TEXT($H92, \"#,##0\"), TEXT($H92, \"#,##0.#######\"))))","v":""},{"$f":"TEXT(IF($G92=\"\", \"\", IFERROR(VLOOKUP($G92, LIST!$S$5:$T$500, 2, FALSE), \"\")), \"@\")","v":""},3]
[null,"相手国（４）",{"$f":"届出書の作成!$V37&\"\"","v":""},{"$f":"届出書の作成!$W37","v":0},null,{"$f":"IF( $D88 > 3, TEXT(IF($C93=\"\", \"\", IFERROR(VLOOKUP($C93, LIST!$Q$5:$S$500, 2, FALSE), \"\")), \"@\"), \"\")","v":""},{"$f":"IF( $D88 > 3, TEXT(IF($C93=\"\", \"\", IFERROR(VLOOKUP($C93, LIST!$Q$5:$S$500, 3, FALSE), \"\")), \"@\"), \"\")","v":""},0,"","",{"$f":"TEXT(IF($G93=\"\", \"\", IFERROR(VLOOKUP($G93, LIST!$S$5:$T$500, 2, FALSE), \"\")), \"@\")","v":""},4]
[null,"相手国（５）",{"$f":"届出書の作成!$V38&\"\"","v":""},{"$f":"届出書の作成!$W38","v":0},null,{"$f":"IF( $D88 > 4, TEXT(IF($C94=\"\", \"\", IFERROR(VLOOKUP($C94, LIST!$Q$5:$S$500, 2, FALSE), \"\")), \"@\"), \"\")","v":""},{"$f":"IF( $D88 > 4, TEXT(IF($C94=\"\", \"\", IFERROR(VLOOKUP($C94, LIST!$Q$5:$S$500, 3, FALSE), \"\")), \"@\"), \"\")","v":""},0,"","",{"$f":"TEXT(IF($G94=\"\", \"\", IFERROR(VLOOKUP($G94, LIST!$S$5:$T$500, 2, FALSE), \"\")), \"@\")","v":""},5]
[null,"相手国（６）",{"$f":"届出書の作成!$V39&\"\"","v":""},{"$f":"届出書の作成!$W39","v":0},null,{"$f":"IF( $D88 > 5, TEXT(IF($C95=\"\", \"\", IFERROR(VLOOKUP($C95, LIST!$Q$5:$S$500, 2, FALSE), \"\")), \"@\"), \"\")","v":""},{"$f":"IF( $D88 > 5, TEXT(IF($C95=\"\", \"\", IFERROR(VLOOKUP($C95, LIST!$Q$5:$S$500, 3, FALSE), \"\")), \"@\"), \"\")","v":""},0,"","",{"$f":"TEXT(IF($G95=\"\", \"\", IFERROR(VLOOKUP($G95, LIST!$S$5:$T$500, 2, FALSE), \"\")), \"@\")","v":""},6]
[null,"相手国（７）",{"$f":"届出書の作成!$V40&\"\"","v":""},{"$f":"届出書の作成!$W40","v":0},null,{"$f":"IF( $D88 > 6, TEXT(IF($C96=\"\", \"\", IFERROR(VLOOKUP($C96, LIST!$Q$5:$S$500, 2, FALSE), \"\")), \"@\"), \"\")","v":""},{"$f":"IF( $D88 > 6, TEXT(IF($C96=\"\", \"\", IFERROR(VLOOKUP($C96, LIST!$Q$5:$S$500, 3, FALSE), \"\")), \"@\"), \"\")","v":""},0,"","",{"$f":"TEXT(IF($G96=\"\", \"\", IFERROR(VLOOKUP($G96, LIST!$S$5:$T$500, 2, FALSE), \"\")), \"@\")","v":""},7]
[]
["輸出（輸入）をした物質の情報（２）","輸出または輸入の別",null,{"$f":"届出書の作成!$V42&\"\"","v":""},null,"輸出入区分",{"$f":"TEXT(IF(D98=\"\", \"\", IFERROR(VLOOKUP(D98, LIST!$N$5:$O$100, 2, FALSE), \"\")), \"@\")","v":""}]
[null,"CAS番号",null,{"$f":"届出書の作成!$V43&\"\"","v":""},null,"CAS番号",{"$f":"IF($D99=STRING_NOCAS, $D101, $D99)","v":""}]
[null,"物質名称（日本語名）",null,{"$f":"届出書の作成!$V44&\"\"","v":""},null,"物質名称",{"$f":"IF($D99=STRING_NOCAS, $D102, $D100)","v":""}]
[null,"CASなし　CAS番号",null,{"$f":"届出書の作成!$V45&\"\"","v":""},null,"物質ID",{"$f":"IF($D99=STRING_NOCAS, 0, IFERROR(VLOOKUP($D99,LIST!$AG$6:$AL$500,2,FALSE), 0))","v":0}]
[null,"CASなし　物質名称（日本語名）",null,{"$f":"届出書の作成!$V46&\"\"","v":""}]
[null,"第一種、第二種の区分",null,{"$f":"届出書の作成!$V47&\"\"","v":""},null,"物質区分",{"$f":"TEXT(IF(D103=\"\", \"\", IFERROR(VLOOKUP(D103, LIST!$U$5:$V$100, 2, FALSE), \"\")), \"@\")","v":""}]
[null,"指定物質番号",null,{"$f":"届出書の作成!$V48&\"\"","v":""},null,"政令番号",{"$f":"TEXT(IF(OR($D103=\"\", $D104=\"\"), \"\", IFERROR(VLOOKUP(CONCATENATE($D103, \"_\", $D104), LIST!$Z$5:$AD$100, 2, FALSE), \"\")), \"@\")","v":""}]
[null,"相手国の数",null,{"$f":"届出書の作成!$V49","v":1},null,"条約剤番号",{"$f":"TEXT(IF(OR($D103=\"\", $D104=\"\"), \"\", IFERROR(VLOOKUP(CONCATENATE($D103, \"_\", $D104), LIST!$Z$5:$AD$100, 5, FALSE), \"\")), \"@\")","v":""}]
[null,null,"相手国","数量(kg)",null,"国名","国コード","数値（DB decimal 16,7）","文字列（DB decimal 16,7）","文字列（帳票）","国ID","行数"]
[null,"相手国（１）",{"$f":"届出書の作成!$V51&\"\"","v":""},{"$f":"届出書の作成!$W51","v":0},null,{"$f":"TEXT(IF($C107=\"\", \"\", IFERROR(VLOOKUP($C107, LIST!$Q$5:$S$500, 2, FALSE), \"\")), \"@\")","v":""},{"$f":"TEXT(IF($C107=\"\", \"\", IFERROR(VLOOKUP($C107, LIST!$Q$5:$S$500, 3, FALSE), \"\")), \"@\")","v":""},{"$f":"$D107","v":0},{"$f":"IF($H107=0,\"0\"&\"\",IF(RIGHT(TEXT($H107, \"0.#######\"),1)=\".\", TEXT($H107, \"#0\"), TEXT($H107, \"#0.#######\")))","v":"0"},{"$f":"IF($H107=0,\"0\"&\"\",IF(RIGHT(TEXT($H107, \"0.#######\"),1)=\".\", TEXT($H107, \"#,###\"), TEXT($H107, \"#,##0.#######\")))","v":"0"},{"$f":"TEXT(IF($G107=\"\", \"\", IFERROR(VLOOKUP($G107, LIST!$S$5:$T$500, 2, FALSE), \"\")), \"@\")","v":""},1]
[null,"相手国（２）",{"$f":"届出書の作成!$V52&\"\"","v":""},{"$f":"届出書の作成!$W52","v":0},null,{"$f":"IF( $D105 > 1, TEXT(IF($C108=\"\", \"\", IFERROR(VLOOKUP($C108, LIST!$Q$5:$S$500, 2, FALSE), \"\")), \"@\"), \"\")","v":""},{"$f":"IF( $D105 > 1, TEXT(IF($C108=\"\", \"\", IFERROR(VLOOKUP($C108, LIST!$Q$5:$S$500, 3, FALSE), \"\")), \"@\"), \"\")","v":""},{"$f":"$D108","v":0},{"$f":"IF($D$105 < $L108,\"\",IF($H108=0,\"0\"&\"\",IF(RIGHT(TEXT($H108, \"0.#######\"),1)=\".\", TEXT($H108, \"#0\"), TEXT($H108, \"#0.#######\"))))","v":""},{"$f":"IF($D$105 < $L108,\"\",IF($H108=0,\"0\"&\"\",IF(RIGHT(TEXT($H108, \"0.#######\"),1)=\".\", TEXT($H108, \"#,##0\"), TEXT($H108, \"#,##0.#######\"))))","v":""},{"$f":"TEXT(IF($G108=\"\", \"\", IFERROR(VLOOKUP($G108, LIST!$S$5:$T$500, 2, FALSE), \"\")), \"@\")","v":""},2]
[null,"相手国（３）",{"$f":"届出書の作成!$V53&\"\"","v":""},{"$f":"届出書の作成!$W53","v":0},null,{"$f":"IF( $D105 > 2, TEXT(IF($C109=\"\", \"\", IFERROR(VLOOKUP($C109, LIST!$Q$5:$S$500, 2, FALSE), \"\")), \"@\"), \"\")","v":""},{"$f":"IF( $D105 > 2, TEXT(IF($C109=\"\", \"\", IFERROR(VLOOKUP($C109, LIST!$Q$5:$S$500, 3, FALSE), \"\")), \"@\"), \"\")","v":""},0,{"$f":"IF($D$105 < $L109,\"\",IF($H109=0,\"0\"&\"\",IF(RIGHT(TEXT($H109, \"0.#######\"),1)=\".\", TEXT($H109, \"#0\"), TEXT($H109, \"#0.#######\"))))","v":""},{"$f":"IF($D$105 < $L109,\"\",IF($H109=0,\"0\"&\"\",IF(RIGHT(TEXT($H109, \"0.#######\"),1)=\".\", TEXT($H109, \"#,##0\"), TEXT($H109, \"#,##0.#######\"))))","v":""},{"$f":"TEXT(IF($G109=\"\", \"\", IFERROR(VLOOKUP($G109, LIST!$S$5:$T$500, 2, FALSE), \"\")), \"@\")","v":""},3]
[null,"相手国（４）",{"$f":"届出書の作成!$V54&\"\"","v":""},{"$f":"届出書の作成!$W54","v":0},null,{"$f":"IF( $D105 > 3, TEXT(IF($C110=\"\", \"\", IFERROR(VLOOKUP($C110, LIST!$Q$5:$S$500, 2, FALSE), \"\")), \"@\"), \"\")","v":""},{"$f":"IF( $D105 > 3, TEXT(IF($C110=\"\", \"\", IFERROR(VLOOKUP($C110, LIST!$Q$5:$S$500, 3, FALSE), \"\")), \"@\"), \"\")","v":""},0,"","",{"$f":"TEXT(IF($G110=\"\", \"\", IFERROR(VLOOKUP($G110, LIST!$S$5:$T$500, 2, FALSE), \"\")), \"@\")","v":""},4]
[null,"相手国（５）",{"$f":"届出書の作成!$V55&\"\"","v":""},{"$f":"届出書の作成!$W55","v":0},null,{"$f":"IF( $D105 > 4, TEXT(IF($C111=\"\", \"\", IFERROR(VLOOKUP($C111, LIST!$Q$5:$S$500, 2, FALSE), \"\")), \"@\"), \"\")","v":""},{"$f":"IF( $D105 > 4, TEXT(IF($C111=\"\", \"\", IFERROR(VLOOKUP($C111, LIST!$Q$5:$S$500, 3, FALSE), \"\")), \"@\"), \"\")","v":""},0,"","",{"$f":"TEXT(IF($G111=\"\", \"\", IFERROR(VLOOKUP($G111, LIST!$S$5:$T$500, 2, FALSE), \"\")), \"@\")","v":""},5]
[null,"相手国（６）",{"$f":"届出書の作成!$V56&\"\"","v":""},{"$f":"届出書の作成!$W56","v":0},null,{"$f":"IF( $D105 > 5, TEXT(IF($C112=\"\", \"\", IFERROR(VLOOKUP($C112, LIST!$Q$5:$S$500, 2, FALSE), \"\")), \"@\"), \"\")","v":""},{"$f":"IF( $D105 > 5, TEXT(IF($C112=\"\", \"\", IFERROR(VLOOKUP($C112, LIST!$Q$5:$S$500, 3, FALSE), \"\")), \"@\"), \"\")","v":""},0,"","",{"$f":"TEXT(IF($G112=\"\", \"\", IFERROR(VLOOKUP($G112, LIST!$S$5:$T$500, 2, FALSE), \"\")), \"@\")","v":""},6]
[null,"相手国（７）",{"$f":"届出書の作成!$V57&\"\"","v":""},{"$f":"届出書の作成!$W57","v":0},null,{"$f":"IF( $D105 > 6, TEXT(IF($C113=\"\", \"\", IFERROR(VLOOKUP($C113, LIST!$Q$5:$S$500, 2, FALSE), \"\")), \"@\"), \"\")","v":""},{"$f":"IF( $D105 > 6, TEXT(IF($C113=\"\", \"\", IFERROR(VLOOKUP($C113, LIST!$Q$5:$S$500, 3, FALSE), \"\")), \"@\"), \"\")","v":""},0,"","",{"$f":"TEXT(IF($G113=\"\", \"\", IFERROR(VLOOKUP($G113, LIST!$S$5:$T$500, 2, FALSE), \"\")), \"@\")","v":""},7]
[]
["輸出（輸入）をした物質の情報（３）","輸出または輸入の別",null,{"$f":"届出書の作成!$V59&\"\"","v":""},null,"輸出入区分",{"$f":"TEXT(IF(D115=\"\", \"\", IFERROR(VLOOKUP(D115, LIST!$N$5:$O$100, 2, FALSE), \"\")), \"@\")","v":""}]
[null,"CAS番号",null,{"$f":"届出書の作成!$V60&\"\"","v":""},null,"CAS番号",{"$f":"IF($D116=STRING_NOCAS, $D118, $D116)","v":""}]
[null,"物質名称（日本語名）",null,{"$f":"届出書の作成!$V61&\"\"","v":""},null,"物質名称",{"$f":"IF($D116=STRING_NOCAS, $D119, $D117)","v":""}]
[null,"CASなし　CAS番号",null,{"$f":"届出書の作成!$V62&\"\"","v":""},null,"物質ID",{"$f":"IF($D116=STRING_NOCAS, 0, IFERROR(VLOOKUP($D116,LIST!$AG$6:$AL$500,2,FALSE), 0))","v":0}]
[null,"CASなし　物質名称（日本語名）",null,{"$f":"届出書の作成!$V63&\"\"","v":""}]
[null,"第一種、第二種の区分",null,{"$f":"届出書の作成!$V64&\"\"","v":""},null,"物質区分",{"$f":"TEXT(IF(D120=\"\", \"\", IFERROR(VLOOKUP(D120, LIST!$U$5:$V$100, 2, FALSE), \"\")), \"@\")","v":""}]
[null,"指定物質番号",null,{"$f":"届出書の作成!$V65&\"\"","v":""},null,"政令番号",{"$f":"TEXT(IF(OR($D120=\"\", $D121=\"\"), \"\", IFERROR(VLOOKUP(CONCATENATE($D120, \"_\", $D121), LIST!$Z$5:$AD$100, 2, FALSE), \"\")), \"@\")","v":""}]
[null,"相手国の数",null,{"$f":"届出書の作成!$V66","v":1},null,"条約剤番号",{"$f":"TEXT(IF(OR($D120=\"\", $D121=\"\"), \"\", IFERROR(VLOOKUP(CONCATENATE($D120, \"_\", $D121), LIST!$Z$5:$AD$100, 5, FALSE), \"\")), \"@\")","v":""}]
[null,null,"相手国","数量(kg)",null,"国名","国コード","数値（DB decimal 16,7）","文字列（DB decimal 16,7）","文字列（帳票）","国ID","行数"]
[null,"相手国（１）",{"$f":"届出書の作成!$V68&\"\"","v":""},{"$f":"届出書の作成!$W68","v":0},null,{"$f":"TEXT(IF($C124=\"\", \"\", IFERROR(VLOOKUP($C124, LIST!$Q$5:$S$500, 2, FALSE), \"\")), \"@\")","v":""},{"$f":"TEXT(IF($C124=\"\", \"\", IFERROR(VLOOKUP($C124, LIST!$Q$5:$S$500, 3, FALSE), \"\")), \"@\")","v":""},{"$f":"$D124","v":0},{"$f":"IF($H124=0,\"0\"&\"\",IF(RIGHT(TEXT($H124, \"0.#######\"),1)=\".\", TEXT($H124, \"#0\"), TEXT($H124, \"#0.#######\")))","v":"0"},{"$f":"IF($H124=0,\"0\"&\"\",IF(RIGHT(TEXT($H124, \"0.#######\"),1)=\".\", TEXT($H124, \"#,###\"), TEXT($H124, \"#,##0.#######\")))","v":"0"},{"$f":"TEXT(IF($G124=\"\", \"\", IFERROR(VLOOKUP($G124, LIST!$S$5:$T$500, 2, FALSE), \"\")), \"@\")","v":""},1]
[null,"相手国（２）",{"$f":"届出書の作成!$V69&\"\"","v":""},{"$f":"届出書の作成!$W69","v":0},null,{"$f":"IF( $D122 > 1, TEXT(IF($C125=\"\", \"\", IFERROR(VLOOKUP($C125, LIST!$Q$5:$S$500, 2, FALSE), \"\")), \"@\"), \"\")","v":""},{"$f":"IF( $D122 > 1, TEXT(IF($C125=\"\", \"\", IFERROR(VLOOKUP($C125, LIST!$Q$5:$S$500, 3, FALSE), \"\")), \"@\"), \"\")","v":""},{"$f":"$D125","v":0},{"$f":"IF($D$122 < $L125,\"\",IF($H125=0,\"0\"&\"\",IF(RIGHT(TEXT($H125, \"0.#######\"),1)=\".\", TEXT($H125, \"#0\"), TEXT($H125, \"#0.#######\"))))","v":""},{"$f":"IF($D$122 < $L125,\"\",IF($H125=0,\"0\"&\"\",IF(RIGHT(TEXT($H125, \"0.#######\"),1)=\".\", TEXT($H125, \"#,##0\"), TEXT($H125, \"#,##0.#######\"))))","v":""},{"$f":"TEXT(IF($G125=\"\", \"\", IFERROR(VLOOKUP($G125, LIST!$S$5:$T$500, 2, FALSE), \"\")), \"@\")","v":""},2]
[null,"相手国（３）",{"$f":"届出書の作成!$V70&\"\"","v":""},{"$f":"届出書の作成!$W70","v":0},null,{"$f":"IF( $D122 > 2, TEXT(IF($C126=\"\", \"\", IFERROR(VLOOKUP($C126, LIST!$Q$5:$S$500, 2, FALSE), \"\")), \"@\"), \"\")","v":""},{"$f":"IF( $D122 > 2, TEXT(IF($C126=\"\", \"\", IFERROR(VLOOKUP($C126, LIST!$Q$5:$S$500, 3, FALSE), \"\")), \"@\"), \"\")","v":""},0,{"$f":"IF($D$122 < $L126,\"\",IF($H126=0,\"0\"&\"\",IF(RIGHT(TEXT($H126, \"0.#######\"),1)=\".\", TEXT($H126, \"#0\"), TEXT($H126, \"#0.#######\"))))","v":""},{"$f":"IF($D$122 < $L126,\"\",IF($H126=0,\"0\"&\"\",IF(RIGHT(TEXT($H126, \"0.#######\"),1)=\".\", TEXT($H126, \"#,##0\"), TEXT($H126, \"#,##0.#######\"))))","v":""},{"$f":"TEXT(IF($G126=\"\", \"\", IFERROR(VLOOKUP($G126, LIST!$S$5:$T$500, 2, FALSE), \"\")), \"@\")","v":""},3]
[null,"相手国（４）",{"$f":"届出書の作成!$V71&\"\"","v":""},{"$f":"届出書の作成!$W71","v":0},null,{"$f":"IF( $D122 > 3, TEXT(IF($C127=\"\", \"\", IFERROR(VLOOKUP($C127, LIST!$Q$5:$S$500, 2, FALSE), \"\")), \"@\"), \"\")","v":""},{"$f":"IF( $D122 > 3, TEXT(IF($C127=\"\", \"\", IFERROR(VLOOKUP($C127, LIST!$Q$5:$S$500, 3, FALSE), \"\")), \"@\"), \"\")","v":""},0,"","",{"$f":"TEXT(IF($G127=\"\", \"\", IFERROR(VLOOKUP($G127, LIST!$S$5:$T$500, 2, FALSE), \"\")), \"@\")","v":""},4]
[null,"相手国（５）",{"$f":"届出書の作成!$V72&\"\"","v":""},{"$f":"届出書の作成!$W72","v":0},null,{"$f":"IF( $D122 > 4, TEXT(IF($C128=\"\", \"\", IFERROR(VLOOKUP($C128, LIST!$Q$5:$S$500, 2, FALSE), \"\")), \"@\"), \"\")","v":""},{"$f":"IF( $D122 > 4, TEXT(IF($C128=\"\", \"\", IFERROR(VLOOKUP($C128, LIST!$Q$5:$S$500, 3, FALSE), \"\")), \"@\"), \"\")","v":""},0,"","",{"$f":"TEXT(IF($G128=\"\", \"\", IFERROR(VLOOKUP($G128, LIST!$S$5:$T$500, 2, FALSE), \"\")), \"@\")","v":""},5]
[null,"相手国（６）",{"$f":"届出書の作成!$V73&\"\"","v":""},{"$f":"届出書の作成!$W73","v":0},null,{"$f":"IF( $D122 > 5, TEXT(IF($C129=\"\", \"\", IFERROR(VLOOKUP($C129, LIST!$Q$5:$S$500, 2, FALSE), \"\")), \"@\"), \"\")","v":""},{"$f":"IF( $D122 > 5, TEXT(IF($C129=\"\", \"\", IFERROR(VLOOKUP($C129, LIST!$Q$5:$S$500, 3, FALSE), \"\")), \"@\"), \"\")","v":""},0,"","",{"$f":"TEXT(IF($G129=\"\", \"\", IFERROR(VLOOKUP($G129, LIST!$S$5:$T$500, 2, FALSE), \"\")), \"@\")","v":""},6]
[null,"相手国（７）",{"$f":"届出書の作成!$V74&\"\"","v":""},{"$f":"届出書の作成!$W74","v":0},null,{"$f":"IF( $D122 > 6, TEXT(IF($C130=\"\", \"\", IFERROR(VLOOKUP($C130, LIST!$Q$5:$S$500, 2, FALSE), \"\")), \"@\"), \"\")","v":""},{"$f":"IF( $D122 > 6, TEXT(IF($C130=\"\", \"\", IFERROR(VLOOKUP($C130, LIST!$Q$5:$S$500, 3, FALSE), \"\")), \"@\"), \"\")","v":""},0,"","",{"$f":"TEXT(IF($G130=\"\", \"\", IFERROR(VLOOKUP($G130, LIST!$S$5:$T$500, 2, FALSE), \"\")), \"@\")","v":""},7]
[]
["輸出（輸入）をした物質の情報（４）","輸出または輸入の別",null,{"$f":"届出書の作成!$V76&\"\"","v":""},null,"輸出入区分",{"$f":"TEXT(IF(D132=\"\", \"\", IFERROR(VLOOKUP(D132, LIST!$N$5:$O$100, 2, FALSE), \"\")), \"@\")","v":""}]
[null,"CAS番号",null,{"$f":"届出書の作成!$V77&\"\"","v":""},null,"CAS番号",{"$f":"IF($D133=STRING_NOCAS, $D135, $D133)","v":""}]
[null,"物質名称（日本語名）",null,{"$f":"届出書の作成!$V78&\"\"","v":""},null,"物質名称",{"$f":"IF($D133=STRING_NOCAS, $D136, $D134)","v":""}]
[null,"CASなし　CAS番号",null,{"$f":"届出書の作成!$V79&\"\"","v":""},null,"物質ID",{"$f":"IF($D133=STRING_NOCAS, 0, IFERROR(VLOOKUP($D133,LIST!$AG$6:$AL$500,2,FALSE), 0))","v":0}]
[null,"CASなし　物質名称（日本語名）",null,{"$f":"届出書の作成!$V80&\"\"","v":""}]
[null,"第一種、第二種の区分",null,{"$f":"届出書の作成!$V81&\"\"","v":""},null,"物質区分",{"$f":"TEXT(IF(D137=\"\", \"\", IFERROR(VLOOKUP(D137, LIST!$U$5:$V$100, 2, FALSE), \"\")), \"@\")","v":""}]
[null,"指定物質番号",null,{"$f":"届出書の作成!$V82&\"\"","v":""},null,"政令番号",{"$f":"TEXT(IF(OR($D137=\"\", $D138=\"\"), \"\", IFERROR(VLOOKUP(CONCATENATE($D137, \"_\", $D138), LIST!$Z$5:$AD$100, 2, FALSE), \"\")), \"@\")","v":""}]
[null,"相手国の数",null,{"$f":"届出書の作成!$V83","v":1},null,"条約剤番号",{"$f":"TEXT(IF(OR($D137=\"\", $D138=\"\"), \"\", IFERROR(VLOOKUP(CONCATENATE($D137, \"_\", $D138), LIST!$Z$5:$AD$100, 5, FALSE), \"\")), \"@\")","v":""}]
[null,null,"相手国","数量(kg)",null,"国名","国コード","数値（DB decimal 16,7）","文字列（DB decimal 16,7）","文字列（帳票）","国ID","行数"]
[null,"相手国（１）",{"$f":"届出書の作成!$V85&\"\"","v":""},{"$f":"届出書の作成!$W85","v":0},null,{"$f":"TEXT(IF($C141=\"\", \"\", IFERROR(VLOOKUP($C141, LIST!$Q$5:$S$500, 2, FALSE), \"\")), \"@\")","v":""},{"$f":"TEXT(IF($C141=\"\", \"\", IFERROR(VLOOKUP($C141, LIST!$Q$5:$S$500, 3, FALSE), \"\")), \"@\")","v":""},{"$f":"$D141","v":0},{"$f":"IF($H141=0,\"0\"&\"\",IF(RIGHT(TEXT($H141, \"0.#######\"),1)=\".\", TEXT($H141, \"#0\"), TEXT($H141, \"#0.#######\")))","v":"0"},{"$f":"IF($H141=0,\"0\"&\"\",IF(RIGHT(TEXT($H141, \"0.#######\"),1)=\".\", TEXT($H141, \"#,###\"), TEXT($H141, \"#,##0.#######\")))","v":"0"},{"$f":"TEXT(IF($G141=\"\", \"\", IFERROR(VLOOKUP($G141, LIST!$S$5:$T$500, 2, FALSE), \"\")), \"@\")","v":""},1]
[null,"相手国（２）",{"$f":"届出書の作成!$V86&\"\"","v":""},{"$f":"届出書の作成!$W86","v":0},null,{"$f":"IF( $D139 > 1, TEXT(IF($C142=\"\", \"\", IFERROR(VLOOKUP($C142, LIST!$Q$5:$S$500, 2, FALSE), \"\")), \"@\"), \"\")","v":""},{"$f":"IF( $D139 > 1, TEXT(IF($C142=\"\", \"\", IFERROR(VLOOKUP($C142, LIST!$Q$5:$S$500, 3, FALSE), \"\")), \"@\"), \"\")","v":""},{"$f":"$D142","v":0},{"$f":"IF($D$139 < $L142,\"\",IF($H142=0,\"0\"&\"\",IF(RIGHT(TEXT($H142, \"0.#######\"),1)=\".\", TEXT($H142, \"#0\"), TEXT($H142, \"#0.#######\"))))","v":""},{"$f":"IF($D$139 < $L142,\"\",IF($H142=0,\"0\"&\"\",IF(RIGHT(TEXT($H142, \"0.#######\"),1)=\".\", TEXT($H142, \"#,##0\"), TEXT($H142, \"#,##0.#######\"))))","v":""},{"$f":"TEXT(IF($G142=\"\", \"\", IFERROR(VLOOKUP($G142, LIST!$S$5:$T$500, 2, FALSE), \"\")), \"@\")","v":""},2]
[null,"相手国（３）",{"$f":"届出書の作成!$V87&\"\"","v":""},{"$f":"届出書の作成!$W87","v":0},null,{"$f":"IF( $D139 > 2, TEXT(IF($C143=\"\", \"\", IFERROR(VLOOKUP($C143, LIST!$Q$5:$S$500, 2, FALSE), \"\")), \"@\"), \"\")","v":""},{"$f":"IF( $D139 > 2, TEXT(IF($C143=\"\", \"\", IFERROR(VLOOKUP($C143, LIST!$Q$5:$S$500, 3, FALSE), \"\")), \"@\"), \"\")","v":""},0,{"$f":"IF($D$139 < $L143,\"\",IF($H143=0,\"0\"&\"\",IF(RIGHT(TEXT($H143, \"0.#######\"),1)=\".\", TEXT($H143, \"#0\"), TEXT($H143, \"#0.#######\"))))","v":""},{"$f":"IF($D$139 < $L143,\"\",IF($H143=0,\"0\"&\"\",IF(RIGHT(TEXT($H143, \"0.#######\"),1)=\".\", TEXT($H143, \"#,##0\"), TEXT($H143, \"#,##0.#######\"))))","v":""},{"$f":"TEXT(IF($G143=\"\", \"\", IFERROR(VLOOKUP($G143, LIST!$S$5:$T$500, 2, FALSE), \"\")), \"@\")","v":""},3]
[null,"相手国（４）",{"$f":"届出書の作成!$V88&\"\"","v":""},{"$f":"届出書の作成!$W88","v":0},null,{"$f":"IF( $D139 > 3, TEXT(IF($C144=\"\", \"\", IFERROR(VLOOKUP($C144, LIST!$Q$5:$S$500, 2, FALSE), \"\")), \"@\"), \"\")","v":""},{"$f":"IF( $D139 > 3, TEXT(IF($C144=\"\", \"\", IFERROR(VLOOKUP($C144, LIST!$Q$5:$S$500, 3, FALSE), \"\")), \"@\"), \"\")","v":""},0,"","",{"$f":"TEXT(IF($G144=\"\", \"\", IFERROR(VLOOKUP($G144, LIST!$S$5:$T$500, 2, FALSE), \"\")), \"@\")","v":""},4]
[null,"相手国（５）",{"$f":"届出書の作成!$V89&\"\"","v":""},{"$f":"届出書の作成!$W89","v":0},null,{"$f":"IF( $D139 > 4, TEXT(IF($C145=\"\", \"\", IFERROR(VLOOKUP($C145, LIST!$Q$5:$S$500, 2, FALSE), \"\")), \"@\"), \"\")","v":""},{"$f":"IF( $D139 > 4, TEXT(IF($C145=\"\", \"\", IFERROR(VLOOKUP($C145, LIST!$Q$5:$S$500, 3, FALSE), \"\")), \"@\"), \"\")","v":""},0,"","",{"$f":"TEXT(IF($G145=\"\", \"\", IFERROR(VLOOKUP($G145, LIST!$S$5:$T$500, 2, FALSE), \"\")), \"@\")","v":""},5]
[null,"相手国（６）",{"$f":"届出書の作成!$V90&\"\"","v":""},{"$f":"届出書の作成!$W90","v":0},null,{"$f":"IF( $D139 > 5, TEXT(IF($C146=\"\", \"\", IFERROR(VLOOKUP($C146, LIST!$Q$5:$S$500, 2, FALSE), \"\")), \"@\"), \"\")","v":""},{"$f":"IF( $D139 > 5, TEXT(IF($C146=\"\", \"\", IFERROR(VLOOKUP($C146, LIST!$Q$5:$S$500, 3, FALSE), \"\")), \"@\"), \"\")","v":""},0,"","",{"$f":"TEXT(IF($G146=\"\", \"\", IFERROR(VLOOKUP($G146, LIST!$S$5:$T$500, 2, FALSE), \"\")), \"@\")","v":""},6]
[null,"相手国（７）",{"$f":"届出書の作成!$V91&\"\"","v":""},{"$f":"届出書の作成!$W91","v":0},null,{"$f":"IF( $D139 > 6, TEXT(IF($C147=\"\", \"\", IFERROR(VLOOKUP($C147, LIST!$Q$5:$S$500, 2, FALSE), \"\")), \"@\"), \"\")","v":""},{"$f":"IF( $D139 > 6, TEXT(IF($C147=\"\", \"\", IFERROR(VLOOKUP($C147, LIST!$Q$5:$S$500, 3, FALSE), \"\")), \"@\"), \"\")","v":""},0,"","",{"$f":"TEXT(IF($G147=\"\", \"\", IFERROR(VLOOKUP($G147, LIST!$S$5:$T$500, 2, FALSE), \"\")), \"@\")","v":""},7]
[]
["輸出（輸入）をした物質の情報（５）","輸出または輸入の別",null,{"$f":"届出書の作成!$V93&\"\"","v":""},null,"輸出入区分",{"$f":"TEXT(IF(D149=\"\", \"\", IFERROR(VLOOKUP(D149, LIST!$N$5:$O$100, 2, FALSE), \"\")), \"@\")","v":""}]
[null,"CAS番号",null,{"$f":"届出書の作成!$V94&\"\"","v":""},null,"CAS番号",{"$f":"IF($D150=STRING_NOCAS, $D152, $D150)","v":""}]
[null,"物質名称（日本語名）",null,{"$f":"届出書の作成!$V95&\"\"","v":""},null,"物質名称",{"$f":"IF($D150=STRING_NOCAS, $D153, $D151)","v":""}]
[null,"CASなし　CAS番号",null,{"$f":"届出書の作成!$V96&\"\"","v":""},null,"物質ID",{"$f":"IF($D150=STRING_NOCAS, 0, IFERROR(VLOOKUP($D150,LIST!$AG$6:$AL$500,2,FALSE), 0))","v":0}]
[null,"CASなし　物質名称（日本語名）",null,{"$f":"届出書の作成!$V97&\"\"","v":""}]
[null,"第一種、第二種の区分",null,{"$f":"届出書の作成!$V98&\"\"","v":""},null,"物質区分",{"$f":"TEXT(IF(D154=\"\", \"\", IFERROR(VLOOKUP(D154, LIST!$U$5:$V$100, 2, FALSE), \"\")), \"@\")","v":""}]
[null,"指定物質番号",null,{"$f":"届出書の作成!$V99&\"\"","v":""},null,"政令番号",{"$f":"TEXT(IF(OR($D154=\"\", $D155=\"\"), \"\", IFERROR(VLOOKUP(CONCATENATE($D154, \"_\", $D155), LIST!$Z$5:$AD$100, 2, FALSE), \"\")), \"@\")","v":""}]
[null,"相手国の数",null,{"$f":"届出書の作成!$V100","v":1},null,"条約剤番号",{"$f":"TEXT(IF(OR($D154=\"\", $D155=\"\"), \"\", IFERROR(VLOOKUP(CONCATENATE($D154, \"_\", $D155), LIST!$Z$5:$AD$100, 5, FALSE), \"\")), \"@\")","v":""}]
[null,null,"相手国","数量(kg)",null,"国名","国コード","数値（有効3桁、小数7桁)","文字列（DB decimal 16,7）","文字列（帳票）","国ID","行数"]
[null,"相手国（１）",{"$f":"届出書の作成!$V102&\"\"","v":""},{"$f":"届出書の作成!$W102","v":0},null,{"$f":"TEXT(IF($C158=\"\", \"\", IFERROR(VLOOKUP($C158, LIST!$Q$5:$S$500, 2, FALSE), \"\")), \"@\")","v":""},{"$f":"TEXT(IF($C158=\"\", \"\", IFERROR(VLOOKUP($C158, LIST!$Q$5:$S$500, 3, FALSE), \"\")), \"@\")","v":""},{"$f":"$D158","v":0},{"$f":"IF($H158=0,\"0\"&\"\",IF(RIGHT(TEXT($H158, \"0.#######\"),1)=\".\", TEXT($H158, \"#0\"), TEXT($H158, \"#0.#######\")))","v":"0"},{"$f":"IF($H158=0,\"0\"&\"\",IF(RIGHT(TEXT($H158, \"0.#######\"),1)=\".\", TEXT($H158, \"#,###\"), TEXT($H158, \"#,##0.#######\")))","v":"0"},{"$f":"TEXT(IF($G158=\"\", \"\", IFERROR(VLOOKUP($G158, LIST!$S$5:$T$500, 2, FALSE), \"\")), \"@\")","v":""},1]
[null,"相手国（２）",{"$f":"届出書の作成!$V103&\"\"","v":""},{"$f":"届出書の作成!$W103","v":0},null,{"$f":"IF( $D156 > 1, TEXT(IF($C159=\"\", \"\", IFERROR(VLOOKUP($C159, LIST!$Q$5:$S$500, 2, FALSE), \"\")), \"@\"), \"\")","v":""},{"$f":"IF( $D156 > 1, TEXT(IF($C159=\"\", \"\", IFERROR(VLOOKUP($C159, LIST!$Q$5:$S$500, 3, FALSE), \"\")), \"@\"), \"\")","v":""},{"$f":"$D159","v":0},{"$f":"IF($D$156 < $L159,\"\",IF($H159=0,\"0\"&\"\",IF(RIGHT(TEXT($H159, \"0.#######\"),1)=\".\", TEXT($H159, \"#0\"), TEXT($H159, \"#0.#######\"))))","v":""},{"$f":"IF($D$156 < $L159,\"\",IF($H159=0,\"0\"&\"\",IF(RIGHT(TEXT($H159, \"0.#######\"),1)=\".\", TEXT($H159, \"#,##0\"), TEXT($H159, \"#,##0.#######\"))))","v":""},{"$f":"TEXT(IF($G159=\"\", \"\", IFERROR(VLOOKUP($G159, LIST!$S$5:$T$500, 2, FALSE), \"\")), \"@\")","v":""},2]
[null,"相手国（３）",{"$f":"届出書の作成!$V104&\"\"","v":""},{"$f":"届出書の作成!$W104","v":0},null,{"$f":"IF( $D156 > 2, TEXT(IF($C160=\"\", \"\", IFERROR(VLOOKUP($C160, LIST!$Q$5:$S$500, 2, FALSE), \"\")), \"@\"), \"\")","v":""},{"$f":"IF( $D156 > 2, TEXT(IF($C160=\"\", \"\", IFERROR(VLOOKUP($C160, LIST!$Q$5:$S$500, 3, FALSE), \"\")), \"@\"), \"\")","v":""},0,{"$f":"IF($D$156 < $L160,\"\",IF($H160=0,\"0\"&\"\",IF(RIGHT(TEXT($H160, \"0.#######\"),1)=\".\", TEXT($H160, \"#0\"), TEXT($H160, \"#0.#######\"))))","v":""},{"$f":"IF($D$156 < $L160,\"\",IF($H160=0,\"0\"&\"\",IF(RIGHT(TEXT($H160, \"0.#######\"),1)=\".\", TEXT($H160, \"#,##0\"), TEXT($H160, \"#,##0.#######\"))))","v":""},{"$f":"TEXT(IF($G160=\"\", \"\", IFERROR(VLOOKUP($G160, LIST!$S$5:$T$500, 2, FALSE), \"\")), \"@\")","v":""},3]
[null,"相手国（４）",{"$f":"届出書の作成!$V105&\"\"","v":""},{"$f":"届出書の作成!$W105","v":0},null,{"$f":"IF( $D156 > 3, TEXT(IF($C161=\"\", \"\", IFERROR(VLOOKUP($C161, LIST!$Q$5:$S$500, 2, FALSE), \"\")), \"@\"), \"\")","v":""},{"$f":"IF( $D156 > 3, TEXT(IF($C161=\"\", \"\", IFERROR(VLOOKUP($C161, LIST!$Q$5:$S$500, 3, FALSE), \"\")), \"@\"), \"\")","v":""},0,"","",{"$f":"TEXT(IF($G161=\"\", \"\", IFERROR(VLOOKUP($G161, LIST!$S$5:$T$500, 2, FALSE), \"\")), \"@\")","v":""},4]
[null,"相手国（５）",{"$f":"届出書の作成!$V106&\"\"","v":""},{"$f":"届出書の作成!$W106","v":0},null,{"$f":"IF( $D156 > 4, TEXT(IF($C162=\"\", \"\", IFERROR(VLOOKUP($C162, LIST!$Q$5:$S$500, 2, FALSE), \"\")), \"@\"), \"\")","v":""},{"$f":"IF( $D156 > 4, TEXT(IF($C162=\"\", \"\", IFERROR(VLOOKUP($C162, LIST!$Q$5:$S$500, 3, FALSE), \"\")), \"@\"), \"\")","v":""},0,"","",{"$f":"TEXT(IF($G162=\"\", \"\", IFERROR(VLOOKUP($G162, LIST!$S$5:$T$500, 2, FALSE), \"\")), \"@\")","v":""},5]
[null,"相手国（６）",{"$f":"届出書の作成!$V107&\"\"","v":""},{"$f":"届出書の作成!$W107","v":0},null,{"$f":"IF( $D156 > 5, TEXT(IF($C163=\"\", \"\", IFERROR(VLOOKUP($C163, LIST!$Q$5:$S$500, 2, FALSE), \"\")), \"@\"), \"\")","v":""},{"$f":"IF( $D156 > 5, TEXT(IF($C163=\"\", \"\", IFERROR(VLOOKUP($C163, LIST!$Q$5:$S$500, 3, FALSE), \"\")), \"@\"), \"\")","v":""},0,"","",{"$f":"TEXT(IF($G163=\"\", \"\", IFERROR(VLOOKUP($G163, LIST!$S$5:$T$500, 2, FALSE), \"\")), \"@\")","v":""},6]
[null,"相手国（７）",{"$f":"届出書の作成!$V108&\"\"","v":""},{"$f":"届出書の作成!$W108","v":0},null,{"$f":"IF( $D156 > 6, TEXT(IF($C164=\"\", \"\", IFERROR(VLOOKUP($C164, LIST!$Q$5:$S$500, 2, FALSE), \"\")), \"@\"), \"\")","v":""},{"$f":"IF( $D156 > 6, TEXT(IF($C164=\"\", \"\", IFERROR(VLOOKUP($C164, LIST!$Q$5:$S$500, 3, FALSE), \"\")), \"@\"), \"\")","v":""},0,"","",{"$f":"TEXT(IF($G164=\"\", \"\", IFERROR(VLOOKUP($G164, LIST!$S$5:$T$500, 2, FALSE), \"\")), \"@\")","v":""},7]
[]
["輸出（輸入）をした物質の情報（６）","輸出または輸入の別",null,{"$f":"届出書の作成!$V110&\"\"","v":""},null,"輸出入区分",{"$f":"TEXT(IF(D166=\"\", \"\", IFERROR(VLOOKUP(D166, LIST!$N$5:$O$100, 2, FALSE), \"\")), \"@\")","v":""}]
[null,"CAS番号",null,{"$f":"届出書の作成!$V111&\"\"","v":""},null,"CAS番号",{"$f":"IF($D167=STRING_NOCAS, $D169, $D167)","v":""}]
[null,"物質名称（日本語名）",null,{"$f":"届出書の作成!$V112&\"\"","v":""},null,"物質名称",{"$f":"IF($D167=STRING_NOCAS, $D170, $D168)","v":""}]
[null,"CASなし　CAS番号",null,{"$f":"届出書の作成!$V113&\"\"","v":""},null,"物質ID",{"$f":"IF($D167=STRING_NOCAS, 0, IFERROR(VLOOKUP($D167,LIST!$AG$6:$AL$500,2,FALSE), 0))","v":0}]
[null,"CASなし　物質名称（日本語名）",null,{"$f":"届出書の作成!$V114&\"\"","v":""}]
[null,"第一種、第二種の区分",null,{"$f":"届出書の作成!$V115&\"\"","v":""},null,"物質区分",{"$f":"TEXT(IF(D171=\"\", \"\", IFERROR(VLOOKUP(D171, LIST!$U$5:$V$100, 2, FALSE), \"\")), \"@\")","v":""}]
[null,"指定物質番号",null,{"$f":"届出書の作成!$V116&\"\"","v":""},null,"政令番号",{"$f":"TEXT(IF(OR($D171=\"\", $D172=\"\"), \"\", IFERROR(VLOOKUP(CONCATENATE($D171, \"_\", $D172), LIST!$Z$5:$AD$100, 2, FALSE), \"\")), \"@\")","v":""}]
[null,"相手国の数",null,{"$f":"届出書の作成!$V117","v":1},null,"条約剤番号",{"$f":"TEXT(IF(OR($D171=\"\", $D172=\"\"), \"\", IFERROR(VLOOKUP(CONCATENATE($D171, \"_\", $D172), LIST!$Z$5:$AD$100, 5, FALSE), \"\")), \"@\")","v":""}]
[null,null,"相手国","数量(kg)",null,"国名","国コード","数値（有効3桁、小数7桁)","文字列（DB decimal 16,7）","文字列（帳票）","国ID","行数"]
[null,"相手国（１）",{"$f":"届出書の作成!$V119&\"\"","v":""},{"$f":"届出書の作成!$W119","v":0},null,{"$f":"TEXT(IF($C175=\"\", \"\", IFERROR(VLOOKUP($C175, LIST!$Q$5:$S$500, 2, FALSE), \"\")), \"@\")","v":""},{"$f":"TEXT(IF($C175=\"\", \"\", IFERROR(VLOOKUP($C175, LIST!$Q$5:$S$500, 3, FALSE), \"\")), \"@\")","v":""},{"$f":"$D175","v":0},{"$f":"IF($H175=0,\"0\"&\"\",IF(RIGHT(TEXT($H175, \"0.#######\"),1)=\".\", TEXT($H175, \"#0\"), TEXT($H175, \"#0.#######\")))","v":"0"},{"$f":"IF($H175=0,\"0\"&\"\",IF(RIGHT(TEXT($H175, \"0.#######\"),1)=\".\", TEXT($H175, \"#,###\"), TEXT($H175, \"#,##0.#######\")))","v":"0"},{"$f":"TEXT(IF($G175=\"\", \"\", IFERROR(VLOOKUP($G175, LIST!$S$5:$T$500, 2, FALSE), \"\")), \"@\")","v":""},1]
[null,"相手国（２）",{"$f":"届出書の作成!$V120&\"\"","v":""},{"$f":"届出書の作成!$W120","v":0},null,{"$f":"IF( $D173 > 1, TEXT(IF($C176=\"\", \"\", IFERROR(VLOOKUP($C176, LIST!$Q$5:$S$500, 2, FALSE), \"\")), \"@\"), \"\")","v":""},{"$f":"IF( $D173 > 1, TEXT(IF($C176=\"\", \"\", IFERROR(VLOOKUP($C176, LIST!$Q$5:$S$500, 3, FALSE), \"\")), \"@\"), \"\")","v":""},{"$f":"$D176","v":0},{"$f":"IF($D$173 < $L176,\"\",IF($H176=0,\"0\"&\"\",IF(RIGHT(TEXT($H176, \"0.#######\"),1)=\".\", TEXT($H176, \"#0\"), TEXT($H176, \"#0.#######\"))))","v":""},{"$f":"IF($D$173 < $L176,\"\",IF($H176=0,\"0\"&\"\",IF(RIGHT(TEXT($H176, \"0.#######\"),1)=\".\", TEXT($H176, \"#,##0\"), TEXT($H176, \"#,##0.#######\"))))","v":""},{"$f":"TEXT(IF($G176=\"\", \"\", IFERROR(VLOOKUP($G176, LIST!$S$5:$T$500, 2, FALSE), \"\")), \"@\")","v":""},2]
[null,"相手国（３）",{"$f":"届出書の作成!$V121&\"\"","v":""},{"$f":"届出書の作成!$W121","v":0},null,{"$f":"IF( $D173 > 2, TEXT(IF($C177=\"\", \"\", IFERROR(VLOOKUP($C177, LIST!$Q$5:$S$500, 2, FALSE), \"\")), \"@\"), \"\")","v":""},{"$f":"IF( $D173 > 2, TEXT(IF($C177=\"\", \"\", IFERROR(VLOOKUP($C177, LIST!$Q$5:$S$500, 3, FALSE), \"\")), \"@\"), \"\")","v":""},0,{"$f":"IF($D$173 < $L177,\"\",IF($H177=0,\"0\"&\"\",IF(RIGHT(TEXT($H177, \"0.#######\"),1)=\".\", TEXT($H177, \"#0\"), TEXT($H177, \"#0.#######\"))))","v":""},{"$f":"IF($D$173 < $L177,\"\",IF($H177=0,\"0\"&\"\",IF(RIGHT(TEXT($H177, \"0.#######\"),1)=\".\", TEXT($H177, \"#,##0\"), TEXT($H177, \"#,##0.#######\"))))","v":""},{"$f":"TEXT(IF($G177=\"\", \"\", IFERROR(VLOOKUP($G177, LIST!$S$5:$T$500, 2, FALSE), \"\")), \"@\")","v":""},3]
[null,"相手国（４）",{"$f":"届出書の作成!$V122&\"\"","v":""},{"$f":"届出書の作成!$W122","v":0},null,{"$f":"IF( $D173 > 3, TEXT(IF($C178=\"\", \"\", IFERROR(VLOOKUP($C178, LIST!$Q$5:$S$500, 2, FALSE), \"\")), \"@\"), \"\")","v":""},{"$f":"IF( $D173 > 3, TEXT(IF($C178=\"\", \"\", IFERROR(VLOOKUP($C178, LIST!$Q$5:$S$500, 3, FALSE), \"\")), \"@\"), \"\")","v":""},0,"","",{"$f":"TEXT(IF($G178=\"\", \"\", IFERROR(VLOOKUP($G178, LIST!$S$5:$T$500, 2, FALSE), \"\")), \"@\")","v":""},4]
[null,"相手国（５）",{"$f":"届出書の作成!$V123&\"\"","v":""},{"$f":"届出書の作成!$W123","v":0},null,{"$f":"IF( $D173 > 4, TEXT(IF($C179=\"\", \"\", IFERROR(VLOOKUP($C179, LIST!$Q$5:$S$500, 2, FALSE), \"\")), \"@\"), \"\")","v":""},{"$f":"IF( $D173 > 4, TEXT(IF($C179=\"\", \"\", IFERROR(VLOOKUP($C179, LIST!$Q$5:$S$500, 3, FALSE), \"\")), \"@\"), \"\")","v":""},0,"","",{"$f":"TEXT(IF($G179=\"\", \"\", IFERROR(VLOOKUP($G179, LIST!$S$5:$T$500, 2, FALSE), \"\")), \"@\")","v":""},5]
[null,"相手国（６）",{"$f":"届出書の作成!$V124&\"\"","v":""},{"$f":"届出書の作成!$W124","v":0},null,{"$f":"IF( $D173 > 5, TEXT(IF($C180=\"\", \"\", IFERROR(VLOOKUP($C180, LIST!$Q$5:$S$500, 2, FALSE), \"\")), \"@\"), \"\")","v":""},{"$f":"IF( $D173 > 5, TEXT(IF($C180=\"\", \"\", IFERROR(VLOOKUP($C180, LIST!$Q$5:$S$500, 3, FALSE), \"\")), \"@\"), \"\")","v":""},0,"","",{"$f":"TEXT(IF($G180=\"\", \"\", IFERROR(VLOOKUP($G180, LIST!$S$5:$T$500, 2, FALSE), \"\")), \"@\")","v":""},6]
[null,"相手国（７）",{"$f":"届出書の作成!$V125&\"\"","v":""},{"$f":"届出書の作成!$W125","v":0},null,{"$f":"IF( $D173 > 6, TEXT(IF($C181=\"\", \"\", IFERROR(VLOOKUP($C181, LIST!$Q$5:$S$500, 2, FALSE), \"\")), \"@\"), \"\")","v":""},{"$f":"IF( $D173 > 6, TEXT(IF($C181=\"\", \"\", IFERROR(VLOOKUP($C181, LIST!$Q$5:$S$500, 3, FALSE), \"\")), \"@\"), \"\")","v":""},0,"","",{"$f":"TEXT(IF($G181=\"\", \"\", IFERROR(VLOOKUP($G181, LIST!$S$5:$T$500, 2, FALSE), \"\")), \"@\")","v":""},7]
[]
["輸出（輸入）をした物質の情報（７）","輸出または輸入の別",null,{"$f":"届出書の作成!$V127&\"\"","v":""},null,"輸出入区分",{"$f":"TEXT(IF(D183=\"\", \"\", IFERROR(VLOOKUP(D183, LIST!$N$5:$O$100, 2, FALSE), \"\")), \"@\")","v":""}]
[null,"CAS番号",null,{"$f":"届出書の作成!$V128&\"\"","v":""},null,"CAS番号",{"$f":"IF($D184=STRING_NOCAS, $D186, $D184)","v":""}]
[null,"物質名称（日本語名）",null,{"$f":"届出書の作成!$V129&\"\"","v":""},null,"物質名称",{"$f":"IF($D184=STRING_NOCAS, $D187, $D185)","v":""}]
[null,"CASなし　CAS番号",null,{"$f":"届出書の作成!$V130&\"\"","v":""},null,"物質ID",{"$f":"IF($D184=STRING_NOCAS, 0, IFERROR(VLOOKUP($D184,LIST!$AG$6:$AL$500,2,FALSE), 0))","v":0}]
[null,"CASなし　物質名称（日本語名）",null,{"$f":"届出書の作成!$V131&\"\"","v":""}]
[null,"第一種、第二種の区分",null,{"$f":"届出書の作成!$V132&\"\"","v":""},null,"物質区分",{"$f":"TEXT(IF(D188=\"\", \"\", IFERROR(VLOOKUP(D188, LIST!$U$5:$V$100, 2, FALSE), \"\")), \"@\")","v":""}]
[null,"指定物質番号",null,{"$f":"届出書の作成!$V133&\"\"","v":""},null,"政令番号",{"$f":"TEXT(IF(OR($D188=\"\", $D189=\"\"), \"\", IFERROR(VLOOKUP(CONCATENATE($D188, \"_\", $D189), LIST!$Z$5:$AD$100, 2, FALSE), \"\")), \"@\")","v":""}]
[null,"相手国の数",null,{"$f":"届出書の作成!$V134","v":1},null,"条約剤番号",{"$f":"TEXT(IF(OR($D188=\"\", $D189=\"\"), \"\", IFERROR(VLOOKUP(CONCATENATE($D188, \"_\", $D189), LIST!$Z$5:$AD$100, 5, FALSE), \"\")), \"@\")","v":""}]
[null,null,"相手国","数量(kg)",null,"国名","国コード","数値（有効3桁、小数7桁)","文字列（DB decimal 16,7）","文字列（帳票）","国ID","行数"]
[null,"相手国（１）",{"$f":"届出書の作成!$V136&\"\"","v":""},{"$f":"届出書の作成!$W136","v":0},null,{"$f":"TEXT(IF($C192=\"\", \"\", IFERROR(VLOOKUP($C192, LIST!$Q$5:$S$500, 2, FALSE), \"\")), \"@\")","v":""},{"$f":"TEXT(IF($C192=\"\", \"\", IFERROR(VLOOKUP($C192, LIST!$Q$5:$S$500, 3, FALSE), \"\")), \"@\")","v":""},{"$f":"$D192","v":0},{"$f":"IF($H192=0,\"0\"&\"\",IF(RIGHT(TEXT($H192, \"0.#######\"),1)=\".\", TEXT($H192, \"#0\"), TEXT($H192, \"#0.#######\")))","v":"0"},{"$f":"IF($H192=0,\"0\"&\"\",IF(RIGHT(TEXT($H192, \"0.#######\"),1)=\".\", TEXT($H192, \"#,###\"), TEXT($H192, \"#,##0.#######\")))","v":"0"},{"$f":"TEXT(IF($G192=\"\", \"\", IFERROR(VLOOKUP($G192, LIST!$S$5:$T$500, 2, FALSE), \"\")), \"@\")","v":""},1]
[null,"相手国（２）",{"$f":"届出書の作成!$V137&\"\"","v":""},{"$f":"届出書の作成!$W137","v":0},null,{"$f":"IF( $D190 > 1, TEXT(IF($C193=\"\", \"\", IFERROR(VLOOKUP($C193, LIST!$Q$5:$S$500, 2, FALSE), \"\")), \"@\"), \"\")","v":""},{"$f":"IF( $D190 > 1, TEXT(IF($C193=\"\", \"\", IFERROR(VLOOKUP($C193, LIST!$Q$5:$S$500, 3, FALSE), \"\")), \"@\"), \"\")","v":""},{"$f":"$D193","v":0},{"$f":"IF($D$190 < $L193,\"\",IF($H193=0,\"0\"&\"\",IF(RIGHT(TEXT($H193, \"0.#######\"),1)=\".\", TEXT($H193, \"#0\"), TEXT($H193, \"#0.#######\"))))","v":""},{"$f":"IF($D$190 < $L193,\"\",IF($H193=0,\"0\"&\"\",IF(RIGHT(TEXT($H193, \"0.#######\"),1)=\".\", TEXT($H193, \"#,##0\"), TEXT($H193, \"#,##0.#######\"))))","v":""},{"$f":"TEXT(IF($G193=\"\", \"\", IFERROR(VLOOKUP($G193, LIST!$S$5:$T$500, 2, FALSE), \"\")), \"@\")","v":""},2]
[null,"相手国（３）",{"$f":"届出書の作成!$V138&\"\"","v":""},{"$f":"届出書の作成!$W138","v":0},null,{"$f":"IF( $D190 > 2, TEXT(IF($C194=\"\", \"\", IFERROR(VLOOKUP($C194, LIST!$Q$5:$S$500, 2, FALSE), \"\")), \"@\"), \"\")","v":""},{"$f":"IF( $D190 > 2, TEXT(IF($C194=\"\", \"\", IFERROR(VLOOKUP($C194, LIST!$Q$5:$S$500, 3, FALSE), \"\")), \"@\"), \"\")","v":""},0,{"$f":"IF($D$190 < $L194,\"\",IF($H194=0,\"0\"&\"\",IF(RIGHT(TEXT($H194, \"0.#######\"),1)=\".\", TEXT($H194, \"#0\"), TEXT($H194, \"#0.#######\"))))","v":""},{"$f":"IF($D$190 < $L194,\"\",IF($H194=0,\"0\"&\"\",IF(RIGHT(TEXT($H194, \"0.#######\"),1)=\".\", TEXT($H194, \"#,##0\"), TEXT($H194, \"#,##0.#######\"))))","v":""},{"$f":"TEXT(IF($G194=\"\", \"\", IFERROR(VLOOKUP($G194, LIST!$S$5:$T$500, 2, FALSE), \"\")), \"@\")","v":""},3]
[null,"相手国（４）",{"$f":"届出書の作成!$V139&\"\"","v":""},{"$f":"届出書の作成!$W139","v":0},null,{"$f":"IF( $D190 > 3, TEXT(IF($C195=\"\", \"\", IFERROR(VLOOKUP($C195, LIST!$Q$5:$S$500, 2, FALSE), \"\")), \"@\"), \"\")","v":""},{"$f":"IF( $D190 > 3, TEXT(IF($C195=\"\", \"\", IFERROR(VLOOKUP($C195, LIST!$Q$5:$S$500, 3, FALSE), \"\")), \"@\"), \"\")","v":""},0,"","",{"$f":"TEXT(IF($G195=\"\", \"\", IFERROR(VLOOKUP($G195, LIST!$S$5:$T$500, 2, FALSE), \"\")), \"@\")","v":""},4]
[null,"相手国（５）",{"$f":"届出書の作成!$V140&\"\"","v":""},{"$f":"届出書の作成!$W140","v":0},null,{"$f":"IF( $D190 > 4, TEXT(IF($C196=\"\", \"\", IFERROR(VLOOKUP($C196, LIST!$Q$5:$S$500, 2, FALSE), \"\")), \"@\"), \"\")","v":""},{"$f":"IF( $D190 > 4, TEXT(IF($C196=\"\", \"\", IFERROR(VLOOKUP($C196, LIST!$Q$5:$S$500, 3, FALSE), \"\")), \"@\"), \"\")","v":""},0,"","",{"$f":"TEXT(IF($G196=\"\", \"\", IFERROR(VLOOKUP($G196, LIST!$S$5:$T$500, 2, FALSE), \"\")), \"@\")","v":""},5]
[null,"相手国（６）",{"$f":"届出書の作成!$V141&\"\"","v":""},{"$f":"届出書の作成!$W141","v":0},null,{"$f":"IF( $D190 > 5, TEXT(IF($C197=\"\", \"\", IFERROR(VLOOKUP($C197, LIST!$Q$5:$S$500, 2, FALSE), \"\")), \"@\"), \"\")","v":""},{"$f":"IF( $D190 > 5, TEXT(IF($C197=\"\", \"\", IFERROR(VLOOKUP($C197, LIST!$Q$5:$S$500, 3, FALSE), \"\")), \"@\"), \"\")","v":""},0,"","",{"$f":"TEXT(IF($G197=\"\", \"\", IFERROR(VLOOKUP($G197, LIST!$S$5:$T$500, 2, FALSE), \"\")), \"@\")","v":""},6]
[null,"相手国（７）",{"$f":"届出書の作成!$V142&\"\"","v":""},{"$f":"届出書の作成!$W142","v":0},null,{"$f":"IF( $D190 > 6, TEXT(IF($C198=\"\", \"\", IFERROR(VLOOKUP($C198, LIST!$Q$5:$S$500, 2, FALSE), \"\")), \"@\"), \"\")","v":""},{"$f":"IF( $D190 > 6, TEXT(IF($C198=\"\", \"\", IFERROR(VLOOKUP($C198, LIST!$Q$5:$S$500, 3, FALSE), \"\")), \"@\"), \"\")","v":""},0,"","",{"$f":"TEXT(IF($G198=\"\", \"\", IFERROR(VLOOKUP($G198, LIST!$S$5:$T$500, 2, FALSE), \"\")), \"@\")","v":""},7]

{"sheet":"LIST","index":5,"n_rows":500,"n_cols":38,"rows_kept":500,"cut":false,"hidden":true,"merged":[[2,32,2,37],[3,20,3,21],[2,1,2,3],[2,12,2,13],[3,13,3,14],[2,8,2,9],[3,16,3,19]]}
[]
[null,null,null,null,null,null,null,null,null,null,null,null,null,null,null,null,null,null,null,null,null,null,null,null,null,"化学物質"]
[null,"都道府県コード",null,null,null,"定数",null,null,"数値の整形定義",null,null,null,"様式20",null,null,null,null,null,null,null,null,null,null,null,null,"政令番号の対応表",null,null,null,null,null,null,"物質（CAS番号ありの場合）"]
[null,"値","ID","英語",null,"値","意味",null,"元の値の位取り\n(log10)","DB登録文字列 decimal(16,7)","帳票\n有効数字3桁",null,"数","輸入または輸出の別",null,"相手国の数","相手国",null,null,null,"第一種、二種の区分",null,"指定物質番号\n（第一種指定物質）","指定物質番号\n（第二種指定物質）",null,"化兵法\n政令番号","政令番号","化兵法\n政令番号(1)","化兵法\n政令番号(2)","条約剤番号","物質名称（条約上）",null,"CAS番号","物質ID","政令番号","表区分ID","物質名称（日）","物質名称（英）"]
[null,"北海道",1,"Hokkaido",null,"CAS番号なし","物質選択などでCAS番号がない場合の選択肢。\n「STRING_NOCAS」で名前定義",null,-7,"#0.0000000","#0.000000000",null,1,"輸出","1",1,{"$f":"CONCATENATE($R5,IF($S5<>\"\",\"_\",\"\"),$S5)","v":"アイスランド_ISL"},"アイスランド","ISL",216,"第一種指定物質","1","毒性物質（一）","毒性物質（一）",null,{"$f":"CONCATENATE($AB5, IF($AC5<>\"\",\"_\",\"\"), $AC5)","v":"第一種指定物質_毒性物質（一）"},"指1毒01","第一種指定物質","毒性物質（一）","2A01","アミトン　O・O－ジエチル＝S-[２－（ジエチルアミノ）エチル]ホスホロチオラート　及びそのアルキル化塩類又はプロトン化塩類",null,{"$f":"STRING_NOCAS","v":"CAS番号なし"}]
[null,"青森県",2,"Aomori",null,null,null,null,-6,"#0.0000000","#0.00000000",null,2,"輸入","2",2,"アイルランド_IRL","アイルランド","IRL",72,"第二種指定物質","2","毒性物質（二）","毒性物質（二）",null,"第一種指定物質_毒性物質（二）","指1毒02","第一種指定物質","毒性物質（二）","2A02","ＰＦＩＢ　１・１・３・３・３－ペンタフルオロ－２－（トリフルオロメチル）－１－プロペン",null,"10025-67-9",1,"指2原08","3B12","一塩化硫黄","Sulfur monochloride"]
[null,"岩手県",3,"Iwate",null,null,null,null,-5,"#0.0000000","#0.0000000",null,3,null,null,3,"アゼルバイジャン_AZE","アゼルバイジャン","AZE",11,null,null,"毒性物質（三）","毒性物質（三）",null,"第一種指定物質_毒性物質（三）","指1毒03","第一種指定物質","毒性物質（三）","2A03","ＢＺ　３－キヌクリジニル＝ベンジラート",null,"10025-87-3",2,"指2原01","3B05","オキシ塩化リン","Phosphorus oxychloride"]
[null,"宮城県",4,"Miyagi",null,null,null,null,-4,"#0.000000","#0.000000",null,4,null,null,4,"アフガニスタン_AFG","アフガニスタン","AFG",1,null,null,"原料物質（一）","毒性物質（四）",null,"第一種指定物質_原料物質（一）","指1原01","第一種指定物質","原料物質（一）","2B04","毒性物質一のメチル、エチル又はプロピル（ノルマル又はイソ）と結合しているが、その結合以外に炭素原子とは結合していないリン原子を含有する化学物質（表１に掲げる物質を除く。）",null,"10026-13-8",3,"指2原03","3B07","五塩化リン","Phosphorus pentachloride"]
[null,"秋田県",5,"Akita",null,null,null,null,-3,"#0.00000","#0.00000",null,5,null,null,5,"アメリカ合衆国_USA","アメリカ合衆国","USA",175,null,null,"原料物質（二）","原料物質（一）",null,"第一種指定物質_原料物質（二）","指1原02","第一種指定物質","原料物質（二）","2B05","N・N－ジアルキル（メチル、エチル、ノルマルプロピル又はイソプロピル）ホスホルアミディック＝ジハリド類",null,"100-35-6",4,"指1原07","2B10","2-(N,N-Diethylamino)ethylchloride","2-(N,N-Diethylamino)ethylchloride"]
[null,"山形県",6,"Yamagata",null,null,null,null,-2,"#0.0000","#0.0000",null,6,null,null,6,"アラブ首長国連邦_ARE","アラブ首長国連邦","ARE",173,null,null,"原料物質（三）","原料物質（二）",null,"第一種指定物質_原料物質（三）","指1原03","第一種指定物質","原料物質（三）","2B06","ジアルキル（メチル、エチル、ノルマルプロピル又はイソプロピル）＝N・N－ジアルキル（メチル、エチル、ノルマルプロピル又はイソプロピル）ホスホルアミダート類",null,"100-38-9",5,"指1原09","2B12","２－ジエチルアミノエタンチオール","2-(N,N-Diethylamino)ethanethiol"]
[null,"福島県",7,"Fukushima",null,null,null,null,-1,"#0.000","#0.000",null,7,null,null,7,"アルジェリア_DZA","アルジェリア","DZA",187,null,null,"原料物質（四）","原料物質（三）",null,"第一種指定物質_原料物質（四）","指1原04","第一種指定物質","原料物質（四）","2B07","三塩化砒素",null,"1018124-39-4",6,"指1原09","2B12","2-(N-Ethyl-N-propylamino)ethanethiol","2-(N-Ethyl-N-propylamino)ethanethiol"]
[null,"茨城県",8,"Ibaraki",null,null,null,null,0,"#0.00","#0.00",null,null,null,null,null,"アルゼンチン_ARG","アルゼンチン","ARG",7,null,null,"原料物質（五）","原料物質（四）",null,"第一種指定物質_原料物質（五）","指1原05","第一種指定物質","原料物質（五）","2B08","２・２－ジフェニル－２－ヒドロキシ酢酸",null,"1020119-28-1",7,"指1原01","2B04","Bis(1-methylpentyl) methylphosphonate","Bis(1-methylpentyl) methylphosphonate"]
[null,"栃木県",9,"Tochigi",null,null,null,null,1,"#0.0","#0.0",null,null,null,null,null,"アルバニア_ALB","アルバニア","ALB",2,null,null,"原料物質（六）","原料物質（五）",null,"第一種指定物質_原料物質（六）","指1原06","第一種指定物質","原料物質（六）","2B09","キヌクリジン－３－オール",null,"102-71-6",8,"指2原13","3B17","トリエタノールアミン","Triethanolamine"]
[null,"群馬県",10,"Gunma",null,null,null,null,2,"#0","#0",null,null,null,null,null,"アルメニア_ARM","アルメニア","ARM",192,null,null,"原料物質（七）","原料物質（六）",null,"第一種指定物質_原料物質（七）","指1原07","第一種指定物質","原料物質（七）","2B10","N・N－ジアルキル（メチル、エチル、ノルマルプロピル又はイソプロピル）アミノエチル－２－クロリド類及びこれらのプロトン化塩類",null,"10545-99-0",9,"指2原09","3B13","二塩化硫黄","Sulfur dichloride"]
[null,"埼玉県",11,"Saitama",null,null,null,null,3,"#0","#,##0",null,null,null,null,null,"アンゴラ_AGO","アンゴラ","AGO",190,null,null,"原料物質（八）","原料物質（七）",null,"第一種指定物質_原料物質（八）","指1原08","第一種指定物質","原料物質（八）","2B11","N・N－ジアルキル（メチル、エチル、ノルマルプロピル又はイソプロピル）アミノエタン－２－オール類及びこれらのプロトン化塩類",null,"105-59-9",10,"指2原12","3B16","メチルジエタノールアミン","Methyldiethanolamine"]
[null,"千葉県",12,"Chiba",null,null,null,null,4,"#0","#,##0",null,null,null,null,null,"アンティグア・バーブーダ_ATG","アンティグア・バーブーダ","ATG",6,null,null,"原料物質（九）","原料物質（八）",null,"第一種指定物質_原料物質（九）","指1原09","第一種指定物質","原料物質（九）","2B12","N・N－ジアルキル（メチル、エチル、ノルマルプロピル又はイソプロピル）アミノエタン－２－チオール類及びこれらのプロトン化塩類",null,"1066-50-8",11,"指1原01","2B04","エチルホスホン酸ジクロリド","Ethylphosphonic dichloride"]
[null,"東京都",13,"Tokyo",null,null,null,null,5,"#0","#,##0",null,null,null,null,null,"アンドラ_AND","アンドラ","AND",4,null,null,"原料物質（一〇）","原料物質（九）",null,"第一種指定物質_原料物質（一〇）","指1原10","第一種指定物質","原料物質（一〇）","2B13","チオジグリコール　ビス（２－ヒドロキシエチル）スルフィド",null,"1066-53-1",12,"指1原01","2B04","Methyl methylphosphonate","Methyl methylphosphonate"]
[null,"神奈川県",14,"Kanagawa",null,null,null,null,6,"#0","#,##0",null,null,null,null,null,"イエメン_YEM","イエメン","YEM",227,null,null,"原料物質（一一）","原料物質（一〇）",null,"第一種指定物質_原料物質（一一）","指1原11","第一種指定物質","原料物質（一一）","2B14","ピナコリルアルコール／３・３－ジメチルブタン－２－オール",null,"1067-69-2",13,"指1原01","2B04","Diisopropyl ethylphosphonate","Diisopropyl ethylphosphonate"]
[null,"新潟県",15,"Niigata",null,null,null,null,7,"#0","#,##0",null,null,null,null,null,"イスラエル_ISR","イスラエル","ISR",73,null,null,null,"原料物質（一一）",null,"第二種指定物質_毒性物質（一）","指2毒01","第二種指定物質","毒性物質（一）","3A01","ホスゲン／ニ塩化カルボニル",null,"107-99-3",14,"指1原07","2B10","Ｎ，Ｎ－ジメチルアミノエチル－２－クロリド","2-(N,N-Dimethylamino)ethylchloride"]
[null,"山梨県",16,"Yamanashi",null,null,null,null,8,"#0","#,##0",null,null,null,null,null,"イタリア_ITA","イタリア","ITA",74,null,null,null,"原料物質（一二）",null,"第二種指定物質_毒性物質（二）","指2毒02","第二種指定物質","毒性物質（二）","3A02","塩化シアン",null,"108-02-1",15,"指1原09","2B12","2-(N,N-Dimethylamino)ethanethiol","2-(N,N-Dimethylamino)ethanethiol"]
[null,"長野県",17,"Nagano",null,null,null,null,9,"#0","#,##0",null,null,null,null,null,"イラク_IRQ","イラク","IRQ",71,null,null,null,"原料物質（一三）",null,"第二種指定物質_毒性物質（三）","指2毒03","第二種指定物質","毒性物質（三）","3A03","シアン化水素 ",null,"108506-63-4",16,"指1原01","2B04","Octyl isopropylphosphonate","Octyl isopropylphosphonate"]
[null,"静岡県",18,"Shizuoka",null,null,null,null,10,"#0","#,##0",null,null,null,null,null,"イラン_IRN","イラン","IRN",219,null,null,null,null,null,"第二種指定物質_毒性物質（四）","指2毒04","第二種指定物質","毒性物質（四）","3A04","クロロピクリン／トリクロロニトロメタン",null,"111-48-8",17,"指1原10","2B13","ビス（２－ヒドロキシエチル）スルフィド","Bis(2-hydroxyethyl)sulfide"]
[null,"富山県",19,"Toyama",null,null,null,null,11,"#0","#,##0",null,null,null,null,null,"インド_IND","インド","IND",69,null,null,null,null,null,"第二種指定物質_原料物質（一）","指2原01","第二種指定物質","原料物質（一）","3B05","オキシ塩化リン",null,"114076-21-0",18,"指1原01","2B04","Aluminium methyl propylphosphonate","Aluminium methyl propylphosphonate"]
[null,"石川県",20,"Ishikawa",null,null,null,null,12,"#0","#,##0",null,null,null,null,null,"インドネシア_IDN","インドネシア","IDN",70,null,null,null,null,null,"第二種指定物質_原料物質（二）","指2原02","第二種指定物質","原料物質（二）","3B06","三塩化リン",null,"117122-90-4",19,"指1原01","2B04","Sodium O-ethyl propylphosphonothioateSodium O-ethyl propylphosphonothioate","Ethyl S-sodium propylphosphonothiolate"]
[null,"岐阜県",21,"Gifu",null,null,null,null,13,"#0","#,##0",null,null,null,null,null,"ウガンダ_UGA","ウガンダ","UGA",171,null,null,null,null,null,"第二種指定物質_原料物質（三）","指2原03","第二種指定物質","原料物質（三）","3B07","五塩化リン",null,"121-45-9",20,"指2原04","3B08","亜リン酸トリメチル","Trimethyl phosphite"]
[null,"愛知県",22,"Aichi",null,null,null,null,null,null,null,null,null,null,null,null,"ウクライナ_UKR","ウクライナ","UKR",172,null,null,null,null,null,"第二種指定物質_原料物質（四）","指2原04","第二種指定物質","原料物質（四）","3B08","亜リン酸トリメチル",null,"122-52-1",21,"指2原05","3B09","亜リン酸トリエチル","Triethyl phosphite"]
[null,"三重県",23,"Mie",null,null,null,null,null,null,null,null,null,null,null,null,"ウズベキスタン_UZB","ウズベキスタン","UZB",178,null,null,null,null,null,"第二種指定物質_原料物質（五）","指2原05","第二種指定物質","原料物質（五）","3B09","亜リン酸トリエチル ",null,"129788-86-9",22,"指1原01","2B04","Product from the reaction of Methylphosphonic acid and 1,3,5-Triazine-2,4,6-triamine","Product from the reaction of Methylphosphonic acid and 1,3,5-Triazine-2,4,6-triamine"]
[null,"福井県",24,"Fukui",null,null,null,null,null,null,null,null,null,null,null,null,"ウルグアイ_URY","ウルグアイ","URY",177,null,null,null,null,null,"第二種指定物質_原料物質（六）","指2原06","第二種指定物質","原料物質（六）","3B10","亜リン酸トリエチル ",null,"13105-93-6",23,"指1原07","2B10","N-(2-chloroethyl)-N-ethylpropan-1-amine hydrochloride","N-(2-chloroethyl)-N-ethylpropan-1-amine hydrochloride"]
[null,"滋賀県",25,"Shiga",null,null,null,null,null,null,null,null,null,null,null,null,"英国_GBR","英国","GBR",174,null,null,null,null,null,"第二種指定物質_原料物質（七）","指2原07","第二種指定物質","原料物質（七）","3B11","亜リン酸ジエチル ",null,"13113-89-8",24,"指1原01","2B04","S-Methyl methylphosphonochloridothiolate","S-Methyl methylphosphonochloridothiolate"]
[null,"京都府",26,"Kyoto",null,null,null,null,null,null,null,null,null,null,null,null,"エクアドル_ECU","エクアドル","ECU",51,null,null,null,null,null,"第二種指定物質_原料物質（八）","指2原08","第二種指定物質","原料物質（八）","3B12","一塩化硫黄",null,"13213-47-3",25,"指1原01","2B04","Isobutyl propylphosphonochloridate","Isobutyl propylphosphonochloridate"]
[null,"大阪府",27,"Osaka",null,null,null,null,null,null,null,null,null,null,null,null,"エジプト_EGY","エジプト","EGY",52,null,null,null,null,null,"第二種指定物質_原料物質（九）","指2原09","第二種指定物質","原料物質（九）","3B13","ニ塩化硫黄 ",null,"13242-44-9",26,"指1原09","2B12","Ｎ，Ｎ－ジメチルアミノエタンチオール塩酸塩","2-(N,N-Dimethylamino)ethanethiol hydrochloride"]
[null,"兵庫県",28,"Hyogo",null,null,null,null,null,null,null,null,null,null,null,null,"エストニア_EST","エストニア","EST",56,null,null,null,null,null,"第二種指定物質_原料物質（一〇）","指2原10","第二種指定物質","原料物質（一〇）","3B14","塩化チオニル",null,"133826-40-1",27,"指1原01","2B04","Phenyl methylphosphonofluoridate","Phenyl methylphosphonofluoridate"]
[null,"奈良県",29,"Nara",null,null,null,null,null,null,null,null,null,null,null,null,"エスワティニ_SWZ","エスワティニ","SWZ",157,null,null,null,null,null,"第二種指定物質_原料物質（一一）","指2原11","第二種指定物質","原料物質（一一）","3B15","エチルジエタノールアミン",null,"13688-82-9",28,"指1原01","2B04","2-Ethylhexyl methylphosphonate","2-Ethylhexyl methylphosphonate"]
[null,"和歌山県",30,"Wakayama",null,null,null,null,null,null,null,null,null,null,null,null,"エチオピア_ETH","エチオピア","ETH",193,null,null,null,null,null,"第二種指定物質_原料物質（一二）","指2原12","第二種指定物質","原料物質（一二）","3B16","メチルジエタノールアミン",null,"138780-00-4",29,"指1原01","2B04","2-Butenyl methylphosphonofluoridate","2-Butenyl methylphosphonofluoridate"]
[null,"鳥取県",31,"Tottori",null,null,null,null,null,null,null,null,null,null,null,null,"エリトリア_ERI","エリトリア","ERI",55,null,null,null,null,null,"第二種指定物質_原料物質（一三）","指2原13","第二種指定物質","原料物質（一三）","3B17","トリエタノールアミン ",null,"139-87-7",30,"指2原11","3B15","エチルジエタノールアミン","Ethyldiethanolamine"]
[null,"島根県",32,"Shimane",null,null,null,null,null,null,null,null,null,null,null,null,"エルサルバドル_SLV","エルサルバドル","SLV",53,null,null,null,null,null,"",null,null,null,null,null,null,"13991-98-5",31,"指1原01","2B04","Ethylphosphonothioic acid","Ethylphosphonothioic acid"]
[null,"岡山県",33,"Okayama",null,null,null,null,null,null,null,null,null,null,null,null,"オーストラリア_AUS","オーストラリア","AUS",9,null,null,null,null,null,{"$f":"CONCATENATE($AB37, IF($AC37<>\"\",\"_\",\"\"), $AC37)","v":""},null,null,null,null,null,null,"141968-54-9",32,"指1原03","2B06","Isopropyl methyl dimethylphosphoramidate","Isopropyl methyl dimethylphosphoramidate"]
[null,"広島県",34,"Hiroshima",null,null,null,null,null,null,null,null,null,null,null,null,"オーストリア_AUT","オーストリア","AUT",10,null,null,null,null,null,"",null,null,null,null,null,null,"143663-83-6",33,"指1原01","2B04","Pinacolyl ethylphosphonate","Pinacolyl ethylphosphonate"]
[null,"山口県",35,"Yamaguchi",null,null,null,null,null,null,null,null,null,null,null,null,"オマーン_OMN","オマーン","OMN",120,null,null,null,null,null,"",null,null,null,null,null,null,"1445-75-6",34,"指1原01","2B04","ジイソプロピル＝メチルホスホナート","Diisopropyl methylphosphonate"]
[null,"徳島県",36,"Tokushima",null,null,null,null,null,null,null,null,null,null,null,null,"オランダ_NLD","オランダ","NLD",110,null,null,null,null,null,"",null,null,null,null,null,null,"148456-51-3",35,"指1原01","2B04","1-Methylheptyl methylphosphonate","1-Methylheptyl methylphosphonate"]
[null,"香川県",37,"Kagawa",null,null,null,null,null,null,null,null,null,null,null,null,"ガーナ_GHA","ガーナ","GHA",201,null,null,null,null,null,"",null,null,null,null,null,null,"148456-62-6",36,"指1原01","2B04","Dihexyl isopropylphosphonate","Dihexyl isopropylphosphonate"]
[null,"愛媛県",38,"Ehime",null,null,null,null,null,null,null,null,null,null,null,null,"カーボベルデ_CPV","カーボベルデ","CPV",218,null,null,null,null,null,"",null,null,null,null,null,null,"148456-69-3",37,"指1原01","2B04","Hexyl methylphosphonate","Hexyl methylphosphonate"]
[null,"高知県",39,"Kochi",null,null,null,null,null,null,null,null,null,null,null,null,"ガイアナ_GUY","ガイアナ","GUY",210,null,null,null,null,null,"",null,null,null,null,null,null,"14975-23-6",38,"指1原01","2B04","Methylphosphine borane","Methylphosphine borane"]
[null,"福岡県",40,"Fukuoka",null,null,null,null,null,null,null,null,null,null,null,null,"カザフスタン_KAZ","カザフスタン","KAZ",77,null,null,null,null,null,"",null,null,null,null,null,null,"1497-68-3",39,"指1原01","2B04","O-Ethyl ethylphosphonothionochloridate","O-Ethyl ethylphosphonothionochloridate"]
[null,"佐賀県",41,"Saga",null,null,null,null,null,null,null,null,null,null,null,null,"カタール_QAT","カタール","QAT",226,null,null,null,null,null,"",null,null,null,null,null,null,"1497-69-4",40,"指1原01","2B04","O-Methyl ethylphosphonothionochloridate","O-Methyl ethylphosphonothionochloridate"]
[null,"長崎県",42,"Nagasaki",null,null,null,null,null,null,null,null,null,null,null,null,"カナダ_CAN","カナダ","CAN",32,null,null,null,null,null,"",null,null,null,null,null,null,"1498-40-4",41,"指1原01","2B04","エチルホスホナスジクロリド","Ethylphosphonous dichloride"]
[null,"熊本県",43,"Kumamoto",null,null,null,null,null,null,null,null,null,null,null,null,"ガボン_GAB","ガボン","GAB",60,null,null,null,null,null,"",null,null,null,null,null,null,"1498-46-0",42,"指1原01","2B04","Isopropylphosphonic dichloride","Isopropylphosphonic dichloride"]
[null,"大分県",44,"Oita",null,null,null,null,null,null,null,null,null,null,null,null,"カメルーン_CMR","カメルーン","CMR",31,null,null,null,null,null,"",null,null,null,null,null,null,"1498-54-0",43,"指1原02","2B05","N,N-Diethylphosphoramidic dichloride","N,N-Diethylphosphoramidic dichloride"]
[null,"宮崎県",45,"Miyazaki",null,null,null,null,null,null,null,null,null,null,null,null,"ガンビア_GMB","ガンビア","GMB",197,null,null,null,null,null,"",null,null,null,null,null,null,"1498-60-8",44,"指1原01","2B04","Isopropylphosphonothioic dichloride","Isopropylphosphonothioic dichloride"]
[null,"鹿児島県",46,"Kagoshima",null,null,null,null,null,null,null,null,null,null,null,null,"カンボジア_KHM","カンボジア","KHM",30,null,null,null,null,null,"",null,null,null,null,null,null,"150799-85-2",45,"指1原01","2B04","Isobutyl methyl methylphosphonate","Isobutyl methyl methylphosphonate"]
[null,"沖縄県",47,"Okinawa",null,null,null,null,null,null,null,null,null,null,null,null,"北マケドニア_MKD","北マケドニア","MKD",null,null,null,null,null,null,"",null,null,null,null,null,null,"15110-09-5",46,"指1原01","2B04","Propyl methylphosphonochloridate","Propyl methylphosphonochloridate"]
[null,null,null,null,null,null,null,null,null,null,null,null,null,null,null,null,"ギニア_GIN","ギニア","GIN",65,null,null,null,null,null,"",null,null,null,null,null,null,"1538-69-8",47,"指1原01","2B04","Diethyl isopropylphosphonate","Diethyl isopropylphosphonate"]
[null,null,null,null,null,null,null,null,null,null,null,null,null,null,null,null,"ギニアビサウ_GNB","ギニアビサウ","GNB",208,null,null,null,null,null,"",null,null,null,null,null,null,"15512-81-9",48,"指1原07","2B10","N-(2-chloroethyl)-N-methylpropan-2-amine hydrochloride","N-(2-chloroethyl)-N-methylpropan-2-amine hydrochloride"]
[null,null,null,null,null,null,null,null,null,null,null,null,null,null,null,null,"キプロス_CYP","キプロス","CYP",46,null,null,null,null,null,"",null,null,null,null,null,null,"15715-41-0",49,"指1原01","2B04","ジエチルメチルホスホナイト","Diethyl methylphosphonite"]
[null,null,null,null,null,null,null,null,null,null,null,null,null,null,null,null,"キューバ_CUB","キューバ","CUB",45,null,null,null,null,null,"",null,null,null,null,null,null,"15715-42-1",50,"指1原01","2B04","Dimethyl ethylphosphonite","Dimethyl ethylphosphonite"]
[null,null,null,null,null,null,null,null,null,null,null,null,null,null,null,null,"ギリシャ_GRC","ギリシャ","GRC",203,null,null,null,null,null,"",null,null,null,null,null,null,"1604-38-2",51,"指1原01","2B04","Isobutyl methylphosphonate","Isobutyl methylphosphonate"]
[null,null,null,null,null,null,null,null,null,null,null,null,null,null,null,null,"キリバス_KIR","キリバス","KIR",79,null,null,null,null,null,"",null,null,null,null,null,null,"1619-34-7",52,"指1原06","2B09","キヌクリジン－３－オール","3-Quinuclidinol"]
[null,null,null,null,null,null,null,null,null,null,null,null,null,null,null,null,"キルギス_KGZ","キルギス","KGZ",79,null,null,null,null,null,"",null,null,null,null,null,null,"16391-07-4",53,"指1原01","2B04","エチル＝メチルホスフィナート","Ethyl methylphosphinate"]
[null,null,null,null,null,null,null,null,null,null,null,null,null,null,null,null,"グアテマラ_GTM","グアテマラ","GTM",81,null,null,null,null,null,"",null,null,null,null,null,null,"169739-48-4",54,"指1原01","2B04","Dipinacolyl ethylphosphonate","Dipinacolyl ethylphosphonate"]
[null,null,null,null,null,null,null,null,null,null,null,null,null,null,null,null,"クウェート_KWT","クウェート","KWT",206,null,null,null,null,null,"",null,null,null,null,null,null,"170082-64-1",55,"指1原03","2B06","Methyl propyl dimethylphosphoramidate","Methyl propyl dimethylphosphoramidate"]
[null,null,null,null,null,null,null,null,null,null,null,null,null,null,null,null,"クック諸島_COK","クック諸島","COK",80,null,null,null,null,null,"",null,null,null,null,null,null,"170082-69-6",56,"指1原01","2B04","sec-Butyl isopropylphosphonochloridate","sec-Butyl isopropylphosphonochloridate"]
[null,null,null,null,null,null,null,null,null,null,null,null,null,null,null,null,"グレナダ_GRD","グレナダ","GRD",224,null,null,null,null,null,"",null,null,null,null,null,null,"170082-70-9",57,"指1原01","2B04","Isobutyl isopropylphosphonochloridate","Isobutyl isopropylphosphonochloridate"]
[null,null,null,null,null,null,null,null,null,null,null,null,null,null,null,null,"クロアチア_HRV","クロアチア","HRV",44,null,null,null,null,null,"",null,null,null,null,null,null,"170082-71-0",58,"指1原01","2B04","sec-Butyl propylphosphonochloridate","sec-Butyl propylphosphonochloridate"]
[null,null,null,null,null,null,null,null,null,null,null,null,null,null,null,null,"ケニア_KEN","ケニア","KEN",78,null,null,null,null,null,"",null,null,null,null,null,null,"170082-85-6",59,"指1原01","2B04","S-(2-{[2-(dimethylamino)ethyl]sulfanyl}ethyl) hydrogen methylphosphonothioate","S-(2-{[2-(dimethylamino)ethyl]sulfanyl}ethyl) hydrogen methylphosphonothioate"]
[null,null,null,null,null,null,null,null,null,null,null,null,null,null,null,null,"コートジボワール_CIV","コートジボワール","CIV",43,null,null,null,null,null,"",null,null,null,null,null,null,"170135-50-9",60,"指1原01","2B04","Isopropyl ethylphosphonate","Isopropyl ethylphosphonate"]
[null,null,null,null,null,null,null,null,null,null,null,null,null,null,null,null,"コスタリカ_CRI","コスタリカ","CRI",42,null,null,null,null,null,"",null,null,null,null,null,null,"170275-32-8",61,"指1原01","2B04","Heptyl methylphosphonate","Heptyl methylphosphonate"]
[null,null,null,null,null,null,null,null,null,null,null,null,null,null,null,null,"コモロ_COM","コモロ","COM",39,null,null,null,null,null,"",null,null,null,null,null,null,"170275-34-0",62,"指1原01","2B04","Bis(2-methoxyethyl) ethylphosphonate","Bis(2-methoxyethyl) ethylphosphonate"]
[null,null,null,null,null,null,null,null,null,null,null,null,null,null,null,null,"コロンビア_COL","コロンビア","COL",38,null,null,null,null,null,"",null,null,null,null,null,null,"170275-46-4",63,"指1原03","2B06","Dimethyl N,N-diisopropylphosphoramidate","Dimethyl N,N-diisopropylphosphoramidate"]
[null,null,null,null,null,null,null,null,null,null,null,null,null,null,null,null,{"$f":"CONCATENATE($R69,IF($S69<>\"\",\"_\",\"\"),$S69)","v":"コンゴ共和国_COG"},"コンゴ共和国","COG",40,null,null,null,null,null,{"$f":"CONCATENATE($AB69, IF($AC69<>\"\",\"_\",\"\"), $AC69)","v":""},null,null,null,null,null,null,"170424-87-0",64,"指1原01","2B04","Cyclohexyl ethylphosphonate","Cyclohexyl ethylphosphonate"]
[null,null,null,null,null,null,null,null,null,null,null,null,null,null,null,null,"コンゴ民主共和国_COD","コンゴ民主共和国","COD",41,null,null,null,null,null,"",null,null,null,null,null,null,"170836-68-7",65,"指1原01","2B04","5-ｴﾁﾙ-2-ﾒﾁﾙ-2-ｵｷｼﾄﾞ-1,3,2-ｼﾞｵｷｻﾎｽﾎﾘﾅﾝ-5-ｲﾙﾒﾁﾙ=ﾒﾁﾙﾎｽﾎﾅｰﾄとﾋﾞｽ(5-ｴﾁﾙ-2-ﾒﾁﾙ-2-ｵｷｼﾄﾞ-1,3,2-ｼﾞｵｷｻﾎｽﾌｨﾅﾝ-5-ｲﾙﾒﾁﾙ)=ﾒﾁﾙﾎｽﾎﾅｰﾄの混合物","Mixture of CAS RN41203-81-0 and CAS RN42595-45-9"]
[null,null,null,null,null,null,null,null,null,null,null,null,null,null,null,null,"サウジアラビア_SAU","サウジアラビア","SAU",144,null,null,null,null,null,"",null,null,null,null,null,null,"17123-10-3",66,"指1原03","2B06","Dipropyl N,N-dipropylphosphoramidate","Dipropyl N,N-dipropylphosphoramidate"]
[null,null,null,null,null,null,null,null,null,null,null,null,null,null,null,null,"サモア_WSM","サモア","WSM",141,null,null,null,null,null,"",null,null,null,null,null,null,"17390-16-8",67,"指1原01","2B04","Ethyl S-sodium ethylphosphonothiolate","Ethyl S-sodium ethylphosphonothiolate"]
[null,null,null,null,null,null,null,null,null,null,null,null,null,null,null,null,"サントメ・プリンシペ_STP","サントメ・プリンシペ","STP",143,null,null,null,null,null,"",null,null,null,null,null,null,"17579-99-6",68,"指1原01","2B04","よう化メチルトリフェノキシホスホニウム","Methyltriphenoxyphosphonium iodide"]
[null,null,null,null,null,null,null,null,null,null,null,null,null,null,null,null,"ザンビア_ZMB","ザンビア","ZMB",184,null,null,null,null,null,"",null,null,null,null,null,null,"18005-37-3",69,"指1原01","2B04","O-Propyl methylphosphonothionochloridate","O-Propyl methylphosphonothionochloridate"]
[null,null,null,null,null,null,null,null,null,null,null,null,null,null,null,null,"サンマリノ_SMR","サンマリノ","SMR",142,null,null,null,null,null,"",null,null,null,null,null,null,"18005-40-8",70,"指1原01","2B04","Ｏ－エチルメチルホスホノチオエート","O-Ethyl methylphosphonothiolate"]
[null,null,null,null,null,null,null,null,null,null,null,null,null,null,null,null,"シエラレオネ_SLE","シエラレオネ","SLE",147,null,null,null,null,null,"",null,null,null,null,null,null,"1832-53-7",71,"指1原01","2B04","エチルメチルホスホン酸","Ethyl methylphosphonate"]
[null,null,null,null,null,null,null,null,null,null,null,null,null,null,null,null,"ジブチ_DJI","ジブチ","DJI",49,null,null,null,null,null,"",null,null,null,null,null,null,"1832-54-8",72,"指1原01","2B04","Isopropyl methylphosphonate","Isopropyl methylphosphonate"]
[null,null,null,null,null,null,null,null,null,null,null,null,null,null,null,null,"ジャマイカ_JAM","ジャマイカ","JAM",75,null,null,null,null,null,"",null,null,null,null,null,null,"1832-55-9",73,"指1原01","2B04","Butyl methylphosphonate","Butyl methylphosphonate"]
[null,null,null,null,null,null,null,null,null,null,null,null,null,null,null,null,"ジョージア_GEO","ジョージア","GEO",61,null,null,null,null,null,"",null,null,null,null,null,null,"1832-58-2",74,"指1原01","2B04","Octyl methylphosphonate","Octyl methylphosphonate"]
[null,null,null,null,null,null,null,null,null,null,null,null,null,null,null,null,"シリア_SYR","シリア","SYR",209,null,null,null,null,null,"",null,null,null,null,null,null,"1832-60-6",75,"指1原01","2B04","Nonyl methylphosphonate","Nonyl methylphosphonate"]
[null,null,null,null,null,null,null,null,null,null,null,null,null,null,null,null,"シンガポール_SGP","シンガポール","SGP",148,null,null,null,null,null,"",null,null,null,null,null,null,"1832-68-4",76,"指1原01","2B04","Dioctyl methylphosphonate","Dioctyl methylphosphonate"]
[null,null,null,null,null,null,null,null,null,null,null,null,null,null,null,null,"ジンバブエ_ZWE","ジンバブエ","ZWE",185,null,null,null,null,null,"",null,null,null,null,null,null,"18359-05-2",77,"指1原01","2B04","Isobutyl methylphosphonochloridate","Isobutyl methylphosphonochloridate"]
[null,null,null,null,null,null,null,null,null,null,null,null,null,null,null,null,"スイス_CHE","スイス","CHE",159,null,null,null,null,null,"",null,null,null,null,null,null,"18628-73-4",78,"指1原01","2B04","O,O-Dibutyl methylphosphonothionate","O,O-Dibutyl methylphosphonothionate"]
[null,null,null,null,null,null,null,null,null,null,null,null,null,null,null,null,"スウェーデン_SWE","スウェーデン","SWE",158,null,null,null,null,null,"",null,null,null,null,null,null,"18755-36-7",79,"指1原01","2B04","Ethyl methyl methylphosphonate","Ethyl methyl methylphosphonate"]
[null,null,null,null,null,null,null,null,null,null,null,null,null,null,null,null,"スーダン_SDN","スーダン","SDN",155,null,null,null,null,null,"",null,null,null,null,null,null,"18755-43-6",80,"指1原01","2B04","Dimethyl propylphosphonate","Dimethyl propylphosphonate"]
[null,null,null,null,null,null,null,null,null,null,null,null,null,null,null,null,"スペイン_ESP","スペイン","ESP",154,null,null,null,null,null,"",null,null,null,null,null,null,"18755-44-7",81,"指1原01","2B04","Methyl propyl propylphosphonate","Methyl propyl propylphosphonate"]
[null,null,null,null,null,null,null,null,null,null,null,null,null,null,null,null,"スリナム_SUR","スリナム","SUR",204,null,null,null,null,null,"",null,null,null,null,null,null,"18812-51-6",82,"指1原01","2B04","１－プロパンホスホン酸ジエチル","Diethyl propylphosphonate"]
[null,null,null,null,null,null,null,null,null,null,null,null,null,null,null,null,"スリランカ_LKA","スリランカ","LKA",200,null,null,null,null,null,"",null,null,null,null,null,null,"18812-55-0",83,"指1原01","2B04","Diisopropyl propylphosphonate","Diisopropyl propylphosphonate"]
[null,null,null,null,null,null,null,null,null,null,null,null,null,null,null,null,"スロバキア_SVK","スロバキア","SVK",149,null,null,null,null,null,"",null,null,null,null,null,null,"192438-31-6",84,"指1原01","2B04","Dipinacolyl propylphosphonate","Dipinacolyl propylphosphonate"]
[null,null,null,null,null,null,null,null,null,null,null,null,null,null,null,null,"スロベニア_SVN","スロベニア","SVN",150,null,null,null,null,null,"",null,null,null,null,null,null,"192698-90-1",85,"指1原01","2B04","Dipropyl isopropylphosphonate","Dipropyl isopropylphosphonate"]
[null,null,null,null,null,null,null,null,null,null,null,null,null,null,null,null,"セーシェル_SYC","セーシェル","SYC",146,null,null,null,null,null,"",null,null,null,null,null,null,"1932-60-1",86,"指1原01","2B04","Cyclohexyl methylphosphonate","Cyclohexyl methylphosphonate"]
[null,null,null,null,null,null,null,null,null,null,null,null,null,null,null,null,"赤道ギニア_GNQ","赤道ギニア","GNQ",54,null,null,null,null,null,"",null,null,null,null,null,null,"1942-52-5",87,"指1原09","2B12","２－ジエチルアミノエタンチオール塩酸塩","2-(N,N-Diethylamino)ethanethiol hydrochloride"]
[null,null,null,null,null,null,null,null,null,null,null,null,null,null,null,null,"セネガル_SEN","セネガル","SEN",145,null,null,null,null,null,"",null,null,null,null,null,null,"198885-54-0",88,"指1原01","2B04","1-Methylbutyl methylphosphonate","1-Methylbutyl methylphosphonate"]
[null,null,null,null,null,null,null,null,null,null,null,null,null,null,null,null,"セルビア_SRB","セルビア","SRB",191,null,null,null,null,null,"",null,null,null,null,null,null,"20194-81-4",89,"指1毒01","2A01","2-[(diethoxyphosphoryl)sulfanyl]-N,N,N-triethylethanaminium","2-[(diethoxyphosphoryl)sulfanyl]-N,N,N-triethylethanaminium"]
[null,null,null,null,null,null,null,null,null,null,null,null,null,null,null,null,"セントクリストファー・ネービス_KNA","セントクリストファー・ネービス","KNA",138,null,null,null,null,null,"",null,null,null,null,null,null,"20626-99-7",90,"指1原01","2B04","O-Isobutyl methylphosphonothiolate","O-Isobutyl methylphosphonothiolate"]
[null,null,null,null,null,null,null,null,null,null,null,null,null,null,null,null,"セントビンセント及びグレナディーン諸島_VCT","セントビンセント及びグレナディーン諸島","VCT",140,null,null,null,null,null,"",null,null,null,null,null,null,"211923-89-6",91,"指1原01","2B04","Isopropyl methyl propylphosphonate","Isopropyl methyl propylphosphonate"]
[null,null,null,null,null,null,null,null,null,null,null,null,null,null,null,null,"セントルシア_LCA","セントルシア","LCA",231,null,null,null,null,null,"",null,null,null,null,null,null,"21921-97-1",92,"指1原01","2B04","Propyl propylphosphonate","Propyl propylphosphonate"]
[null,null,null,null,null,null,null,null,null,null,null,null,null,null,null,null,"ソマリア_SOM","ソマリア","SOM",152,null,null,null,null,null,"",null,null,null,null,null,null,"22250-42-6",93,"指1原03","2B06","Dipropyl N,N-diethylphosphoramidate","Dipropyl N,N-diethylphosphoramidate"]
[null,null,null,null,null,null,null,null,null,null,null,null,null,null,null,null,"ソロモン_SLB","ソロモン","SLB",151,null,null,null,null,null,"",null,null,null,null,null,null,"22307-81-9",94,"指1原01","2B04","Ethyl S-sodium methylphosphonothiolate","Ethyl S-sodium methylphosphonothiolate"]
[null,null,null,null,null,null,null,null,null,null,null,null,null,null,null,null,"タイ_THA","タイ","THA",163,null,null,null,null,null,"",null,null,null,null,null,null,"22583-27-3",95,"指1原01","2B04","Dicyclopentyl methylphosphonate","Dicyclopentyl methylphosphonate"]
[null,null,null,null,null,null,null,null,null,null,null,null,null,null,null,null,"大韓民国_KOR","大韓民国","KOR",132,null,null,null,null,null,null,null,null,null,null,null,null,"23164-47-8",96,"指1原01","2B04","Butyl methylphosphonochloridate","Butyl methylphosphonochloridate"]
[null,null,null,null,null,null,null,null,null,null,null,null,null,null,null,null,"タジキスタン_TJK","タジキスタン","TJK",161,null,null,null,null,null,null,null,null,null,null,null,null,"23306-80-1",97,"指1原02","2B05","N,N-Diisopropylphosphoramidic dichloride","N,N-Diisopropylphosphoramidic dichloride"]
[null,null,null,null,null,null,null,null,null,null,null,null,null,null,null,null,"タンザニア_TZA","タンザニア","TZA",162,null,null,null,null,null,null,null,null,null,null,null,null,"2404-03-7",98,"指1原03","2B06","Diethyl N,N-dimethylphosphoramidate","Diethyl N,N-dimethylphosphoramidate"]
[null,null,null,null,null,null,null,null,null,null,null,null,null,null,null,null,"チェコ_CZE","チェコ","CZE",47,null,null,null,null,null,null,null,null,null,null,null,null,"2404-04-8",99,"指1原03","2B06","Diisopropyl N,N-dimethylphosphoramidate","Diisopropyl N,N-dimethylphosphoramidate"]
[null,null,null,null,null,null,null,null,null,null,null,null,null,null,null,null,"チャド_TCD","チャド","TCD",221,null,null,null,null,null,null,null,null,null,null,null,null,"2404-73-1",100,"指1原01","2B04","Dibutyl methylphosphonate","Dibutyl methylphosphonate"]
[null,null,null,null,null,null,null,null,null,null,null,null,null,null,null,null,"チュニジア_TUN","チュニジア","TUN",168,null,null,null,null,null,null,null,null,null,null,null,null,"249934-12-1",101,"指1原01","2B04","Pinacolyl propylphosphonate","Pinacolyl propylphosphonate"]
[null,null,null,null,null,null,null,null,null,null,null,null,null,null,null,null,"北朝鮮_PRK","北朝鮮","PRK",228,null,null,null,null,null,null,null,null,null,null,null,null,"249934-13-2",102,"指1原01","2B04","Methyl isopropylphosphonate","Methyl isopropylphosphonate"]
[null,null,null,null,null,null,null,null,null,null,null,null,null,null,null,null,"チリ_CHL","チリ","CHL",35,null,null,null,null,null,null,null,null,null,null,null,null,"249934-15-4",103,"指1原01","2B04","Isopropyl isopropylphosphonate","Isopropyl isopropylphosphonate"]
[null,null,null,null,null,null,null,null,null,null,null,null,null,null,null,null,"中央アフリカ_CAF","中央アフリカ","CAF",34,null,null,null,null,null,null,null,null,null,null,null,null,"249934-16-5",104,"指1原01","2B04","Pinacolyl isopropylphosphonate","Pinacolyl isopropylphosphonate"]
[null,null,null,null,null,null,null,null,null,null,null,null,null,null,null,null,"中華人民共和国_CHN","中華人民共和国","CHN",36,null,null,null,null,null,null,null,null,null,null,null,null,"2511-10-6",105,"指1原01","2B04","O-Ethyl S-ethyl methylphosphonothiolate","O-Ethyl S-ethyl methylphosphonothiolate"]
[null,null,null,null,null,null,null,null,null,null,null,null,null,null,null,null,"中華人民共和国（台湾）_TWN","中華人民共和国（台湾）","TWN",160,null,null,null,null,null,null,null,null,null,null,null,null,"2511-17-3",106,"指1原01","2B04","メチルホスホン酸＝ビス（ジメチルアミド）","Methylphosphonic bis(dimethylamide)"]
[null,null,null,null,null,null,null,null,null,null,null,null,null,null,null,null,"ツバル_TUV","ツバル","TUV",222,null,null,null,null,null,null,null,null,null,null,null,null,"25235-15-8",107,"指1原01","2B04","イソプロピルホスホナスジクロリド","Isopropylphosphonous dichloride"]
[null,null,null,null,null,null,null,null,null,null,null,null,null,null,null,null,"デンマーク_DNK","デンマーク","DNK",48,null,null,null,null,null,null,null,null,null,null,null,null,"2524-01-8",108,"指1原01","2B04","Propylphosphonothioic dichloride","Propylphosphonothioic dichloride"]
[null,null,null,null,null,null,null,null,null,null,null,null,null,null,null,null,"ドイツ_DEU","ドイツ","DEU",62,null,null,null,null,null,null,null,null,null,null,null,null,"2524-15-4",109,"指1原01","2B04","O-Methyl methylphosphonothionochloridate","O-Methyl methylphosphonothionochloridate"]
[null,null,null,null,null,null,null,null,null,null,null,null,null,null,null,null,"トーゴ_TGO","トーゴ","TGO",215,null,null,null,null,null,null,null,null,null,null,null,null,"2524-16-5",110,"指1原01","2B04","O-Ethyl methylphosphonothionochloridate","O-Ethyl methylphosphonothionochloridate"]
[null,null,null,null,null,null,null,null,null,null,null,null,null,null,null,null,"ドミニカ_DMA","ドミニカ","DMA",50,null,null,null,null,null,null,null,null,null,null,null,null,"25333-42-0",111,"指1原06","2B09","Ｒ－（－）－キヌクリジン－３－オール","R-(-)-3-Quinuclidinol"]
[null,null,null,null,null,null,null,null,null,null,null,null,null,null,null,null,"ドミニカ共和国_DOM","ドミニカ共和国","DOM",188,null,null,null,null,null,null,null,null,null,null,null,null,"2651-85-6",112,"指1原01","2B04","Diethyl ethylphosphonite","Diethyl ethylphosphonite"]
[null,null,null,null,null,null,null,null,null,null,null,null,null,null,null,null,"トリニダード・トバゴ_TTO","トリニダード・トバゴ","TTO",167,null,null,null,null,null,null,null,null,null,null,null,null,"27797-35-9",113,"指1原01","2B04","Propylphosphonothioic acid","Propylphosphonothioic acid"]
[null,null,null,null,null,null,null,null,null,null,null,null,null,null,null,null,"トルクメニスタン_TKM","トルクメニスタン","TKM",220,null,null,null,null,null,null,null,null,null,null,null,null,"2799-58-8",114,"指1原01","2B04","Bis(2-chloroethyl) methylphosphonate","Bis(2-chloroethyl) methylphosphonate"]
[null,null,null,null,null,null,null,null,null,null,null,null,null,null,null,null,"トルコ_TUR","トルコ","TUR",169,null,null,null,null,null,null,null,null,null,null,null,null,"28616-51-5",115,"指1原01","2B04","Diisopropyl dimethylpyrophosphonate","Diisopropyl dimethylpyrophosphonate"]
[null,null,null,null,null,null,null,null,null,null,null,null,null,null,null,null,"トンガ_TON","トンガ","TON",166,null,null,null,null,null,null,null,null,null,null,null,null,"28829-95-0",116,"指1原01","2B04","Isopropyl ethylphosphonochloridate","Isopropyl ethylphosphonochloridate"]
[null,null,null,null,null,null,null,null,null,null,null,null,null,null,null,null,"ナイジェリア_NGA","ナイジェリア","NGA",116,null,null,null,null,null,null,null,null,null,null,null,null,"28830-00-4",117,"指1原01","2B04","Ethyl propylphosphonochloridate","Ethyl propylphosphonochloridate"]
[null,null,null,null,null,null,null,null,null,null,null,null,null,null,null,null,"ナウル_NRU","ナウル","NRU",109,null,null,null,null,null,null,null,null,null,null,null,null,"28841-40-9",118,"指1原01","2B04","S-2-Dipropylaminoethyl methylphosphonothionofluoridate","S-2-Dipropylaminoethyl methylphosphonothionofluoridate"]
[null,null,null,null,null,null,null,null,null,null,null,null,null,null,null,null,"ナミビア_NAM","ナミビア","NAM",108,null,null,null,null,null,null,null,null,null,null,null,null,"2893-43-8",119,"指1原08","2B11","2-(N-Ethyl-N-methylamino)ethanol","2-(N-Ethyl-N-methylamino)ethanol"]
[null,null,null,null,null,null,null,null,null,null,null,null,null,null,null,null,"ニウエ_NIU","ニウエ","NIU",217,null,null,null,null,null,null,null,null,null,null,null,null,"2893-45-0",120,"指1原08","2B11","2-(N-Methyl-N-propylamino)ethanol","2-(N-Methyl-N-propylamino)ethanol"]
[null,null,null,null,null,null,null,null,null,null,null,null,null,null,null,null,"日本_JPN","日本","JPN",223,null,null,null,null,null,null,null,null,null,null,null,null,"2893-49-4",121,"指1原08","2B11","2-[isopropyl(methyl)amino]ethanol","2-[isopropyl(methyl)amino]ethanol"]
[null,null,null,null,null,null,null,null,null,null,null,null,null,null,null,null,"ニカラグア_NIC","ニカラグア","NIC",114,null,null,null,null,null,null,null,null,null,null,null,null,"2893-56-3",122,"指1原08","2B11","2-(N-Ethyl-N-propylamino)ethanol","2-(N-Ethyl-N-propylamino)ethanol"]
[null,null,null,null,null,null,null,null,null,null,null,null,null,null,null,null,"ニジェール_NER","ニジェール","NER",115,null,null,null,null,null,null,null,null,null,null,null,null,"2893-61-0",123,"指1原08","2B11","2-(N-Ethyl-N-isopropylamino)ethanol","2-(N-Ethyl-N-isopropylamino)ethanol"]
[null,null,null,null,null,null,null,null,null,null,null,null,null,null,null,null,"ニュージーランド_NZL","ニュージーランド","NZL",113,null,null,null,null,null,null,null,null,null,null,null,null,"2893-62-1",124,"指1原08","2B11","Ethanol, 2-(ethylisopropylamino)-, picrate (7CI, 8CI)","Ethanol, 2-(ethylisopropylamino)-, picrate (7CI, 8CI)"]
[null,null,null,null,null,null,null,null,null,null,null,null,null,null,null,null,"ネパール_NPL","ネパール","NPL",211,null,null,null,null,null,null,null,null,null,null,null,null,"2893-64-3",125,"指1原08","2B11","Ethanol, 2-(ethylpropylamino)-, picrate (7CI, 8CI)","Ethanol, 2-(ethylpropylamino)-, picrate (7CI, 8CI)"]
[null,null,null,null,null,null,null,null,null,null,null,null,null,null,null,null,"ノルウェー_NOR","ノルウェー","NOR",119,null,null,null,null,null,null,null,null,null,null,null,null,"294675-51-7",126,"指1原01","2B04","Phosphonic acid, methyl-, polyglycol ester (Exolit OP 560 TP)","Phosphonic acid, methyl-, polyglycol ester (Exolit OP 560 TP)"]
[null,null,null,null,null,null,null,null,null,null,null,null,null,null,null,null,"バーレーン_BHR","バーレーン","BHR",13,null,null,null,null,null,null,null,null,null,null,null,null,"3001-98-7",127,"指1原01","2B04","３，９－ジメチル－２，４，８，１０－テトラオキサ－３，９－ジホスファスピロ［５．５］ウンデカン＝３，９－ジオキシド","3,9-Dimethyl-2,4,8,10-tetraoxa-3,9-diphosphaspiro[5.5]undecane 3,9-dioxide"]
[null,null,null,null,null,null,null,null,null,null,null,null,null,null,null,null,{"$f":"CONCATENATE($R133,IF($S133<>\"\",\"_\",\"\"),$S133)","v":"ハイチ_HTI"},"ハイチ","HTI",212,null,null,null,null,null,null,null,null,null,null,null,null,"30593-71-6",128,"指1原01","2B04","1-Methyl-2-propynyl methylphosphonofluoridate","1-Methyl-2-propynyl methylphosphonofluoridate"]
[null,null,null,null,null,null,null,null,null,null,null,null,null,null,null,null,"パキスタン_PAK","パキスタン","PAK",121,null,null,null,null,null,null,null,null,null,null,null,null,"3167-69-9",129,"指1原03","2B06","Diethyl N,N-diethylphosphoramidate","Diethyl N,N-diethylphosphoramidate"]
[null,null,null,null,null,null,null,null,null,null,null,null,null,null,null,null,"バチカン_VAT","バチカン","VAT",66,null,null,null,null,null,null,null,null,null,null,null,null,"3238-75-3",130,"指1原08","2B11","2-(N,N-Dipropylamino)ethanol","2-(N,N-Dipropylamino)ethanol"]
[null,null,null,null,null,null,null,null,null,null,null,null,null,null,null,null,"パナマ_PAN","パナマ","PAN",124,null,null,null,null,null,null,null,null,null,null,null,null,"327-98-0",131,"指1原01","2B04","トリクロロノート","O-Ethyl O-(2,4,5-trichlorophenyl) ethylphosphonothionate"]
[null,null,null,null,null,null,null,null,null,null,null,null,null,null,null,null,"バヌアツ_VUT","バヌアツ","VUT",179,null,null,null,null,null,null,null,null,null,null,null,null,"331954-04-2",132,"指1原01","2B04","Isopropyl methyl isopropylphosphonate","Isopropyl methyl isopropylphosphonate"]
[null,null,null,null,null,null,null,null,null,null,null,null,null,null,null,null,"バハマ_BHS","バハマ","BHS",12,null,null,null,null,null,null,null,null,null,null,null,null,"34583-34-1",133,"指1原06","2B09","3-(+)-3-キヌクリジノール","S-(+)-3-Quinuclidinol"]
[null,null,null,null,null,null,null,null,null,null,null,null,null,null,null,null,"パプアニューギニア_PNG","パプアニューギニア","PNG",125,null,null,null,null,null,null,null,null,null,null,null,null,"354-43-8",134,"指1原02","2B05","Dimethylphosphoramidic difluoride","Dimethylphosphoramidic difluoride"]
[null,null,null,null,null,null,null,null,null,null,null,null,null,null,null,null,"パラオ_PLW","パラオ","PLW",122,null,null,null,null,null,null,null,null,null,null,null,null,"35851-62-8",135,"指1原01","2B04","Aluminium methyl methylphosphonate","Aluminium methyl methylphosphonate"]
[null,null,null,null,null,null,null,null,null,null,null,null,null,null,null,null,"パラグアイ_PRY","パラグアイ","PRY",126,null,null,null,null,null,null,null,null,null,null,null,null,"359-94-4",136,"指1原02","2B05","Diethylphosphoramidic difluoride","Diethylphosphoramidic difluoride"]
[null,null,null,null,null,null,null,null,null,null,null,null,null,null,null,null,"バルバドス_BRB","バルバドス","BRB",15,null,null,null,null,null,null,null,null,null,null,null,null,"363626-50-0",137,"指1原01","2B04","ビス（ポリオキシエチレン）メチルホスホネート","Bis(polyoxyethylene) methylphosphonate"]
[null,null,null,null,null,null,null,null,null,null,null,null,null,null,null,null,"パレスチナ_PSE","パレスチナ","PSE",123,null,null,null,null,null,null,null,null,null,null,null,null,"36598-84-2",138,"指1原02","2B05","Dimethylphosphoramidic chloride fluoride","Dimethylphosphoramidic chloride fluoride"]
[null,null,null,null,null,null,null,null,null,null,null,null,null,null,null,null,"ハンガリー_HUN","ハンガリー","HUN",68,null,null,null,null,null,null,null,null,null,null,null,null,"36716-60-6",139,"指1原07","2B10","2-(N,N-Dipropylamino)ethylchloride","2-(N,N-Dipropylamino)ethylchloride"]
[null,null,null,null,null,null,null,null,null,null,null,null,null,null,null,null,"バングラデシュ_BGD","バングラデシュ","BGD",14,null,null,null,null,null,null,null,null,null,null,null,null,"36759-66-7",140,"指1原09","2B12","2-(N-Isopropyl-N-methylamino)ethanethiol","2-(N-Isopropyl-N-methylamino)ethanethiol"]
[null,null,null,null,null,null,null,null,null,null,null,null,null,null,null,null,"東ティモール_TLS","東ティモール","TLS",214,null,null,null,null,null,null,null,null,null,null,null,null,"36759-67-8",141,"指1原09","2B12","2-(N-Ethyl-N-isopropylamino)ethanethiol","2-(N-Ethyl-N-isopropylamino)ethanethiol"]
[null,null,null,null,null,null,null,null,null,null,null,null,null,null,null,null,"フィジー_FJI","フィジー","FJI",58,null,null,null,null,null,null,null,null,null,null,null,null,"36759-68-9",142,"指1原09","2B12","2-[isopropyl(propyl)amino]ethanethiol","2-[isopropyl(propyl)amino]ethanethiol"]
[null,null,null,null,null,null,null,null,null,null,null,null,null,null,null,null,"フィリピン_PHL","フィリピン","PHL",128,null,null,null,null,null,null,null,null,null,null,null,null,"3734-97-2",143,"指1毒01","2A01","S-[2-(diethylamino)ethyl] O,O-diethyl phosphorothioate oxalate","S-[2-(diethylamino)ethyl] O,O-diethyl phosphorothioate oxalate"]
[null,null,null,null,null,null,null,null,null,null,null,null,null,null,null,null,"フィンランド_FIN","フィンランド","FIN",195,null,null,null,null,null,null,null,null,null,null,null,null,"3759-39-5",144,"指1原01","2B04","Diisopropyl isopropylphosphonate","Diisopropyl isopropylphosphonate"]
[null,null,null,null,null,null,null,null,null,null,null,null,null,null,null,null,"ブータン_BTN","ブータン","BTN",20,null,null,null,null,null,null,null,null,null,null,null,null,"382-21-8",145,"指1毒02","2A02","１・１・３・３・３－ペンタフルオロ－２－（トリフルオロメチル）－１－プロペン","1,1,3,3,3-Pentafluoro-2-(trifluoromethyl)-1-propene"]
[null,null,null,null,null,null,null,null,null,null,null,null,null,null,null,null,"ブラジル_BRA","ブラジル","BRA",24,null,null,null,null,null,null,null,null,null,null,null,null,"408326-30-7",146,"指1原07","2B10","2-(N-Isopropyl-N-methylamino)ethylchloride","2-(N-Isopropyl-N-methylamino)ethylchloride"]
[null,null,null,null,null,null,null,null,null,null,null,null,null,null,null,null,"フランス_FRA","フランス","FRA",59,null,null,null,null,null,null,null,null,null,null,null,null,"40881-98-9",147,"指1原02","2B05","N,N-Dipropylphosphoramidic dichloride","N,N-Dipropylphosphoramidic dichloride"]
[null,null,null,null,null,null,null,null,null,null,null,null,null,null,null,null,"ブルガリア_BGR","ブルガリア","BGR",27,null,null,null,null,null,null,null,null,null,null,null,null,"40882-01-7",148,"指1原02","2B05","Dipropylphosphoramidic difluoride","Dipropylphosphoramidic difluoride"]
[null,null,null,null,null,null,null,null,null,null,null,null,null,null,null,null,"ブルキナファソ_BFA","ブルキナファソ","BFA",28,null,null,null,null,null,null,null,null,null,null,null,null,"41203-81-0",149,"指1原01","2B04","メチルホスホン酸（５－エチル－２－メチル－２－オキシド－１，３，２－ジオキサホスホリナン－５－イル）メチルメチルエステル","(5-Ethyl-2-methyl-2-oxido-1,3,2-dioxaphosphinan-5-yl)methyl methyl methylphosphonate"]
[null,null,null,null,null,null,null,null,null,null,null,null,null,null,null,null,"ブルネイ_BRN","ブルネイ","BRN",26,null,null,null,null,null,null,null,null,null,null,null,null,"41480-75-5",150,"指1原09","2B12","2-(N,N-Diisopropylamino)ethanethiol hydrochloride","2-(N,N-Diisopropylamino)ethanethiol hydrochloride"]
[null,null,null,null,null,null,null,null,null,null,null,null,null,null,null,null,"ブルンジ_BDI","ブルンジ","BDI",29,null,null,null,null,null,null,null,null,null,null,null,null,"4206-94-4",151,"指1原01","2B04","Methylphosphinic acid","Methylphosphinic acid"]
[null,null,null,null,null,null,null,null,null,null,null,null,null,null,null,null,"ベトナム_VNM","ベトナム","VNM",181,null,null,null,null,null,null,null,null,null,null,null,null,"4241-34-3",152,"指1原01","2B04","O-Cyclohexyl methylphosphonothionofluoridate","O-Cyclohexyl methylphosphonothionofluoridate"]
[null,null,null,null,null,null,null,null,null,null,null,null,null,null,null,null,"ベナン_BEN","ベナン","BEN",202,null,null,null,null,null,null,null,null,null,null,null,null,"42595-45-9",153,"指1原01","2B04","ビス［（５－エチル－２－メチル－２－オキシド－１，３，２－ジオキサホスホスフィナン－５－イル）メチル］メチルホスホネート","Bis[(5-Ethyl-2-methyl-2-oxido-1,3,2-dioxaphosphinan-5-yl)methyl] methylphosphonate"]
[null,null,null,null,null,null,null,null,null,null,null,null,null,null,null,null,"ベネズエラ_VEN","ベネズエラ","VEN",180,null,null,null,null,null,null,null,null,null,null,null,null,"4261-68-1",154,"指1原07","2B10","Ｎ，Ｎ－ジイソプロピルアミノエチル－２－クロリド塩酸塩","2-(N,N-Diisopropylamino)ethylchloride hydrochloride"]
[null,null,null,null,null,null,null,null,null,null,null,null,null,null,null,null,"ベラルーシ_BLR","ベラルーシ","BLR",16,null,null,null,null,null,null,null,null,null,null,null,null,"4535-76-6",155,"指1原08","2B11","2-(dipropylamino)ethanol hydrochloride","2-(dipropylamino)ethanol hydrochloride"]
[null,null,null,null,null,null,null,null,null,null,null,null,null,null,null,null,"ベリーズ_BLZ","ベリーズ","BLZ",18,null,null,null,null,null,null,null,null,null,null,null,null,"4535-77-7",156,"指1原08","2B11","2-(N-Isopropyl-N-propylamino)ethanol","2-(N-Isopropyl-N-propylamino)ethanol"]
[null,null,null,null,null,null,null,null,null,null,null,null,null,null,null,null,"ペルー_PER","ペルー","PER",127,null,null,null,null,null,null,null,null,null,null,null,null,"4535-86-8",157,"指1原07","2B10","N-(2-chloroethyl)-N-propylpropan-1-amine hydrochloride","N-(2-chloroethyl)-N-propylpropan-1-amine hydrochloride"]
[null,null,null,null,null,null,null,null,null,null,null,null,null,null,null,null,"ベルギー_BEL","ベルギー","BEL",17,null,null,null,null,null,null,null,null,null,null,null,null,"4535-88-0",158,"指1原07","2B10","2-chloro-N-ethyl-N-methylethanamine hydrochloride","2-chloro-N-ethyl-N-methylethanamine hydrochloride"]
[null,null,null,null,null,null,null,null,null,null,null,null,null,null,null,null,"ポーランド_POL","ポーランド","POL",130,null,null,null,null,null,null,null,null,null,null,null,null,"4535-89-1",159,"指1原07","2B10","N-(2-chloroethyl)-N-isopropylpropan-1-amine hydrochloride","N-(2-chloroethyl)-N-isopropylpropan-1-amine hydrochloride"]
[null,null,null,null,null,null,null,null,null,null,null,null,null,null,null,null,"ボスニア・ヘルツェゴビナ_BIH","ボスニア・ヘルツェゴビナ","BIH",22,null,null,null,null,null,null,null,null,null,null,null,null,"4546-11-6",160,"指1原01","2B04","Propyl methylphosphonate","Propyl methylphosphonate"]
[null,null,null,null,null,null,null,null,null,null,null,null,null,null,null,null,"ボツワナ_BWA","ボツワナ","BWA",207,null,null,null,null,null,null,null,null,null,null,null,null,"4546-12-7",161,"指1原01","2B04","Ethyl isopropylphosphonate","Ethyl isopropylphosphonate"]
[null,null,null,null,null,null,null,null,null,null,null,null,null,null,null,null,"ボリビア_BOL","ボリビア","BOL",21,null,null,null,null,null,null,null,null,null,null,null,null,"4584-46-7",162,"指1原07","2B10","Ｎ，Ｎ－ジメチルアミノエチル－２－クロリド塩酸塩","2-(N,N-Dimethylamino)ethylchloride hydrochloride"]
[null,null,null,null,null,null,null,null,null,null,null,null,null,null,null,null,"ポルトガル_PRT","ポルトガル","PRT",225,null,null,null,null,null,null,null,null,null,null,null,null,"460091-25-2",163,"指1原01","2B04","Bis(1-methylbutyl) methylphosphonate","Bis(1-methylbutyl) methylphosphonate"]
[null,null,null,null,null,null,null,null,null,null,null,null,null,null,null,null,"ホンジュラス_HND","ホンジュラス","HND",213,null,null,null,null,null,null,null,null,null,null,null,null,"4628-12-0",164,"指1原01","2B04","Dibutyl propylphosphonate","Dibutyl propylphosphonate"]
[null,null,null,null,null,null,null,null,null,null,null,null,null,null,null,null,"マーシャル_MHL","マーシャル","MHL",186,null,null,null,null,null,null,null,null,null,null,null,null,"464-07-3",165,"指1原11","2B14","３・３－ジメチルブタン－２－オール","3,3-Dimethyl-2-butanol"]
[null,null,null,null,null,null,null,null,null,null,null,null,null,null,null,null,"マダガスカル_MDG","マダガスカル","MDG",91,null,null,null,null,null,null,null,null,null,null,null,null,"4672-38-2",166,"指1原01","2B04","プロピルホスホン酸","Propylphosphonic acid"]
[null,null,null,null,null,null,null,null,null,null,null,null,null,null,null,null,"マラウイ_MWI","マラウイ","MWI",92,null,null,null,null,null,null,null,null,null,null,null,null,"4708-04-7",167,"指1原01","2B04","プロピルホスホン酸＝ジクロリド","Propylphosphonic dichloride"]
[null,null,null,null,null,null,null,null,null,null,null,null,null,null,null,null,"マリ_MLI","マリ","MLI",95,null,null,null,null,null,null,null,null,null,null,null,null,"4759-30-2",168,"指1原01","2B04","P-methylphosphonic diamide","P-methylphosphonic diamide"]
[null,null,null,null,null,null,null,null,null,null,null,null,null,null,null,null,"マルタ_MLT","マルタ","MLT",194,null,null,null,null,null,null,null,null,null,null,null,null,"506-77-4",169,"指2毒02","3A02","塩化シアン","Cyanogen chloride"]
[null,null,null,null,null,null,null,null,null,null,null,null,null,null,null,null,"マレーシア_MYS","マレーシア","MYS",93,null,null,null,null,null,null,null,null,null,null,null,null,"51825-84-4",170,"指1原01","2B04","Propyl S-sodium methylphosphonothiolate","Propyl S-sodium methylphosphonothiolate"]
[null,null,null,null,null,null,null,null,null,null,null,null,null,null,null,null,"ミクロネシア_FSM","ミクロネシア","FSM",100,null,null,null,null,null,null,null,null,null,null,null,null,"51825-85-5",171,"指1原01","2B04","Butyl S-sodium methylphosphonothiolate","Butyl S-sodium methylphosphonothiolate"]
[null,null,null,null,null,null,null,null,null,null,null,null,null,null,null,null,"南アフリカ共和国_ZAF","南アフリカ共和国","ZAF",198,null,null,null,null,null,null,null,null,null,null,null,null,"5284-09-3",172,"指1原01","2B04","Ethyl methylphosphonochloridate","Ethyl methylphosphonochloridate"]
[null,null,null,null,null,null,null,null,null,null,null,null,null,null,null,null,"南スーダン_SSD","南スーダン","SSD",232,null,null,null,null,null,null,null,null,null,null,null,null,"53279-98-4",173,"指1原03","2B06","Diethyl ethyl(methyl)phosphoramidate","Diethyl ethyl(methyl)phosphoramidate"]
[null,null,null,null,null,null,null,null,null,null,null,null,null,null,null,null,"ミャンマー_MMR","ミャンマー","MMR",107,null,null,null,null,null,null,null,null,null,null,null,null,"53621-99-1",174,"指1原01","2B04","Isopropyl propylphosphonate","Isopropyl propylphosphonate"]
[null,null,null,null,null,null,null,null,null,null,null,null,null,null,null,null,"メキシコ_MEX","メキシコ","MEX",99,null,null,null,null,null,null,null,null,null,null,null,null,"54153-16-1",175,"指1原07","2B10","2-(N-Ethyl-N-methylamino)ethylchloride","2-(N-Ethyl-N-methylamino)ethylchloride"]
[null,null,null,null,null,null,null,null,null,null,null,null,null,null,null,null,"モーリシャス_MUS","モーリシャス","MUS",196,null,null,null,null,null,null,null,null,null,null,null,null,"54552-77-1",176,"指1原01","2B04","Dimethyl isopropylphosphonate","Dimethyl isopropylphosphonate"]
[null,null,null,null,null,null,null,null,null,null,null,null,null,null,null,null,"モーリタニア_MRT","モーリタニア","MRT",97,null,null,null,null,null,null,null,null,null,null,null,null,"57523-33-8",177,"指1原01","2B04","Cyclohexyl ethylphosphonochloridate","Cyclohexyl ethylphosphonochloridate"]
[null,null,null,null,null,null,null,null,null,null,null,null,null,null,null,null,"モザンビーク_MOZ","モザンビーク","MOZ",106,null,null,null,null,null,null,null,null,null,null,null,null,"5828-67-1",178,"指1原01","2B04","Bis(1-ethylpropyl) methylphosphonate","Bis(1-ethylpropyl) methylphosphonate"]
[null,null,null,null,null,null,null,null,null,null,null,null,null,null,null,null,"モナコ_MCO","モナコ","MCO",102,null,null,null,null,null,null,null,null,null,null,null,null,"5842-06-8",179,"指1原09","2B12","2-(N,N-Dipropylamino)ethanethiol","2-(N,N-Dipropylamino)ethanethiol"]
[null,null,null,null,null,null,null,null,null,null,null,null,null,null,null,null,"モルディブ_MDV","モルディブ","MDV",94,null,null,null,null,null,null,null,null,null,null,null,null,"5842-07-9",180,"指1原09","2B12","2-(N,N-Diisopropylamino)ethanethiol","2-(N,N-Diisopropylamino)ethanethiol"]
[null,null,null,null,null,null,null,null,null,null,null,null,null,null,null,null,"モルドバ_MDA","モルドバ","MDA",101,null,null,null,null,null,null,null,null,null,null,null,null,"597-07-9",181,"指1原03","2B06","Dimethyl N,N-dimethylphosphoramidate","Dimethyl N,N-dimethylphosphoramidate"]
[null,null,null,null,null,null,null,null,null,null,null,null,null,null,null,null,"モロッコ_MAR","モロッコ","MAR",105,null,null,null,null,null,null,null,null,null,null,null,null,"5994-73-0",182,"指1原01","2B04","Methylphosphonothioic acid","Methylphosphonothioic acid"]
[null,null,null,null,null,null,null,null,null,null,null,null,null,null,null,null,"モンゴル_MNG","モンゴル","MNG",199,null,null,null,null,null,null,null,null,null,null,null,null,"60556-68-5",183,"指1原01","2B04","Bis(2-ethylhexyl) methylphosphonate","Bis(2-ethylhexyl) methylphosphonate"]
[null,null,null,null,null,null,null,null,null,null,null,null,null,null,null,null,"モンテネグロ_MNE","モンテネグロ","MNE",103,null,null,null,null,null,null,null,null,null,null,null,null,"6069-09-6",184,"指1原01","2B04","Bis(2-methoxyethyl) methylphosphonate","Bis(2-methoxyethyl) methylphosphonate"]
[null,null,null,null,null,null,null,null,null,null,null,null,null,null,null,null,"ヨルダン_JOR","ヨルダン","JOR",76,null,null,null,null,null,null,null,null,null,null,null,null,"6156-13-4",185,"指1原01","2B04","Dioctyl ethylphosphonate","Dioctyl ethylphosphonate"]
[null,null,null,null,null,null,null,null,null,null,null,null,null,null,null,null,"ラオス_LAO","ラオス","LAO",82,null,null,null,null,null,null,null,null,null,null,null,null,"6163-75-3",186,"指1原01","2B04","ジメチルエチルホスホノチオエート","Dimethyl ethylphosphonate"]
[null,null,null,null,null,null,null,null,null,null,null,null,null,null,null,null,"ラトビア_LVA","ラトビア","LVA",83,null,null,null,null,null,null,null,null,null,null,null,null,"616-52-4",187,"指1原01","2B04","ピナコリルメチルホスホネート","Pinacolyl methylphosphonate"]
[null,null,null,null,null,null,null,null,null,null,null,null,null,null,null,null,"リトアニア_LTU","リトアニア","LTU",88,null,null,null,null,null,null,null,null,null,null,null,null,"6172-80-1",188,"指1原01","2B04","Butyl methylphosphinate","Butyl methylphosphinate"]
[null,null,null,null,null,null,null,null,null,null,null,null,null,null,null,null,"リビア_LBY","リビア","LBY",86,null,null,null,null,null,null,null,null,null,null,null,null,"61820-31-3",189,"指1原01","2B04","Diethyl isopropylphosphonite","Diethyl isopropylphosphonite"]
[null,null,null,null,null,null,null,null,null,null,null,null,null,null,null,null,"リヒテンシュタイン_LIE","リヒテンシュタイン","LIE",87,null,null,null,null,null,null,null,null,null,null,null,null,"62869-68-5",190,"指1毒03","2A03","(S)-3-Quinuclidinyl benzilate","(S)-3-Quinuclidinyl benzilate"]
[null,null,null,null,null,null,null,null,null,null,null,null,null,null,null,null,"リベリア_LBR","リベリア","LBR",85,null,null,null,null,null,null,null,null,null,null,null,null,"62869-69-6",191,"指1毒03","2A03","（Ｒ）－３－キヌクリジニル＝ベンジラート","(R)-3-Quinuclidinyl benzilate"]
[null,null,null,null,null,null,null,null,null,null,null,null,null,null,null,null,{"$f":"CONCATENATE($R197,IF($S197<>\"\",\"_\",\"\"),$S197)","v":"ルーマニア_ROU"},"ルーマニア","ROU",134,null,null,null,null,null,null,null,null,null,null,null,null,"63051-68-3",192,"指1原08","2B11","2-(diisopropylamino)ethanol hydrochloride","2-(diisopropylamino)ethanol hydrochloride"]
[null,null,null,null,null,null,null,null,null,null,null,null,null,null,null,null,"ルクセンブルク_LUX","ルクセンブルク","LUX",189,null,null,null,null,null,null,null,null,null,null,null,null,"63210-55-9",193,"指1原09","2B12","2-(N-Ethyl-N-methylamino)ethanethiol","2-(N-Ethyl-N-methylamino)ethanethiol"]
[null,null,null,null,null,null,null,null,null,null,null,null,null,null,null,null,"ルワンダ_RWA","ルワンダ","RWA",136,null,null,null,null,null,null,null,null,null,null,null,null,"650-72-6",194,"指1原02","2B05","Diethylphosphoramidic chloride fluoride","Diethylphosphoramidic chloride fluoride"]
[null,null,null,null,null,null,null,null,null,null,null,null,null,null,null,null,"レソト_LSO","レソト","LSO",230,null,null,null,null,null,null,null,null,null,null,null,null,"65659-19-0",195,"指1原03","2B06","Dimethyl N,N-diethylphosphoramidate","Dimethyl N,N-diethylphosphoramidate"]
[null,null,null,null,null,null,null,null,null,null,null,null,null,null,null,null,"レバノン_LBN","レバノン","LBN",229,null,null,null,null,null,null,null,null,null,null,null,null,"6581-06-2",196,"指1毒03","2A03","３－キヌクリジニル＝ベンジラート","3-Quinuclidinyl benzilate"]
[null,null,null,null,null,null,null,null,null,null,null,null,null,null,null,null,"ロシア_RUS","ロシア","RUS",135,null,null,null,null,null,null,null,null,null,null,null,null,"663176-00-9",197,"指1原01","2B04","Phosphonic acid, methyl-, polyglycol ester (Exolit OP 560)","Phosphonic acid, methyl-, polyglycol ester (Exolit OP 560)"]
[null,null,null,null,null,null,null,null,null,null,null,null,null,null,null,null,"",null,null,null,null,null,null,null,null,null,null,null,null,null,null,null,"676-83-5",198,"指1原01","2B04","メチルホスホナスジクロライド","Methylphosphonous dichloride"]
[null,null,null,null,null,null,null,null,null,null,null,null,null,null,null,null,"",null,null,null,null,null,null,null,null,null,null,null,null,null,null,null,"676-97-1",199,"指1原01","2B04","メチルホスホニルジクロリド","Methylphosphonic dichloride"]
[null,null,null,null,null,null,null,null,null,null,null,null,null,null,null,null,"",null,null,null,null,null,null,null,null,null,null,null,null,null,null,null,"676-98-2",200,"指1原01","2B04","Methylphosphonothioic dichloride","Methylphosphonothioic dichloride"]
[null,null,null,null,null,null,null,null,null,null,null,null,null,null,null,null,"",null,null,null,null,null,null,null,null,null,null,null,null,null,null,null,"677-43-0",201,"指1原02","2B05","Ｎ，Ｎ－ジアルキルホスホルアミディック＝ジハリド","N,N-Dimethylphosphoramidic dichloride"]
[null,null,null,null,null,null,null,null,null,null,null,null,null,null,null,null,"",null,null,null,null,null,null,null,null,null,null,null,null,null,null,null,"6779-09-5",202,"指1原01","2B04","エチルホスホン酸","Ethylphosphonic acid"]
[null,null,null,null,null,null,null,null,null,null,null,null,null,null,null,null,"",null,null,null,null,null,null,null,null,null,null,null,null,null,null,null,"67812-17-3",203,"指1原01","2B04","Methyl 3-(trimethoxysilyl)propyl methylphosphonate","Methyl 3-(trimethoxysilyl)propyl methylphosphonate"]
[null,null,null,null,null,null,null,null,null,null,null,null,null,null,null,null,"",null,null,null,null,null,null,null,null,null,null,null,null,null,null,null,"67845-39-0",204,"指1原07","2B10","2-chloro-N,N-diethylethanamine sulfate (1:1)","2-chloro-N,N-diethylethanamine sulfate (1:1)"]
[null,null,null,null,null,null,null,null,null,null,null,null,null,null,null,null,"",null,null,null,null,null,null,null,null,null,null,null,null,null,null,null,"683-08-9",205,"指1原01","2B04","ジエチルメチルホスホネート","Diethyl methylphosphonate"]
[null,null,null,null,null,null,null,null,null,null,null,null,null,null,null,null,"",null,null,null,null,null,null,null,null,null,null,null,null,null,null,null,"683-32-9",206,"指1原01","2B04","Butyl methyl methylphosphonate","Butyl methyl methylphosphonate"]
[null,null,null,null,null,null,null,null,null,null,null,null,null,null,null,null,"",null,null,null,null,null,null,null,null,null,null,null,null,null,null,null,"68391-41-3",207,"指1原07","2B10","2-chloro-N,N-diethylethanamine sulfate (2:1)","2-chloro-N,N-diethylethanamine sulfate (2:1)"]
[null,null,null,null,null,null,null,null,null,null,null,null,null,null,null,null,"",null,null,null,null,null,null,null,null,null,null,null,null,null,null,null,"688299-03-8",208,"指1原07","2B10","2-(N-Isopropyl-N-propylamino)ethylchloride","2-(N-Isopropyl-N-propylamino)ethylchloride"]
[null,null,null,null,null,null,null,null,null,null,null,null,null,null,null,null,"",null,null,null,null,null,null,null,null,null,null,null,null,null,null,null,"68957-94-8",209,"指1原01","2B04","２，４，６－トリプロピル－１，３，５，２，４，６－トリオキサトリホスホリナン＝２，４，６－トリオキシド","2,4,6-Tripropyl-1,3,5,2,4,6-trioxatriphosphinane 2,4,6-trioxide"]
[null,null,null,null,null,null,null,null,null,null,null,null,null,null,null,null,"",null,null,null,null,null,null,null,null,null,null,null,null,null,null,null,"6996-81-2",210,"指1原01","2B04","Ｏ，Ｏ－ジエチルメチルホスホノチオネート","O,O-Diethyl methylphosphonothionate"]
[null,null,null,null,null,null,null,null,null,null,null,null,null,null,null,null,"",null,null,null,null,null,null,null,null,null,null,null,null,null,null,null,"70055-71-9",211,"指1原01","2B04","N,N,N-trimethyl-3-[(1-oxo-9-octadecenyl)amino]methyl methylphosphonate propan-1-aminium","N,N,N-trimethyl-3-[(1-oxo-9-octadecenyl)amino]methyl methylphosphonate propan-1-aminium"]
[null,null,null,null,null,null,null,null,null,null,null,null,null,null,null,null,"",null,null,null,null,null,null,null,null,null,null,null,null,null,null,null,"7040-52-0",212,"指1原01","2B04","Cyclohexyl methyl methylphosphonate","Cyclohexyl methyl methylphosphonate"]
[null,null,null,null,null,null,null,null,null,null,null,null,null,null,null,null,"",null,null,null,null,null,null,null,null,null,null,null,null,null,null,null,"7040-53-1",213,"指1原01","2B04","Dicyclohexyl methylphosphonate","Dicyclohexyl methylphosphonate"]
[null,null,null,null,null,null,null,null,null,null,null,null,null,null,null,null,"",null,null,null,null,null,null,null,null,null,null,null,null,null,null,null,"7040-58-6",214,"指1原01","2B04","Dipinacolyl methylphosphonate","Dipinacolyl methylphosphonate"]
[null,null,null,null,null,null,null,null,null,null,null,null,null,null,null,null,"",null,null,null,null,null,null,null,null,null,null,null,null,null,null,null,"7040-59-7",215,"指1原01","2B04","Methyl pinacolyl methylphosphonate","Methyl pinacolyl methylphosphonate"]
[null,null,null,null,null,null,null,null,null,null,null,null,null,null,null,null,"",null,null,null,null,null,null,null,null,null,null,null,null,null,null,null,"7040-92-8",216,"指1原01","2B04","Cyclohexyl methylphosphonochloridate","Cyclohexyl methylphosphonochloridate"]
[null,null,null,null,null,null,null,null,null,null,null,null,null,null,null,null,"",null,null,null,null,null,null,null,null,null,null,null,null,null,null,null,"70715-06-9",217,"指1原01","2B04","Dimethylmethylphosphonate, polymer with oxirane and phosphorus oxide","Dimethylmethylphosphonate, polymer with oxirane and phosphorus oxide"]
[null,null,null,null,null,null,null,null,null,null,null,null,null,null,null,null,"",null,null,null,null,null,null,null,null,null,null,null,null,null,null,null,"71760-04-8",218,"指1原01","2B04","ジプロピルジホスホン酸","Dipropyldiphosphonic acid"]
[null,null,null,null,null,null,null,null,null,null,null,null,null,null,null,null,"",null,null,null,null,null,null,null,null,null,null,null,null,null,null,null,"71877-78-6",219,"指1原03","2B06","Ethyl methyl (S)-dimethylphosphoramidate","Ethyl methyl (S)-dimethylphosphoramidate"]
[null,null,null,null,null,null,null,null,null,null,null,null,null,null,null,null,"",null,null,null,null,null,null,null,null,null,null,null,null,null,null,null,"71877-79-7",220,"指1原03","2B06","Ethyl methyl (S)-dimethylphosphoramidate","Ethyl methyl (S)-dimethylphosphoramidate"]
[null,null,null,null,null,null,null,null,null,null,null,null,null,null,null,null,"",null,null,null,null,null,null,null,null,null,null,null,null,null,null,null,"7305-61-5",221,"指1原01","2B04","Ethyl ethylphosphonate","Ethyl ethylphosphonate"]
[null,null,null,null,null,null,null,null,null,null,null,null,null,null,null,null,"",null,null,null,null,null,null,null,null,null,null,null,null,null,null,null,"73675-56-6",222,"指1原01","2B04","S-Methyl methylphosphonothiolate","S-Methyl methylphosphonothiolate"]
[null,null,null,null,null,null,null,null,null,null,null,null,null,null,null,null,"",null,null,null,null,null,null,null,null,null,null,null,null,null,null,null,"73790-51-9",223,"指1原01","2B04","Ethyl S-dicyclohexylammonium methylphosphonothiolate","Ethyl S-dicyclohexylammonium methylphosphonothiolate"]
[null,null,null,null,null,null,null,null,null,null,null,null,null,null,null,null,"",null,null,null,null,null,null,null,null,null,null,null,null,null,null,null,"741700-63-0",224,"指1原01","2B04","Methyl propyl isopropylphosphonate","Methyl propyl isopropylphosphonate"]
[null,null,null,null,null,null,null,null,null,null,null,null,null,null,null,null,"",null,null,null,null,null,null,null,null,null,null,null,null,null,null,null,"741700-67-4",225,"指1原01","2B04","Propyl isopropylphosphonate","Propyl isopropylphosphonate"]
[null,null,null,null,null,null,null,null,null,null,null,null,null,null,null,null,"",null,null,null,null,null,null,null,null,null,null,null,null,null,null,null,"74789-31-4",226,"指1原01","2B04","Methyl S-sodium methylphosphonothiolate","Methyl S-sodium methylphosphonothiolate"]
[null,null,null,null,null,null,null,null,null,null,null,null,null,null,null,null,"",null,null,null,null,null,null,null,null,null,null,null,null,null,null,null,"74789-32-5",227,"指1原01","2B04","Isobutyl S-sodium methylphosphonothiolate","Isobutyl S-sodium methylphosphonothiolate"]
[null,null,null,null,null,null,null,null,null,null,null,null,null,null,null,null,"",null,null,null,null,null,null,null,null,null,null,null,null,null,null,null,"74-90-8",228,"指2毒03","3A03","シアン化水素","Hydrogen cyanide"]
[null,null,null,null,null,null,null,null,null,null,null,null,null,null,null,null,"",null,null,null,null,null,null,null,null,null,null,null,null,null,null,null,"7526-26-3",229,"指1原01","2B04","ジフェニルメチルホスホネート","Diphenyl methylphosphonate"]
[null,null,null,null,null,null,null,null,null,null,null,null,null,null,null,null,"",null,null,null,null,null,null,null,null,null,null,null,null,null,null,null,"75-44-5",230,"指2毒01","3A01","二塩化カルボニル","Carbonyl dichloride"]
[null,null,null,null,null,null,null,null,null,null,null,null,null,null,null,null,"",null,null,null,null,null,null,null,null,null,null,null,null,null,null,null,"756-79-6",231,"指1原01","2B04","ジメチル＝メチルホスホナート","Dimethyl methylphosphonate"]
[null,null,null,null,null,null,null,null,null,null,null,null,null,null,null,null,"",null,null,null,null,null,null,null,null,null,null,null,null,null,null,null,"757-95-9",232,"指1原01","2B04","メチルホスホン酸、ビス（2,2,2－トリフロロエチル）","Bis(2,2,2-trifluoroethyl) methylphosphonate"]
[null,null,null,null,null,null,null,null,null,null,null,null,null,null,null,null,"",null,null,null,null,null,null,null,null,null,null,null,null,null,null,null,"758-71-4",233,"指1原02","2B05","Diethylphosphoramidic bromide fluoride","Diethylphosphoramidic bromide fluoride"]
[null,null,null,null,null,null,null,null,null,null,null,null,null,null,null,null,"",null,null,null,null,null,null,null,null,null,null,null,null,null,null,null,"76-06-2",234,"指2毒04","3A04","トリクロロニトロメタン","Trichloronitromethane"]
[null,null,null,null,null,null,null,null,null,null,null,null,null,null,null,null,"",null,null,null,null,null,null,null,null,null,null,null,null,null,null,null,"762-04-9",235,"指2原07","3B11","亜リン酸ジエチル","Diethyl phosphite"]
[null,null,null,null,null,null,null,null,null,null,null,null,null,null,null,null,"",null,null,null,null,null,null,null,null,null,null,null,null,null,null,null,"76341-63-4",236,"指1原01","2B04","Bis(1-methylheptyl) methylphosphonate","Bis(1-methylheptyl) methylphosphonate"]
[null,null,null,null,null,null,null,null,null,null,null,null,null,null,null,null,"",null,null,null,null,null,null,null,null,null,null,null,null,null,null,null,"763884-48-6",237,"指1原07","2B10","2-(N-Methyl-N-propylamino)ethylchloride","2-(N-Methyl-N-propylamino)ethylchloride"]
[null,null,null,null,null,null,null,null,null,null,null,null,null,null,null,null,"",null,null,null,null,null,null,null,null,null,null,null,null,null,null,null,"76-93-7",238,"指1原05","2B08","２，２－ジフェニル－２－ヒドロキシ酢酸","2,2-Diphenyl-2-hydroxyacetic acid"]
[null,null,null,null,null,null,null,null,null,null,null,null,null,null,null,null,"",null,null,null,null,null,null,null,null,null,null,null,null,null,null,null,"7719-09-7",239,"指2原10","3B14","塩化チオニル","Thionyl chloride"]
[null,null,null,null,null,null,null,null,null,null,null,null,null,null,null,null,"",null,null,null,null,null,null,null,null,null,null,null,null,null,null,null,"7719-12-2",240,"指2原02","3B06","三塩化リン","Phosphorus trichloride"]
[null,null,null,null,null,null,null,null,null,null,null,null,null,null,null,null,"",null,null,null,null,null,null,null,null,null,null,null,null,null,null,null,"77304-63-3",241,"指1原01","2B04","Dihexyl methylphosphonate","Dihexyl methylphosphonate"]
[null,null,null,null,null,null,null,null,null,null,null,null,null,null,null,null,"",null,null,null,null,null,null,null,null,null,null,null,null,null,null,null,"77304-64-4",242,"指1原01","2B04","Diheptyl methylphosphonate","Diheptyl methylphosphonate"]
[null,null,null,null,null,null,null,null,null,null,null,null,null,null,null,null,"",null,null,null,null,null,null,null,null,null,null,null,null,null,null,null,"777943-34-7",243,"指1原02","2B05","N-Ethyl-N-methylphosphoramidic dichloride","N-Ethyl-N-methylphosphoramidic dichloride"]
[null,null,null,null,null,null,null,null,null,null,null,null,null,null,null,null,"",null,null,null,null,null,null,null,null,null,null,null,null,null,null,null,"777943-35-8",244,"指1原02","2B05","N-Methyl-N-propylphosphoramidic dichloride","N-Methyl-N-propylphosphoramidic dichloride"]
[null,null,null,null,null,null,null,null,null,null,null,null,null,null,null,null,"",null,null,null,null,null,null,null,null,null,null,null,null,null,null,null,"777943-36-9",245,"指1原02","2B05","N-Isopropyl-N-methylphosphoramidic dichloride","N-Isopropyl-N-methylphosphoramidic dichloride"]
[null,null,null,null,null,null,null,null,null,null,null,null,null,null,null,null,"",null,null,null,null,null,null,null,null,null,null,null,null,null,null,null,"777943-37-0",246,"指1原02","2B05","N-Ethyl-N-isopropylphosphoramidic dichloride","N-Ethyl-N-isopropylphosphoramidic dichloride"]
[null,null,null,null,null,null,null,null,null,null,null,null,null,null,null,null,"",null,null,null,null,null,null,null,null,null,null,null,null,null,null,null,"777943-38-1",247,"指1原02","2B05","N-Ethyl-N-propylphosphoramidic dichloride","N-Ethyl-N-propylphosphoramidic dichloride"]
[null,null,null,null,null,null,null,null,null,null,null,null,null,null,null,null,"",null,null,null,null,null,null,null,null,null,null,null,null,null,null,null,"7784-34-1",248,"指1原04","2B07","三塩化砒素","Arsenic trichloride"]
[null,null,null,null,null,null,null,null,null,null,null,null,null,null,null,null,"",null,null,null,null,null,null,null,null,null,null,null,null,null,null,null,"781566-65-2",249,"指1原01","2B04","Octyl propylphosphonate","Octyl propylphosphonate"]
[null,null,null,null,null,null,null,null,null,null,null,null,null,null,null,null,"",null,null,null,null,null,null,null,null,null,null,null,null,null,null,null,"78-38-6",250,"指1原01","2B04","エチルホスホン酸ジエチルエステル","Diethyl ethylphosphonate"]
[null,null,null,null,null,null,null,null,null,null,null,null,null,null,null,null,"",null,null,null,null,null,null,null,null,null,null,null,null,null,null,null,"78-53-5",251,"指1毒01","2A01","O・O'―ジエチル=S-[2-（ジエチルアミノ）エチル］ホスホロチオラート","O,O-Diethyl S-2-diethylaminoethyl phosphorothiolate"]
[null,null,null,null,null,null,null,null,null,null,null,null,null,null,null,null,"",null,null,null,null,null,null,null,null,null,null,null,null,null,null,null,"81397-56-0",252,"指1原01","2B04","Dipinacolyl dimethylpyrophosphonate","Dipinacolyl dimethylpyrophosphonate"]
[null,null,null,null,null,null,null,null,null,null,null,null,null,null,null,null,"",null,null,null,null,null,null,null,null,null,null,null,null,null,null,null,"83218-22-8",253,"指1原01","2B04","Dioctyl isopropylphosphonate","Dioctyl isopropylphosphonate"]
[null,null,null,null,null,null,null,null,null,null,null,null,null,null,null,null,"",null,null,null,null,null,null,null,null,null,null,null,null,null,null,null,"84402-58-4",254,"指1原01","2B04","メチルホスホン酸とアミノイミノメチル尿素の化合物(塩)","Methylphosphonic acid with (aminoiminomethyl)urea (1:1)"]
[null,null,null,null,null,null,null,null,null,null,null,null,null,null,null,null,"",null,null,null,null,null,null,null,null,null,null,null,null,null,null,null,"848216-15-9",255,"指1原03","2B06","Ethyl methyl N,N-diisopropylphosphoramidate","Ethyl methyl N,N-diisopropylphosphoramidate"]
[null,null,null,null,null,null,null,null,null,null,null,null,null,null,null,null,{"$f":"CONCATENATE($R261,IF($S261<>\"\",\"_\",\"\"),$S261)","v":""},null,null,null,null,null,null,null,null,null,null,null,null,null,null,null,"84962-98-1",256,"指1原01","2B04","ホスホン酸メチル-モノ[3-(トリヒドロキシシリル）プロピル]エステルモノナトリウム塩","Sodium 3-(trihydroxysilyl)propyl methylphosphonate"]
[null,null,null,null,null,null,null,null,null,null,null,null,null,null,null,null,"",null,null,null,null,null,null,null,null,null,null,null,null,null,null,null,"868-85-9",257,"指2原06","3B10","亜リン酸ジメチル","Dimethyl phosphite"]
[null,null,null,null,null,null,null,null,null,null,null,null,null,null,null,null,"",null,null,null,null,null,null,null,null,null,null,null,null,null,null,null,"869-24-9",258,"指1原07","2B10","Ｎ，Ｎ－ジエチルアミノエチル－２－クロリド塩酸塩","2-(N,N-Diethylamino)ethylchloride hydrochloride"]
[null,null,null,null,null,null,null,null,null,null,null,null,null,null,null,null,"",null,null,null,null,null,null,null,null,null,null,null,null,null,null,null,"89034-24-2",259,"指1原01","2B04","Ethyl methylphosphonite","Ethyl methylphosphonite"]
[null,null,null,null,null,null,null,null,null,null,null,null,null,null,null,null,"",null,null,null,null,null,null,null,null,null,null,null,null,null,null,null,"89893-77-6",260,"指1原03","2B06","Ethyl methyl diethylphosphoramidate","Ethyl methyl diethylphosphoramidate"]
[null,null,null,null,null,null,null,null,null,null,null,null,null,null,null,null,"",null,null,null,null,null,null,null,null,null,null,null,null,null,null,null,"90550-49-5",261,"指1原01","2B04","Pinacolyl propyl methylphosphonate","Pinacolyl propyl methylphosphonate"]
[null,null,null,null,null,null,null,null,null,null,null,null,null,null,null,null,"",null,null,null,null,null,null,null,null,null,null,null,null,null,null,null,"906801-34-1",262,"指1原03","2B06","Ethyl methyl ethylisopropylphosphoramidate","Ethyl methyl ethylisopropylphosphoramidate"]
[null,null,null,null,null,null,null,null,null,null,null,null,null,null,null,null,"",null,null,null,null,null,null,null,null,null,null,null,null,null,null,null,"91043-34-4",263,"指1原03","2B06","Diethyl N,N-dipropylphosphoramidate","Diethyl N,N-dipropylphosphoramidate"]
[null,null,null,null,null,null,null,null,null,null,null,null,null,null,null,null,"",null,null,null,null,null,null,null,null,null,null,null,null,null,null,null,"91964-75-9",264,"指1原01","2B04","O,O-Dipentyl methylphosphonothionate","O,O-Dipentyl methylphosphonothionate"]
[null,null,null,null,null,null,null,null,null,null,null,null,null,null,null,null,"",null,null,null,null,null,null,null,null,null,null,null,null,null,null,null,"92204-40-5",265,"指1原07","2B10","2-(N-Ethyl-N-isopropylamino)ethylchloride","2-(N-Ethyl-N-isopropylamino)ethylchloride"]
[null,null,null,null,null,null,null,null,null,null,null,null,null,null,null,null,"",null,null,null,null,null,null,null,null,null,null,null,null,null,null,null,"92411-67-1",266,"指1原01","2B04","Isopropyl pinacolyl methylphosphonate","Isopropyl pinacolyl methylphosphonate"]
[null,null,null,null,null,null,null,null,null,null,null,null,null,null,null,null,"",null,null,null,null,null,null,null,null,null,null,null,null,null,null,null,"92475-33-7",267,"指1原01","2B04","Isopropyl S-sodium methylphosphonothiolate","Isopropyl S-sodium methylphosphonothiolate"]
[null,null,null,null,null,null,null,null,null,null,null,null,null,null,null,null,"",null,null,null,null,null,null,null,null,null,null,null,null,null,null,null,"944146-50-3",268,"指1原01","2B04","1-Methylpentyl methylphosphonate","1-Methylpentyl methylphosphonate"]
[null,null,null,null,null,null,null,null,null,null,null,null,null,null,null,null,"",null,null,null,null,null,null,null,null,null,null,null,null,null,null,null,"944146-51-4",269,"指1原01","2B04","4-Methylpentyl methylphosphonate","4-Methylpentyl methylphosphonate"]
[null,null,null,null,null,null,null,null,null,null,null,null,null,null,null,null,"",null,null,null,null,null,null,null,null,null,null,null,null,null,null,null,"95428-88-9",270,"指1原01","2B04","Dinonyl methylphosphonate","Dinonyl methylphosphonate"]
[null,null,null,null,null,null,null,null,null,null,null,null,null,null,null,null,"",null,null,null,null,null,null,null,null,null,null,null,null,null,null,null,"959028-09-2",271,"指1原01","2B04","Bis(1,3-dimethylbutyl) methylphosphonate","Bis(1,3-dimethylbutyl) methylphosphonate"]
[null,null,null,null,null,null,null,null,null,null,null,null,null,null,null,null,"",null,null,null,null,null,null,null,null,null,null,null,null,null,null,null,"959044-15-6",272,"指1原01","2B04","Dioctyl propylphosphonate","Dioctyl propylphosphonate"]
[null,null,null,null,null,null,null,null,null,null,null,null,null,null,null,null,"",null,null,null,null,null,null,null,null,null,null,null,null,null,null,null,"959259-83-7",273,"指1原01","2B04","Phenyl ethylphosphonofluoridate","Phenyl ethylphosphonofluoridate"]
[null,null,null,null,null,null,null,null,null,null,null,null,null,null,null,null,"",null,null,null,null,null,null,null,null,null,null,null,null,null,null,null,"96-79-7",274,"指1原07","2B10","Ｎ，Ｎ－ジイソプロピルアミノエチルクロリド","2-(N,N-Diisopropylamino)ethylchloride"]
[null,null,null,null,null,null,null,null,null,null,null,null,null,null,null,null,"",null,null,null,null,null,null,null,null,null,null,null,null,null,null,null,"96-80-0",275,"指1原08","2B11","Ｎ，Ｎ－ジイソプロピルアミノエタン－２－オール","2-(N,N-Diisopropylamino)ethanol"]
[null,null,null,null,null,null,null,null,null,null,null,null,null,null,null,null,"",null,null,null,null,null,null,null,null,null,null,null,null,null,null,null,"98283-34-2",276,"指1原01","2B04","Butyl S-dicyclohexylammonium methylphosphonothiolate","Butyl S-dicyclohexylammonium methylphosphonothiolate"]
[null,null,null,null,null,null,null,null,null,null,null,null,null,null,null,null,"",null,null,null,null,null,null,null,null,null,null,null,null,null,null,null,"98283-35-3",277,"指1原01","2B04","Isobutyl S-dicyclohexylammonium methylphosphonothiolate","Isobutyl S-dicyclohexylammonium methylphosphonothiolate"]
[null,null,null,null,null,null,null,null,null,null,null,null,null,null,null,null,"",null,null,null,null,null,null,null,null,null,null,null,null,null,null,null,"98543-28-3",278,"指1原03","2B06","Dipropyl N,N-dimethylphosphoramidate","Dipropyl N,N-dimethylphosphoramidate"]
[null,null,null,null,null,null,null,null,null,null,null,null,null,null,null,null,"",null,null,null,null,null,null,null,null,null,null,null,null,null,null,null,"993-13-5",279,"指1原01","2B04","メチルホスホン酸","Methylphosphonic acid"]
[null,null,null,null,null,null,null,null,null,null,null,null,null,null,null,null,"",null,null,null,null,null,null,null,null,null,null,null,null,null,null,null,"993-43-1",280,"指1原01","2B04","Ｐ－エチルチオホスホン酸ジクロリド","Ethylphosphonothioic dichloride"]
[null,null,null,null,null,null,null,null,null,null,null,null,null,null,null,null,"",null,null,null,null,null,null,null,null,null,null,null,null,null,null,null,"99520-56-6",281,"指1原03","2B06","Ethyl isopropyl dimethylphosphoramidate","Ethyl isopropyl dimethylphosphoramidate"]
[null,null,null,null,null,null,null,null,null,null,null,null,null,null,null,null,"",null,null,null,null,null,null,null,null,null,null,null,null,null,null,null,"99580-93-5",282,"指1原01","2B04","Product from the reaction of methylphosphonic acid and 1,2-ethanediamine","Product from the reaction of methylphosphonic acid and 1,2-ethanediamine"]
[null,null,null,null,null,null,null,null,null,null,null,null,null,null,null,null,"",null,null,null,null,null,null,null,null,null,null,null,null,null,null,null,"995-88-0",283,"指1原01","2B04","S,S-Diethyl methylphosphonodithiolate","S,S-Diethyl methylphosphonodithiolate"]
[null,null,null,null,null,null,null,null,null,null,null,null,null,null,null,null,"",null,null,null,null,null,null,null,null,null,null,null,null,null,null,null,"4363-06-8",296,"指1原01","2B04","Ethylphosphinic acid","Ethylphosphinic acid"]
[null,null,null,null,null,null,null,null,null,null,null,null,null,null,null,null,"",null,null,null,null,null,null,null,null,null,null,null,null,null,null,null,"101098-30-0",297,"指1原01","2B04","Bis(2-diethylaminoethyl) ethylphosphonate","Bis(2-diethylaminoethyl) ethylphosphonate"]
[null,null,null,null,null,null,null,null,null,null,null,null,null,null,null,null,"",null,null,null,null,null,null,null,null,null,null,null,null,null,null,null,"1025089-02-4",298,"指1原01","2B04","Di(isopropyl-d7) methyl-d3-phosphonate","Di(isopropyl-d7) methyl-d3-phosphonate"]
[null,null,null,null,null,null,null,null,null,null,null,null,null,null,null,null,"",null,null,null,null,null,null,null,null,null,null,null,null,null,null,null,"104801-16-3",299,"指1原01","2B04","Methyl(d3) phosphonic acid","Methyl(d3) phosphonic acid"]
[null,null,null,null,null,null,null,null,null,null,null,null,null,null,null,null,"",null,null,null,null,null,null,null,null,null,null,null,null,null,null,null,"104801-17-4",300,"指1原01","2B04","Methyl-d3-phosphonic dichloride","Methyl-d3-phosphonic dichloride"]
[null,null,null,null,null,null,null,null,null,null,null,null,null,null,null,null,"",null,null,null,null,null,null,null,null,null,null,null,null,null,null,null,"105263-11-4",301,"指1原01","2B04","O,O-Bis(1-methylpropyl) methylphosphonate","O,O-Bis(1-methylpropyl) methylphosphonate"]
[null,null,null,null,null,null,null,null,null,null,null,null,null,null,null,null,"",null,null,null,null,null,null,null,null,null,null,null,null,null,null,null,"1066-52-0",302,"指1原01","2B04","Methyl methylphosphonochloridate","Methyl methylphosphonochloridate"]
[null,null,null,null,null,null,null,null,null,null,null,null,null,null,null,null,"",null,null,null,null,null,null,null,null,null,null,null,null,null,null,null,"113579-13-8",303,"指1原01","2B04","Diisopropyl d3-methylphosphonate","Diisopropyl d3-methylphosphonate"]
[null,null,null,null,null,null,null,null,null,null,null,null,null,null,null,null,"",null,null,null,null,null,null,null,null,null,null,null,null,null,null,null,"116498-77-2",304,"指1原01","2B04","O-Pinacolyl S-sodium methylphosphonothiolate","O-Pinacolyl S-sodium methylphosphonothiolate"]
[null,null,null,null,null,null,null,null,null,null,null,null,null,null,null,null,"",null,null,null,null,null,null,null,null,null,null,null,null,null,null,null,"1205608-66-7",305,"指1原01","2B04","di-d7-isopropyl methylphosphonate","di-d7-isopropyl methylphosphonate"]
[null,null,null,null,null,null,null,null,null,null,null,null,null,null,null,null,"",null,null,null,null,null,null,null,null,null,null,null,null,null,null,null,"1256698-27-7",306,"指1原01","2B04","O-Isopropyl isopropylphosphonothiolate","O-Isopropyl isopropylphosphonothiolate"]
[null,null,null,null,null,null,null,null,null,null,null,null,null,null,null,null,"",null,null,null,null,null,null,null,null,null,null,null,null,null,null,null,"128478-92-2",307,"指1原01","2B04","Diethyl methyl(d3)phosphonate","Diethyl methyl(d3)phosphonate"]
[null,null,null,null,null,null,null,null,null,null,null,null,null,null,null,null,"",null,null,null,null,null,null,null,null,null,null,null,null,null,null,null,"134496-36-9",308,"指1原01","2B04","(S)-Potassium ethyl methylphosphonothiolate","(S)-Potassium ethyl methylphosphonothiolate"]
[null,null,null,null,null,null,null,null,null,null,null,null,null,null,null,null,"",null,null,null,null,null,null,null,null,null,null,null,null,null,null,null,"141032-95-3",309,"指1原01","2B04","2-Propenoic acid, 2-methyl-,(methylphosphinylidene)bis[oxy[2-(chloromethyl)-2,1-ethanediyl]] ester","2-Propenoic acid, 2-methyl-,(methylphosphinylidene)bis[oxy[2-(chloromethyl)-2,1-ethanediyl]] ester"]
[null,null,null,null,null,null,null,null,null,null,null,null,null,null,null,null,"",null,null,null,null,null,null,null,null,null,null,null,null,null,null,null,"1423010-09-6",310,"指1原01","2B04","Methylphosphonic anhydride with melamin","Methylphosphonic anhydride with melamin"]
[null,null,null,null,null,null,null,null,null,null,null,null,null,null,null,null,"",null,null,null,null,null,null,null,null,null,null,null,null,null,null,null,"1442476-06-3",311,"指1原01","2B04","Methyl propyl ethylphosphonothionate","Methyl propyl ethylphosphonothionate"]
[null,null,null,null,null,null,null,null,null,null,null,null,null,null,null,null,"",null,null,null,null,null,null,null,null,null,null,null,null,null,null,null,"14618-07-6",312,"指1原01","2B04","Benzyl methylphosphonofluoridate","Benzyl methylphosphonofluoridate"]
[null,null,null,null,null,null,null,null,null,null,null,null,null,null,null,null,"",null,null,null,null,null,null,null,null,null,null,null,null,null,null,null,"1511-67-7",313,"指1原01","2B04","Methylphosphonofluoridic acid","Methylphosphonofluoridic acid"]
[null,null,null,null,null,null,null,null,null,null,null,null,null,null,null,null,"",null,null,null,null,null,null,null,null,null,null,null,null,null,null,null,"151686-32-7",314,"指1原01","2B04","Reaction products of methylphosphonic acid and (aminoiminomethyl)urea (1:1) with formaldehyde","Reaction products of methylphosphonic acid and (aminoiminomethyl)urea (1:1) with formaldehyde"]
[null,null,null,null,null,null,null,null,null,null,null,null,null,null,null,null,"",null,null,null,null,null,null,null,null,null,null,null,null,null,null,null,"15573-31-6",315,"指1原01","2B04","Propylphosphonous dichloride","Propylphosphonous dichloride"]
[null,null,null,null,null,null,null,null,null,null,null,null,null,null,null,null,"",null,null,null,null,null,null,null,null,null,null,null,null,null,null,null,"1631068-24-0",316,"指1原01","2B04","O-Cyclohexyl methylphosphononyl tyrosine","O-Cyclohexyl methylphosphononyl tyrosine"]
[null,null,null,null,null,null,null,null,null,null,null,null,null,null,null,null,"",null,null,null,null,null,null,null,null,null,null,null,null,null,null,null,"168885-92-5",317,"指1原01","2B04","Diisobutyl methylphosphonothiolate","Diisobutyl methylphosphonothiolate"]
[null,null,null,null,null,null,null,null,null,null,null,null,null,null,null,null,"",null,null,null,null,null,null,null,null,null,null,null,null,null,null,null,"170082-56-1",318,"指1原01","2B04","Isobutyl ethylphosphonate","Isobutyl ethylphosphonate"]
[null,null,null,null,null,null,null,null,null,null,null,null,null,null,null,null,"",null,null,null,null,null,null,null,null,null,null,null,null,null,null,null,"170082-60-7",319,"指1原01","2B04","sec-Butyl methyl methylphosphonate","sec-Butyl methyl methylphosphonate"]
[null,null,null,null,null,null,null,null,null,null,null,null,null,null,null,null,"",null,null,null,null,null,null,null,null,null,null,null,null,null,null,null,"170275-51-1",320,"指1原01","2B04","Pinacolyl ispropylphosphonochloridate","Pinacolyl ispropylphosphonochloridate"]
[null,null,null,null,null,null,null,null,null,null,null,null,null,null,null,null,"",null,null,null,null,null,null,null,null,null,null,null,null,null,null,null,"173967-95-8",321,"指1原01","2B04","O-Cyclohexyl methylphosphonothiolate sodium salt","O-Cyclohexyl methylphosphonothiolate sodium salt"]
[null,null,null,null,null,null,null,null,null,null,null,null,null,null,null,null,"",null,null,null,null,null,null,null,null,null,null,null,null,null,null,null,"17698-78-1",322,"指1原01","2B04","O-Ethyl methylphosphinothionate","O-Ethyl methylphosphinothionate"]
[null,null,null,null,null,null,null,null,null,null,null,null,null,null,null,null,"",null,null,null,null,null,null,null,null,null,null,null,null,null,null,null,"1831-26-1",323,"指1原01","2B04","2,4-dimethyl-1,3,2-dioxaphospholane-2-oxide","2,4-dimethyl-1,3,2-dioxaphospholane-2-oxide"]
[null,null,null,null,null,null,null,null,null,null,null,null,null,null,null,null,"",null,null,null,null,null,null,null,null,null,null,null,null,null,null,null,"19236-58-9",324,"指1原01","2B04","Dibenzyl methylphosphonate","Dibenzyl methylphosphonate"]
[null,null,null,null,null,null,null,null,null,null,null,null,null,null,null,null,"",null,null,null,null,null,null,null,null,null,null,null,null,null,null,null,"20627-03-6",325,"指1原01","2B04","O-Isobutyl methylphosphonothionochloridate","O-Isobutyl methylphosphonothionochloridate"]
[null,null,null,null,null,null,null,null,null,null,null,null,null,null,null,null,"",null,null,null,null,null,null,null,null,null,null,null,null,null,null,null,"2241885-74-3",326,"指1原01","2B04","",""]
[null,null,null,null,null,null,null,null,null,null,null,null,null,null,null,null,"",null,null,null,null,null,null,null,null,null,null,null,null,null,null,null,"23023-47-4",327,"指1原01","2B04","S-Ethyl methylphosphonothiolate","S-Ethyl methylphosphonothiolate"]
[null,null,null,null,null,null,null,null,null,null,null,null,null,null,null,null,"",null,null,null,null,null,null,null,null,null,null,null,null,null,null,null,"2404-81-1",328,"指1原01","2B04","Ethyl N,N-diethyl-P-methylphosphonamidate","Ethyl N,N-diethyl-P-methylphosphonamidate"]
[null,null,null,null,null,null,null,null,null,null,null,null,null,null,null,null,"",null,null,null,null,null,null,null,null,null,null,null,null,null,null,null,"2723466-08-6",329,"指1原01","2B04","N-(1-(1-Pyrrolidinyl)ethylidene)-P- methylphosphonamidic fluoride","N-(1-(1-Pyrrolidinyl)ethylidene)-P- methylphosphonamidic fluoride"]
[null,null,null,null,null,null,null,null,null,null,null,null,null,null,null,null,"",null,null,null,null,null,null,null,null,null,null,null,null,null,null,null,"2914-38-7",330,"指1原01","2B04","Sodium methyphosphonate","Sodium methyphosphonate"]
[null,null,null,null,null,null,null,null,null,null,null,null,null,null,null,null,"",null,null,null,null,null,null,null,null,null,null,null,null,null,null,null,"34255-87-3",331,"指1原01","2B04","Ammonium hydrogen methylphosphonate","Ammonium hydrogen methylphosphonate"]
[null,null,null,null,null,null,null,null,null,null,null,null,null,null,null,null,{"$f":"CONCATENATE($R325,IF($S325<>\"\",\"_\",\"\"),$S325)","v":""},null,null,null,null,null,null,null,null,null,null,null,null,null,null,null,"468711-92-4",332,"指1原01","2B04","2-Methoxyethyl methylphosphonofluoridate","2-Methoxyethyl methylphosphonofluoridate"]
[null,null,null,null,null,null,null,null,null,null,null,null,null,null,null,null,"",null,null,null,null,null,null,null,null,null,null,null,null,null,null,null,"468711-93-5",333,"指1原01","2B04","2-Ethoxyethyl methylphosphonofluoridate","2-Ethoxyethyl methylphosphonofluoridate"]
[null,null,null,null,null,null,null,null,null,null,null,null,null,null,null,null,"",null,null,null,null,null,null,null,null,null,null,null,null,null,null,null,"4721-37-3",334,"指1原01","2B04","Isopropylphosphonic Acid","Isopropylphosphonic Acid"]
[null,null,null,null,null,null,null,null,null,null,null,null,null,null,null,null,"",null,null,null,null,null,null,null,null,null,null,null,null,null,null,null,"50375-90-1",335,"指1原01","2B04","Potassium ethyl methylphosphonothionate","Potassium ethyl methylphosphonothionate"]
[null,null,null,null,null,null,null,null,null,null,null,null,null,null,null,null,"",null,null,null,null,null,null,null,null,null,null,null,null,null,null,null,"50886-86-7",336,"指1原01","2B04","Oxypropylated ether of methylphosphonyl pentaerythritol","Oxypropylated ether of methylphosphonyl pentaerythritol"]
[null,null,null,null,null,null,null,null,null,null,null,null,null,null,null,null,"",null,null,null,null,null,null,null,null,null,null,null,null,null,null,null,"57107-74-1",337,"指1原01","2B04","",""]
[null,null,null,null,null,null,null,null,null,null,null,null,null,null,null,null,"",null,null,null,null,null,null,null,null,null,null,null,null,null,null,null,"59360-02-0",338,"指1原01","2B04","Dibutyl methylphosphonite","Dibutyl methylphosphonite"]
[null,null,null,null,null,null,null,null,null,null,null,null,null,null,null,null,"",null,null,null,null,null,null,null,null,null,null,null,null,null,null,null,"63299-52-5",339,"指1原01","2B04","2-Methyl-1,3,2-dioxaphosphepane-2-oxide","2-Methyl-1,3,2-dioxaphosphepane-2-oxide"]
[null,null,null,null,null,null,null,null,null,null,null,null,null,null,null,null,"",null,null,null,null,null,null,null,null,null,null,null,null,null,null,null,"63747-58-0",340,"指1原01","2B04","Poly(1,3-phenylene methyl phosphonate)","Poly(1,3-phenylene methyl phosphonate)"]
[null,null,null,null,null,null,null,null,null,null,null,null,null,null,null,null,"",null,null,null,null,null,null,null,null,null,null,null,null,null,null,null,"66295-44-1",341,"指1原01","2B04","Diisopropyl methylphosphonite","Diisopropyl methylphosphonite"]
[null,null,null,null,null,null,null,null,null,null,null,null,null,null,null,null,"",null,null,null,null,null,null,null,null,null,null,null,null,null,null,null,"67397-57-3",342,"指1原01","2B04","O-Propyl ethylphosphinothionate","O-Propyl ethylphosphinothionate"]
[null,null,null,null,null,null,null,null,null,null,null,null,null,null,null,null,"",null,null,null,null,null,null,null,null,null,null,null,null,null,null,null,"681-06-1",343,"指1原01","2B04","O,O-Dimethyl methylphosphonothionate","O,O-Dimethyl methylphosphonothionate"]
[null,null,null,null,null,null,null,null,null,null,null,null,null,null,null,null,"",null,null,null,null,null,null,null,null,null,null,null,null,null,null,null,"683-25-0",344,"指1原01","2B04","Methyl propyl methylphosphonate","Methyl propyl methylphosphonate"]
[null,null,null,null,null,null,null,null,null,null,null,null,null,null,null,null,"",null,null,null,null,null,null,null,null,null,null,null,null,null,null,null,"690-64-2",345,"指1原01","2B04","Isopropyl methyl methylphosphonate","Isopropyl methyl methylphosphonate"]
[null,null,null,null,null,null,null,null,null,null,null,null,null,null,null,null,"",null,null,null,null,null,null,null,null,null,null,null,null,null,null,null,"71097-47-7",346,"指1原01","2B04","Bis(1-methacryloxy-2-chloro-propyl) methylphosphonate","Bis(1-methacryloxy-2-chloro-propyl) methylphosphonate"]
[null,null,null,null,null,null,null,null,null,null,null,null,null,null,null,null,"",null,null,null,null,null,null,null,null,null,null,null,null,null,null,null,"7242-56-0",347,"指1原01","2B04","O,O-Diisobutyl methylphosphonate","O,O-Diisobutyl methylphosphonate"]
[null,null,null,null,null,null,null,null,null,null,null,null,null,null,null,null,"",null,null,null,null,null,null,null,null,null,null,null,null,null,null,null,"73750-69-3",348,"指1原01","2B04","Sodium methyl methylphosphonate","Sodium methyl methylphosphonate"]
[null,null,null,null,null,null,null,null,null,null,null,null,null,null,null,null,"",null,null,null,null,null,null,null,null,null,null,null,null,null,null,null,"745809-81-8",349,"指1原01","2B04","Methyl 2-methylcyclohexyl methylphosphonate","Methyl 2-methylcyclohexyl methylphosphonate"]
[null,null,null,null,null,null,null,null,null,null,null,null,null,null,null,null,"",null,null,null,null,null,null,null,null,null,null,null,null,null,null,null,"753-72-0",350,"指1原01","2B04","Methylthiophosphonyl difluoride","Methylthiophosphonyl difluoride"]
[null,null,null,null,null,null,null,null,null,null,null,null,null,null,null,null,"",null,null,null,null,null,null,null,null,null,null,null,null,null,null,null,"80014-33-1",351,"指1原01","2B04","O,O-Dimethyl methylphosphonothioate-d3","O,O-Dimethyl methylphosphonothioate-d3"]
[null,null,null,null,null,null,null,null,null,null,null,null,null,null,null,null,"",null,null,null,null,null,null,null,null,null,null,null,null,null,null,null,"82658-32-0",352,"指1原01","2B04","An olig. cyclic phosphonate mixture, containing primarily: (5-ethyl-2-methyl-2-oxido-1,3,2-dioxaphosphorinan-5-yl)methyl methyl P-methylphosphonate","An olig. cyclic phosphonate mixture, containing primarily: (5-ethyl-2-methyl-2-oxido-1,3,2-dioxaphosphorinan-5-yl)methyl methyl P-methylphosphonate"]
[null,null,null,null,null,null,null,null,null,null,null,null,null,null,null,null,"",null,null,null,null,null,null,null,null,null,null,null,null,null,null,null,"849-29-6",353,"指1原01","2B04","O-(3-chloropropyl) O-[4-nitro-3-(trifluoromethyl)phenyl] methylphosphonothionate","O-(3-chloropropyl) O-[4-nitro-3-(trifluoromethyl)phenyl] methylphosphonothionate"]
[null,null,null,null,null,null,null,null,null,null,null,null,null,null,null,null,"",null,null,null,null,null,null,null,null,null,null,null,null,null,null,null,"88053-17-2",354,"指1原01","2B04","Cyclopentyl methyl methylphosphonate","Cyclopentyl methyl methylphosphonate"]
[null,null,null,null,null,null,null,null,null,null,null,null,null,null,null,null,"",null,null,null,null,null,null,null,null,null,null,null,null,null,null,null,"919486-00-3",355,"指1原01","2B04","Bis(trimethylsilyl) d3-methylphosphonate","Bis(trimethylsilyl) d3-methylphosphonate"]
[null,null,null,null,null,null,null,null,null,null,null,null,null,null,null,null,"",null,null,null,null,null,null,null,null,null,null,null,null,null,null,null,"1174023-68-7",356,"指1原03","2B06","Dimethyl(d3) N,N-dimethyl(d3)phosphoramidate","Dimethyl(d3) N,N-dimethyl(d3)phosphoramidate"]
[null,null,null,null,null,null,null,null,null,null,null,null,null,null,null,null,"",null,null,null,null,null,null,null,null,null,null,null,null,null,null,null,"1092978-87-4",357,"指1原07","2B10","2-(N,N-Diethyl(d10)amino)ethylchloride hydrochloride","2-(N,N-Diethyl(d10)amino)ethylchloride hydrochloride"]
[null,null,null,null,null,null,null,null,null,null,null,null,null,null,null,null,"",null,null,null,null,null,null,null,null,null,null,null,null,null,null,null,"1092978-90-9",358,"指1原07","2B10","2-(N-methyl-N-ethyl(d5)amino)ethylchloride hydrochloride","2-(N-methyl-N-ethyl(d5)amino)ethylchloride hydrochloride"]
[null,null,null,null,null,null,null,null,null,null,null,null,null,null,null,null,"",null,null,null,null,null,null,null,null,null,null,null,null,null,null,null,"1092978-92-1",359,"指1原07","2B10","2-(N,N-propyl(d7)propylamino)ethylchloride hydrochloride","2-(N,N-propyl(d7)propylamino)ethylchloride hydrochloride"]
[null,null,null,null,null,null,null,null,null,null,null,null,null,null,null,null,"",null,null,null,null,null,null,null,null,null,null,null,null,null,null,null,"1093059-99-4",360,"指1原07","2B10","2-(N,N-Diethyl(d10)amino)ethylchloride","2-(N,N-Diethyl(d10)amino)ethylchloride"]
[null,null,null,null,null,null,null,null,null,null,null,null,null,null,null,null,"",null,null,null,null,null,null,null,null,null,null,null,null,null,null,null,"1093060-00-4",361,"指1原07","2B10","2-(N-Methyl-N-ethyl(d5)amino)ethylchloride","2-(N-Methyl-N-ethyl(d5)amino)ethylchloride"]
[null,null,null,null,null,null,null,null,null,null,null,null,null,null,null,null,"",null,null,null,null,null,null,null,null,null,null,null,null,null,null,null,"1093060-01-5",362,"指1原07","2B10","2-(N-Propyl(d7)-N-propylamino)ethylchloride","2-(N-Propyl(d7)-N-propylamino)ethylchloride"]
[null,null,null,null,null,null,null,null,null,null,null,null,null,null,null,null,"",null,null,null,null,null,null,null,null,null,null,null,null,null,null,null,"1148114-15-1",363,"指1原07","2B10","2-(N,N-Dimethyl(C13)amino)ethylchloride","2-(N,N-Dimethyl(C13)amino)ethylchloride"]
[null,null,null,null,null,null,null,null,null,null,null,null,null,null,null,null,"",null,null,null,null,null,null,null,null,null,null,null,null,null,null,null,"1219805-94-3",364,"指1原07","2B10","2-(N,N-Diethylamino)ethyl(d4)chloride hydrochloride","2-(N,N-Diethylamino)ethyl(d4)chloride hydrochloride"]
[null,null,null,null,null,null,null,null,null,null,null,null,null,null,null,null,"",null,null,null,null,null,null,null,null,null,null,null,null,null,null,null,"1219908-93-6",365,"指1原07","2B10","2-(N,N-Diethylamino)ethyl(d4)chloride","2-(N,N-Diethylamino)ethyl(d4)chloride"]
[null,null,null,null,null,null,null,null,null,null,null,null,null,null,null,null,"",null,null,null,null,null,null,null,null,null,null,null,null,null,null,null,"1252995-12-2",366,"指1原07","2B10","2-(N,N-Dimethylamino)ethyl(d4)chloride hydrochloride","2-(N,N-Dimethylamino)ethyl(d4)chloride hydrochloride"]
[null,null,null,null,null,null,null,null,null,null,null,null,null,null,null,null,"",null,null,null,null,null,null,null,null,null,null,null,null,null,null,null,"1252995-13-3",367,"指1原07","2B10","2-(N,N-Dimethyl(d6)amino)ethyl(d4)chloride hydrochloride","2-(N,N-Dimethyl(d6)amino)ethyl(d4)chloride hydrochloride"]
[null,null,null,null,null,null,null,null,null,null,null,null,null,null,null,null,"",null,null,null,null,null,null,null,null,null,null,null,null,null,null,null,"1253176-81-6",368,"指1原07","2B10","2-(N,N-Dimethyl(d6)amino)ethyl(d4)chloride","2-(N,N-Dimethyl(d6)amino)ethyl(d4)chloride"]
[null,null,null,null,null,null,null,null,null,null,null,null,null,null,null,null,"",null,null,null,null,null,null,null,null,null,null,null,null,null,null,null,"1255381-66-8",369,"指1原07","2B10","2-(N,N-Diethylamino)ethylchloride and Tetrafluoroborate(H+) (1:1)","2-(N,N-Diethylamino)ethylchloride and Tetrafluoroborate(H+) (1:1)"]
[null,null,null,null,null,null,null,null,null,null,null,null,null,null,null,null,"",null,null,null,null,null,null,null,null,null,null,null,null,null,null,null,"1255381-67-9",370,"指1原07","2B10","2-(N,N-Diethylamino)ethylchloride, Hexafluorophosphate and Hydrogen(H+) (1:1:1)","2-(N,N-Diethylamino)ethylchloride, Hexafluorophosphate and Hydrogen(H+) (1:1:1)"]
[null,null,null,null,null,null,null,null,null,null,null,null,null,null,null,null,"",null,null,null,null,null,null,null,null,null,null,null,null,null,null,null,"1469441-30-2",371,"指1原07","2B10","2-(N,N-Diethyl(d10)amino)ethyl(d5)chloride","2-(N,N-Diethyl(d10)amino)ethyl(d5)chloride"]
[null,null,null,null,null,null,null,null,null,null,null,null,null,null,null,null,"",null,null,null,null,null,null,null,null,null,null,null,null,null,null,null,"1092978-79-4",372,"指1原08","2B11","2-(N-Ethyl(d5)-N-methylamino)ethanol hydrochloride","2-(N-Ethyl(d5)-N-methylamino)ethanol hydrochloride"]
[null,null,null,null,null,null,null,null,null,null,null,null,null,null,null,null,"",null,null,null,null,null,null,null,null,null,null,null,null,null,null,null,"1092978-81-8",373,"指1原08","2B11","2-(N-propyl-N-propyl(d7)amino)ethanol hydrochloride","2-(N-propyl-N-propyl(d7)amino)ethanol hydrochloride"]
[null,null,null,null,null,null,null,null,null,null,null,null,null,null,null,null,"",null,null,null,null,null,null,null,null,null,null,null,null,null,null,null,"1093059-97-2",374,"指1原08","2B11","2-(N-Ethyl(d5)-N-methylamino)ethanol","2-(N-Ethyl(d5)-N-methylamino)ethanol"]
[null,null,null,null,null,null,null,null,null,null,null,null,null,null,null,null,"",null,null,null,null,null,null,null,null,null,null,null,null,null,null,null,"1093059-98-3",375,"指1原08","2B11","2-(N-Propyl-N-propyl(d7)amino)ethanol","2-(N-Propyl-N-propyl(d7)amino)ethanol"]
[null,null,null,null,null,null,null,null,null,null,null,null,null,null,null,null,"",null,null,null,null,null,null,null,null,null,null,null,null,null,null,null,"1313734-90-5",376,"指1原08","2B11","2-(N,N-Diisopropyl(C13)amino)ethanol","2-(N,N-Diisopropyl(C13)amino)ethanol"]
[null,null,null,null,null,null,null,null,null,null,null,null,null,null,null,null,"",null,null,null,null,null,null,null,null,null,null,null,null,null,null,null,"1373773-53-5",377,"指1原08","2B11","2-(N,N-Diisopropylamino)ethanol and Hydrogen sulfide (1:1)","2-(N,N-Diisopropylamino)ethanol and Hydrogen sulfide (1:1)"]
[null,null,null,null,null,null,null,null,null,null,null,null,null,null,null,null,"",null,null,null,null,null,null,null,null,null,null,null,null,null,null,null,"1392221-32-7",378,"指1原08","2B11","Ether of 2-(N,N-Diisopropylamino)ethanol and Dextran (1:1)","Ether of 2-(N,N-Diisopropylamino)ethanol and Dextran (1:1)"]
[null,null,null,null,null,null,null,null,null,null,null,null,null,null,null,null,"",null,null,null,null,null,null,null,null,null,null,null,null,null,null,null,"4535-77-7",379,"指1原08","2B11","2-(N-Isopropyl-N-propylamino)ethanol","2-(N-Isopropyl-N-propylamino)ethanol"]
[null,null,null,null,null,null,null,null,null,null,null,null,null,null,null,null,"",null,null,null,null,null,null,null,null,null,null,null,null,null,null,null,"1017861-21-0",380,"指1原09","2B12","2-(N-Ethyl-N-methylamino)ethanethiol hydrochloride","2-(N-Ethyl-N-methylamino)ethanethiol hydrochloride"]
[null,null,null,null,null,null,null,null,null,null,null,null,null,null,null,null,"",null,null,null,null,null,null,null,null,null,null,null,null,null,null,null,"1017861-26-5",381,"指1原09","2B12","2-(N-Methyl-N-propylamino)ethanethiol hydrochloride","2-(N-Methyl-N-propylamino)ethanethiol hydrochloride"]
[null,null,null,null,null,null,null,null,null,null,null,null,null,null,null,null,"",null,null,null,null,null,null,null,null,null,null,null,null,null,null,null,"1017861-29-8",382,"指1原09","2B12","2-(N-Isopropyl-N-methylamino)ethanethiol hydrochloride","2-(N-Isopropyl-N-methylamino)ethanethiol hydrochloride"]
[null,null,null,null,null,null,null,null,null,null,null,null,null,null,null,null,"",null,null,null,null,null,null,null,null,null,null,null,null,null,null,null,"1017861-34-5",383,"指1原09","2B12","2-(N-Ethyl-N-propylamino)ethanethiol hydrochloride","2-(N-Ethyl-N-propylamino)ethanethiol hydrochloride"]
[null,null,null,null,null,null,null,null,null,null,null,null,null,null,null,null,"",null,null,null,null,null,null,null,null,null,null,null,null,null,null,null,"1017861-37-8",384,"指1原09","2B12","2-(N-Ethyl-N-isopropylamino)ethanethiol hydrochloride","2-(N-Ethyl-N-isopropylamino)ethanethiol hydrochloride"]
[null,null,null,null,null,null,null,null,null,null,null,null,null,null,null,null,"",null,null,null,null,null,null,null,null,null,null,null,null,null,null,null,"1017861-45-8",385,"指1原09","2B12","2-(N-Isopropyl-N-propylamino)ethanethiol hydrochloride","2-(N-Isopropyl-N-propylamino)ethanethiol hydrochloride"]
[null,null,null,null,null,null,null,null,null,null,null,null,null,null,null,null,"",null,null,null,null,null,null,null,null,null,null,null,null,null,null,null,"1018124-38-3",386,"指1原09","2B12","2-(N-Methyl-N-propylamino)ethanethiol","2-(N-Methyl-N-propylamino)ethanethiol"]
[null,null,null,null,null,null,null,null,null,null,null,null,null,null,null,null,"",null,null,null,null,null,null,null,null,null,null,null,null,null,null,null,"1092978-97-6",387,"指1原09","2B12","2-(N,N-Dimethyl(d6)amino)ethanethiol hydrochloride","2-(N,N-Dimethyl(d6)amino)ethanethiol hydrochloride"]
[null,null,null,null,null,null,null,null,null,null,null,null,null,null,null,null,"",null,null,null,null,null,null,null,null,null,null,null,null,null,null,null,"1092979-00-4",388,"指1原09","2B12","2-(N,N-Diethyl(d10)amino)ethanethiol hydrochloride","2-(N,N-Diethyl(d10)amino)ethanethiol hydrochloride"]
[null,null,null,null,null,null,null,null,null,null,null,null,null,null,null,null,"",null,null,null,null,null,null,null,null,null,null,null,null,null,null,null,"1092979-02-6",389,"指1原09","2B12","2-(N-ethyl(d5)-N-methylamino)ethanethiol hydrochloride","2-(N-ethyl(d5)-N-methylamino)ethanethiol hydrochloride"]
[null,null,null,null,null,null,null,null,null,null,null,null,null,null,null,null,"",null,null,null,null,null,null,null,null,null,null,null,null,null,null,null,"1092979-05-9",390,"指1原09","2B12","2-(N-propyl(d7)-N-propylamino)ethanethiol hydrochloride","2-(N-propyl(d7)-N-propylamino)ethanethiol hydrochloride"]
[null,null,null,null,null,null,null,null,null,null,null,null,null,null,null,null,"",null,null,null,null,null,null,null,null,null,null,null,null,null,null,null,"1092979-08-2",391,"指1原09","2B12","2-(N,N-Diisopropyl(d14)amino)ethanethiol hydrochloride","2-(N,N-Diisopropyl(d14)amino)ethanethiol hydrochloride"]
[null,null,null,null,null,null,null,null,null,null,null,null,null,null,null,null,"",null,null,null,null,null,null,null,null,null,null,null,null,null,null,null,"1093060-02-6",392,"指1原09","2B12","2-(N,N-Dimethyl(d6)amino)ethanethiol","2-(N,N-Dimethyl(d6)amino)ethanethiol"]
[null,null,null,null,null,null,null,null,null,null,null,null,null,null,null,null,"",null,null,null,null,null,null,null,null,null,null,null,null,null,null,null,"1093060-03-7",393,"指1原09","2B12","2-(N,N-Diethyl(d10)amino)ethanethiol","2-(N,N-Diethyl(d10)amino)ethanethiol"]
[null,null,null,null,null,null,null,null,null,null,null,null,null,null,null,null,"",null,null,null,null,null,null,null,null,null,null,null,null,null,null,null,"1093060-04-8",394,"指1原09","2B12","2-(N-Ethyl(d5)-N-methylamino)ethanethiol","2-(N-Ethyl(d5)-N-methylamino)ethanethiol"]
[null,null,null,null,null,null,null,null,null,null,null,null,null,null,null,null,"",null,null,null,null,null,null,null,null,null,null,null,null,null,null,null,"1093060-05-9",395,"指1原09","2B12","2-(N-Propyl(d7)-N-propylamino)ethanethiol","2-(N-Propyl(d7)-N-propylamino)ethanethiol"]
[null,null,null,null,null,null,null,null,null,null,null,null,null,null,null,null,{"$f":"CONCATENATE($R389,IF($S389<>\"\",\"_\",\"\"),$S389)","v":""},null,null,null,null,null,null,null,null,null,null,null,null,null,null,null,"1093060-06-0",396,"指1原09","2B12","2-(N,N-Diisopropyl(d14)amino)ethanethiol","2-(N,N-Diisopropyl(d14)amino)ethanethiol"]
[null,null,null,null,null,null,null,null,null,null,null,null,null,null,null,null,"",null,null,null,null,null,null,null,null,null,null,null,null,null,null,null,"58607-68-4",397,"指1原09","2B12","2-(N,N-diethylamino)ethanethiolate sodium","2-(N,N-diethylamino)ethanethiolate sodium"]
[null,null,null,null,null,null,null,null,null,null,null,null,null,null,null,null,"",null,null,null,null,null,null,null,null,null,null,null,null,null,null,null,"138847-50-4",398,"指1原10","2B13","Bis(2-hydroxyethyl-C13)sulfide","Bis(2-hydroxyethyl-C13)sulfide"]
[null,null,null,null,null,null,null,null,null,null,null,null,null,null,null,null,"",null,null,null,null,null,null,null,null,null,null,null,null,null,null,null,"1435934-55-6",399,"指1原10","2B13","Bis(2-hydroxyethyl-d4)sulfide","Bis(2-hydroxyethyl-d4)sulfide"]
[null,null,null,null,null,null,null,null,null,null,null,null,null,null,null,null,"",null,null,null,null,null,null,null,null,null,null,null,null,null,null,null,"223129-68-8",400,"指1原10","2B13","1-14C-2,2-thiobisethanol","1-14C-2,2-thiobisethanol"]
[null,null,null,null,null,null,null,null,null,null,null,null,null,null,null,null,"",null,null,null,null,null,null,null,null,null,null,null,null,null,null,null,"73205-32-0",401,"指2原13","3B17","Triethanolamine-d15","Triethanolamine-d15"]
[null,null,null,null,null,null,null,null,null,null,null,null,null,null,null,null,""]
[null,null,null,null,null,null,null,null,null,null,null,null,null,null,null,null,""]
[null,null,null,null,null,null,null,null,null,null,null,null,null,null,null,null,""]
[null,null,null,null,null,null,null,null,null,null,null,null,null,null,null,null,""]
[null,null,null,null,null,null,null,null,null,null,null,null,null,null,null,null,""]
[null,null,null,null,null,null,null,null,null,null,null,null,null,null,null,null,""]
[null,null,null,null,null,null,null,null,null,null,null,null,null,null,null,null,""]
[null,null,null,null,null,null,null,null,null,null,null,null,null,null,null,null,""]
[null,null,null,null,null,null,null,null,null,null,null,null,null,null,null,null,""]
[null,null,null,null,null,null,null,null,null,null,null,null,null,null,null,null,""]
[null,null,null,null,null,null,null,null,null,null,null,null,null,null,null,null,""]
[null,null,null,null,null,null,null,null,null,null,null,null,null,null,null,null,""]
[null,null,null,null,null,null,null,null,null,null,null,null,null,null,null,null,""]
[null,null,null,null,null,null,null,null,null,null,null,null,null,null,null,null,""]
[null,null,null,null,null,null,null,null,null,null,null,null,null,null,null,null,""]
[null,null,null,null,null,null,null,null,null,null,null,null,null,null,null,null,""]
[null,null,null,null,null,null,null,null,null,null,null,null,null,null,null,null,""]
[null,null,null,null,null,null,null,null,null,null,null,null,null,null,null,null,""]
[null,null,null,null,null,null,null,null,null,null,null,null,null,null,null,null,""]
[null,null,null,null,null,null,null,null,null,null,null,null,null,null,null,null,""]
[null,null,null,null,null,null,null,null,null,null,null,null,null,null,null,null,""]
[null,null,null,null,null,null,null,null,null,null,null,null,null,null,null,null,""]
[null,null,null,null,null,null,null,null,null,null,null,null,null,null,null,null,""]
[null,null,null,null,null,null,null,null,null,null,null,null,null,null,null,null,""]
[null,null,null,null,null,null,null,null,null,null,null,null,null,null,null,null,""]
[null,null,null,null,null,null,null,null,null,null,null,null,null,null,null,null,""]
[null,null,null,null,null,null,null,null,null,null,null,null,null,null,null,null,""]
[null,null,null,null,null,null,null,null,null,null,null,null,null,null,null,null,""]
[null,null,null,null,null,null,null,null,null,null,null,null,null,null,null,null,""]
[null,null,null,null,null,null,null,null,null,null,null,null,null,null,null,null,""]
[null,null,null,null,null,null,null,null,null,null,null,null,null,null,null,null,""]
[null,null,null,null,null,null,null,null,null,null,null,null,null,null,null,null,""]
[null,null,null,null,null,null,null,null,null,null,null,null,null,null,null,null,""]
[null,null,null,null,null,null,null,null,null,null,null,null,null,null,null,null,""]
[null,null,null,null,null,null,null,null,null,null,null,null,null,null,null,null,""]
[null,null,null,null,null,null,null,null,null,null,null,null,null,null,null,null,""]
[null,null,null,null,null,null,null,null,null,null,null,null,null,null,null,null,""]
[null,null,null,null,null,null,null,null,null,null,null,null,null,null,null,null,""]
[null,null,null,null,null,null,null,null,null,null,null,null,null,null,null,null,""]
[null,null,null,null,null,null,null,null,null,null,null,null,null,null,null,null,""]
[null,null,null,null,null,null,null,null,null,null,null,null,null,null,null,null,""]
[null,null,null,null,null,null,null,null,null,null,null,null,null,null,null,null,""]
[null,null,null,null,null,null,null,null,null,null,null,null,null,null,null,null,""]
[null,null,null,null,null,null,null,null,null,null,null,null,null,null,null,null,""]
[null,null,null,null,null,null,null,null,null,null,null,null,null,null,null,null,""]
[null,null,null,null,null,null,null,null,null,null,null,null,null,null,null,null,""]
[null,null,null,null,null,null,null,null,null,null,null,null,null,null,null,null,""]
[null,null,null,null,null,null,null,null,null,null,null,null,null,null,null,null,""]
[null,null,null,null,null,null,null,null,null,null,null,null,null,null,null,null,""]
[null,null,null,null,null,null,null,null,null,null,null,null,null,null,null,null,""]
[null,null,null,null,null,null,null,null,null,null,null,null,null,null,null,null,""]
[null,null,null,null,null,null,null,null,null,null,null,null,null,null,null,null,""]
[null,null,null,null,null,null,null,null,null,null,null,null,null,null,null,null,""]
[null,null,null,null,null,null,null,null,null,null,null,null,null,null,null,null,""]
[null,null,null,null,null,null,null,null,null,null,null,null,null,null,null,null,""]
[null,null,null,null,null,null,null,null,null,null,null,null,null,null,null,null,""]
[null,null,null,null,null,null,null,null,null,null,null,null,null,null,null,null,""]
[null,null,null,null,null,null,null,null,null,null,null,null,null,null,null,null,""]
[null,null,null,null,null,null,null,null,null,null,null,null,null,null,null,null,{"$f":"CONCATENATE($R453,IF($S453<>\"\",\"_\",\"\"),$S453)","v":""}]
[null,null,null,null,null,null,null,null,null,null,null,null,null,null,null,null,""]
[null,null,null,null,null,null,null,null,null,null,null,null,null,null,null,null,""]
[null,null,null,null,null,null,null,null,null,null,null,null,null,null,null,null,""]
[null,null,null,null,null,null,null,null,null,null,null,null,null,null,null,null,""]
[null,null,null,null,null,null,null,null,null,null,null,null,null,null,null,null,""]
[null,null,null,null,null,null,null,null,null,null,null,null,null,null,null,null,""]
[null,null,null,null,null,null,null,null,null,null,null,null,null,null,null,null,""]
[null,null,null,null,null,null,null,null,null,null,null,null,null,null,null,null,""]
[null,null,null,null,null,null,null,null,null,null,null,null,null,null,null,null,""]
[null,null,null,null,null,null,null,null,null,null,null,null,null,null,null,null,""]
[null,null,null,null,null,null,null,null,null,null,null,null,null,null,null,null,""]
[null,null,null,null,null,null,null,null,null,null,null,null,null,null,null,null,""]
[null,null,null,null,null,null,null,null,null,null,null,null,null,null,null,null,""]
[null,null,null,null,null,null,null,null,null,null,null,null,null,null,null,null,""]
[null,null,null,null,null,null,null,null,null,null,null,null,null,null,null,null,""]
[null,null,null,null,null,null,null,null,null,null,null,null,null,null,null,null,""]
[null,null,null,null,null,null,null,null,null,null,null,null,null,null,null,null,""]
[null,null,null,null,null,null,null,null,null,null,null,null,null,null,null,null,""]
[null,null,null,null,null,null,null,null,null,null,null,null,null,null,null,null,""]
[null,null,null,null,null,null,null,null,null,null,null,null,null,null,null,null,""]
[null,null,null,null,null,null,null,null,null,null,null,null,null,null,null,null,""]
[null,null,null,null,null,null,null,null,null,null,null,null,null,null,null,null,""]
[null,null,null,null,null,null,null,null,null,null,null,null,null,null,null,null,""]
[null,null,null,null,null,null,null,null,null,null,null,null,null,null,null,null,""]
[null,null,null,null,null,null,null,null,null,null,null,null,null,null,null,null,""]
[null,null,null,null,null,null,null,null,null,null,null,null,null,null,null,null,""]
[null,null,null,null,null,null,null,null,null,null,null,null,null,null,null,null,""]
[null,null,null,null,null,null,null,null,null,null,null,null,null,null,null,null,""]
[null,null,null,null,null,null,null,null,null,null,null,null,null,null,null,null,""]
[null,null,null,null,null,null,null,null,null,null,null,null,null,null,null,null,""]
[null,null,null,null,null,null,null,null,null,null,null,null,null,null,null,null,""]
[null,null,null,null,null,null,null,null,null,null,null,null,null,null,null,null,""]
[null,null,null,null,null,null,null,null,null,null,null,null,null,null,null,null,""]
[null,null,null,null,null,null,null,null,null,null,null,null,null,null,null,null,""]
[null,null,null,null,null,null,null,null,null,null,null,null,null,null,null,null,""]
[null,null,null,null,null,null,null,null,null,null,null,null,null,null,null,null,""]
[null,null,null,null,null,null,null,null,null,null,null,null,null,null,null,null,""]
[null,null,null,null,null,null,null,null,null,null,null,null,null,null,null,null,""]
[null,null,null,null,null,null,null,null,null,null,null,null,null,null,null,null,""]
[null,null,null,null,null,null,null,null,null,null,null,null,null,null,null,null,""]
[null,null,null,null,null,null,null,null,null,null,null,null,null,null,null,null,""]
[null,null,null,null,null,null,null,null,null,null,null,null,null,null,null,null,""]
[null,null,null,null,null,null,null,null,null,null,null,null,null,null,null,null,""]
[null,null,null,null,null,null,null,null,null,null,null,null,null,null,null,null,""]
[null,null,null,null,null,null,null,null,null,null,null,null,null,null,null,null,""]
[null,null,null,null,null,null,null,null,null,null,null,null,null,null,null,null,""]
[null,null,null,null,null,null,null,null,null,null,null,null,null,null,null,null,""]

{"sheet":"【自動入力】様式第20","index":6,"n_rows":216,"n_cols":32,"rows_kept":216,"cut":false,"hidden":false,"merged":[[216,5,216,32],[213,14,213,23],[213,24,213,30],[213,31,213,32],[214,14,214,23],[214,24,214,30],[214,31,214,32],[210,24,210,30],[210,31,210,32],[211,14,211,23],[211,24,211,30],[211,31,211,32],[212,14,212,23],[212,24,212,30],[212,31,212,32],[207,1,214,13],[207,14,207,23],[207,24,207,32],[208,14,208,23],[208,24,208,30],[208,31,208,32],[209,14,209,23],[209,24,209,30],[209,31,209,32],[210,14,210,23],[202,1,202,32],[204,1,205,13],[204,14,204,32],[205,14,205,32],[206,1,206,13],[206,14,206,32],[194,1,194,21],[195,10,197,18],[195,20,195,31],[197,20,197,32],[199,10,199,18],[199,20,199,31],[185,5,185,32],[188,1,188,32],[191,0,191,18],[181,14,181,23],[181,24,181,30],[181,31,181,32],[182,14,182,23],[182,24,182,30],[182,31,182,32],[191,23,191,32],[178,31,178,32],[179,14,179,23],[179,24,179,30],[179,31,179,32],[180,14,180,23],[180,24,180,30],[180,31,180,32],[175,1,175,13],[175,14,175,32],[176,1,183,13],[176,14,176,23],[176,24,176,32],[177,14,177,23],[177,24,177,30],[177,31,177,32],[178,14,178,23],[178,24,178,30],[183,14,183,23],[183,24,183,30],[183,31,183,32],[168,10,168,18],[168,20,168,31],[171,1,171,32],[173,1,174,13],[173,14,173,32],[174,14,174,32],[154,5,154,32],[157,1,157,32],[160,0,160,18],[163,1,163,21],[164,10,166,18],[164,20,164,31],[166,20,166,32],[160,23,160,32],[165,32,165,33],[145,1,152,13],[145,14,145,23],[145,24,145,32],[146,14,146,23],[146,24,146,30],[146,31,146,32],[147,14,147,23],[147,24,147,30],[147,31,147,32],[148,14,148,23],[151,14,151,23],[151,24,151,30],[151,31,151,32],[152,14,152,23],[152,24,152,30],[152,31,152,32],[148,24,148,30],[148,31,148,32],[149,14,149,23],[149,24,149,30],[149,31,149,32],[150,14,150,23],[150,24,150,30],[150,31,150,32],[140,1,140,32],[142,1,143,13],[142,14,142,32],[143,14,143,32],[144,1,144,13],[144,14,144,32],[132,1,132,21],[133,10,135,18],[133,20,133,31],[135,20,135,32],[137,10,137,18],[137,20,137,31],[123,5,123,32],[126,1,126,32],[129,0,129,18],[119,14,119,23],[119,24,119,30],[119,31,119,32],[120,14,120,23],[120,24,120,30],[120,31,120,32],[129,23,129,32],[116,31,116,32],[117,14,117,23],[117,24,117,30],[117,31,117,32],[118,14,118,23],[118,24,118,30],[118,31,118,32],[113,1,113,13],[113,14,113,32],[114,1,121,13],[114,14,114,23],[114,24,114,32],[115,14,115,23],[115,24,115,30],[115,31,115,32],[116,14,116,23],[116,24,116,30],[121,14,121,23],[121,24,121,30],[121,31,121,32],[106,10,106,18],[106,20,106,31],[109,1,109,32],[111,1,112,13],[111,14,111,32],[112,14,112,32],[92,5,92,32],[95,1,95,32],[98,0,98,18],[101,1,101,21],[102,10,104,18],[102,20,102,31],[104,20,104,32],[98,23,98,32],[83,1,90,13],[83,14,83,23],[83,24,83,32],[84,14,84,23],[84,24,84,30],[84,31,84,32],[85,14,85,23],[85,24,85,30],[85,31,85,32],[86,14,86,23],[89,14,89,23],[89,24,89,30],[89,31,89,32],[90,14,90,23],[90,24,90,30],[90,31,90,32],[86,24,86,30],[86,31,86,32],[87,14,87,23],[87,24,87,30],[87,31,87,32],[88,14,88,23],[88,24,88,30],[88,31,88,32],[78,1,78,32],[80,1,81,13],[80,14,80,32],[81,14,81,32],[82,1,82,13],[82,14,82,32],[70,1,70,21],[71,10,73,18],[71,20,71,31],[73,20,73,32],[75,10,75,18],[75,20,75,31],[61,5,61,32],[64,1,64,32],[67,0,67,18],[57,14,57,23],[57,24,57,30],[57,31,57,32],[58,14,58,23],[58,24,58,30],[58,31,58,32],[67,23,67,32],[54,31,54,32],[55,14,55,23],[55,24,55,30],[55,31,55,32],[56,14,56,23],[56,24,56,30],[56,31,56,32],[51,1,51,13],[51,14,51,32],[52,1,59,13],[52,14,52,23],[52,24,52,32],[53,14,53,23],[53,24,53,30],[53,31,53,32],[54,14,54,23],[54,24,54,30],[59,14,59,23],[59,24,59,30],[59,31,59,32],[44,10,44,18],[44,20,44,31],[47,1,47,32],[49,1,50,13],[49,14,49,32],[50,14,50,32],[33,1,33,32],[36,0,36,18],[39,1,39,21],[40,10,42,18],[40,20,40,31],[42,20,42,32],[36,23,36,32],[30,5,30,32],[9,10,11,18],[13,10,13,18],[26,14,26,23],[26,24,26,30],[26,31,26,32],[27,14,27,23],[27,24,27,30],[27,31,27,32],[23,31,23,32],[24,14,24,23],[24,24,24,30],[24,31,24,32],[25,14,25,23],[25,24,25,30],[25,31,25,32],[20,1,20,13],[20,14,20,32],[21,1,28,13],[21,14,21,23],[21,24,21,32],[23,14,23,23],[23,24,23,30],[16,1,16,32],[0,32,0,33],[18,1,19,13],[18,14,18,32],[19,14,19,32],[28,14,28,23],[28,24,28,30],[28,31,28,32],[13,20,13,31],[2,1,2,32],[5,0,5,18],[8,1,8,21],[9,20,9,31],[11,20,11,32],[22,14,22,23],[22,24,22,30],[22,31,22,32],[5,23,5,32]]}
["（別紙様式１）","様式第２０（第２１条関係）"]
[]
[null,{"$f":" CONCATENATE(ETL!$D$81, \"実績届出書\")","v":"実績届出書"}]
[]
[]
[null,null,null,null,null,null,null,null,null,null,null,null,null,null,null,null,null,null,null,null,null,null,null,{"$f":"ETL!$G$4","v":{"$error":"#NUM!"}}]
[]
[]
[null,"経済産業大臣殿"]
[null,null,null,null,null,null,null,null,null,null,"氏名又は名称及び法人にあっては、その代表者の氏名",null,null,null,null,null,null,null,null,null,{"$f":"ETL!$D$7","v":""}]
[]
[null,null,null,null,null,null,null,null,null,null,null,null,null,null,null,null,null,null,null,null,{"$f":"ETL!$G$8","v":""}]
[]
[null,null,null,null,null,null,null,null,null,null,"住　所",null,null,null,null,null,null,null,null,null,{"$f":"ETL!$D$11","v":""}]
[]
[null,{"$error":"#REF!"}]
[null,"　化学兵器の禁止及び特定物質の規制等に関する法律第２８条の規定により次のとおり届け出ます。"]
[]
[null,{"$f":" CONCATENATE(ETL!$D$81, \"をした指定物質\")","v":"をした指定物質"},null,null,null,null,null,null,null,null,null,null,null,null,{"$f":"ETL!$G$83","v":""}]
[null,null,null,null,null,null,null,null,null,null,null,null,null,null,{"$f":"CONCATENATE(\"(CAS No. \", ETL!$G$82, \")\")","v":"(CAS No. )"}]
[null,"第一種、第二種の区分",null,null,null,null,null,null,null,null,null,null,null,null,{"$f":"CONCATENATE(ETL!$D$86, \"(\", ETL!$D$87, \")\")","v":"()"}]
[null,{"$f":" CONCATENATE(ETL!$D$81, \"をした指定物質の数量\n（相手国ごとに記入すること。）\")","v":"をした指定物質の数量\n（相手国ごとに記入すること。）"},null,null,null,null,null,null,null,null,null,null,null,null,"相手国",null,null,null,null,null,null,null,null,null,"数量"]
[null,null,null,null,null,null,null,null,null,null,null,null,null,null,{"$f":"ETL!$F90","v":""},null,null,null,null,null,null,null,null,null,{"$f":"ETL!$J90","v":"0"},null,null,null,null,null,null,"kg"]
[null,null,null,null,null,null,null,null,null,null,null,null,null,null,{"$f":"ETL!$F91","v":""},null,null,null,null,null,null,null,null,null,{"$f":"ETL!$J91","v":""},null,null,null,null,null,null,"kg"]
[null,null,null,null,null,null,null,null,null,null,null,null,null,null,{"$f":"ETL!$F92","v":""},null,null,null,null,null,null,null,null,null,{"$f":"ETL!$J92","v":""},null,null,null,null,null,null,"kg"]
[null,null,null,null,null,null,null,null,null,null,null,null,null,null,{"$f":"ETL!$F93","v":""},null,null,null,null,null,null,null,null,null,{"$f":"ETL!$J93","v":""},null,null,null,null,null,null,"kg"]
[null,null,null,null,null,null,null,null,null,null,null,null,null,null,{"$f":"ETL!$F94","v":""},null,null,null,null,null,null,null,null,null,{"$f":"ETL!$J94","v":""},null,null,null,null,null,null,"kg"]
[null,null,null,null,null,null,null,null,null,null,null,null,null,null,{"$f":"ETL!$F95","v":""},null,null,null,null,null,null,null,null,null,{"$f":"ETL!$J95","v":""},null,null,null,null,null,null,"kg"]
[null,null,null,null,null,null,null,null,null,null,null,null,null,null,{"$f":"ETL!$F96","v":""},null,null,null,null,null,null,null,null,null,{"$f":"ETL!$J96","v":""},null,null,null,null,null,null,"kg"]
[null,"備考",null,null,null,"用紙の大きさは、日本産業規格Ａ４とすること。"]
[]
["（別紙様式１）","様式第２０（第２１条関係）"]
[]
[null,{"$f":" CONCATENATE(ETL!$D$98, \"実績届出書\")","v":"実績届出書"}]
[]
[]
[null,null,null,null,null,null,null,null,null,null,null,null,null,null,null,null,null,null,null,null,null,null,null,{"$f":"ETL!$G$4","v":{"$error":"#NUM!"}}]
[]
[]
[null,"経済産業大臣殿"]
[null,null,null,null,null,null,null,null,null,null,"氏名又は名称及び法人にあっては、その代表者の氏名",null,null,null,null,null,null,null,null,null,{"$f":"ETL!$D$7","v":""}]
[]
[null,null,null,null,null,null,null,null,null,null,null,null,null,null,null,null,null,null,null,null,{"$f":"ETL!$G$8","v":""}]
[]
[null,null,null,null,null,null,null,null,null,null,"住　所",null,null,null,null,null,null,null,null,null,{"$f":"ETL!$D$11","v":""}]
[]
[null,{"$error":"#REF!"}]
[null,"　化学兵器の禁止及び特定物質の規制等に関する法律第２８条の規定により次のとおり届け出ます。"]
[]
[null,{"$f":" CONCATENATE(ETL!$D$98, \"をした指定物質\")","v":"をした指定物質"},null,null,null,null,null,null,null,null,null,null,null,null,{"$f":"ETL!$G$100","v":""}]
[null,null,null,null,null,null,null,null,null,null,null,null,null,null,{"$f":"CONCATENATE(\"(CAS No. \", ETL!$G$99, \")\")","v":"(CAS No. )"}]
[null,"第一種、第二種の区分",null,null,null,null,null,null,null,null,null,null,null,null,{"$f":"CONCATENATE(ETL!$D$103, \"(\", ETL!$D$104, \")\")","v":"()"}]
[null,{"$f":" CONCATENATE(ETL!$D$98, \"をした指定物質の数量\n（相手国ごとに記入すること。）\")","v":"をした指定物質の数量\n（相手国ごとに記入すること。）"},null,null,null,null,null,null,null,null,null,null,null,null,"相手国",null,null,null,null,null,null,null,null,null,"数量"]
[null,null,null,null,null,null,null,null,null,null,null,null,null,null,{"$f":"ETL!$F107","v":""},null,null,null,null,null,null,null,null,null,{"$f":"ETL!$J107","v":"0"},null,null,null,null,null,null,"kg"]
[null,null,null,null,null,null,null,null,null,null,null,null,null,null,{"$f":"ETL!$F108","v":""},null,null,null,null,null,null,null,null,null,{"$f":"ETL!$J108","v":""},null,null,null,null,null,null,"kg"]
[null,null,null,null,null,null,null,null,null,null,null,null,null,null,{"$f":"ETL!$F109","v":""},null,null,null,null,null,null,null,null,null,{"$f":"ETL!$J109","v":""},null,null,null,null,null,null,"kg"]
[null,null,null,null,null,null,null,null,null,null,null,null,null,null,{"$f":"ETL!$F110","v":""},null,null,null,null,null,null,null,null,null,{"$f":"ETL!$J110","v":""},null,null,null,null,null,null,"kg"]
[null,null,null,null,null,null,null,null,null,null,null,null,null,null,{"$f":"ETL!$F111","v":""},null,null,null,null,null,null,null,null,null,{"$f":"ETL!$J111","v":""},null,null,null,null,null,null,"kg"]
[null,null,null,null,null,null,null,null,null,null,null,null,null,null,{"$f":"ETL!$F112","v":""},null,null,null,null,null,null,null,null,null,{"$f":"ETL!$J112","v":""},null,null,null,null,null,null,"kg"]
[null,null,null,null,null,null,null,null,null,null,null,null,null,null,{"$f":"ETL!$F113","v":""},null,null,null,null,null,null,null,null,null,{"$f":"ETL!$J113","v":""},null,null,null,null,null,null,"kg"]
[null,"備考",null,null,null,"用紙の大きさは、日本産業規格Ａ４とすること。"]
[]
["（別紙様式１）","様式第２０（第２１条関係）"]
[]
[null,{"$f":" CONCATENATE(ETL!$D$115, \"実績届出書\")","v":"実績届出書"}]
[]
[]
[null,null,null,null,null,null,null,null,null,null,null,null,null,null,null,null,null,null,null,null,null,null,null,{"$f":"ETL!$G$4","v":{"$error":"#NUM!"}}]
[]
[]
[null,"経済産業大臣殿"]
[null,null,null,null,null,null,null,null,null,null,"氏名又は名称及び法人にあっては、その代表者の氏名",null,null,null,null,null,null,null,null,null,{"$f":"ETL!$D$7","v":""}]
[]
[null,null,null,null,null,null,null,null,null,null,null,null,null,null,null,null,null,null,null,null,{"$f":"ETL!$G$8","v":""}]
[]
[null,null,null,null,null,null,null,null,null,null,"住　所",null,null,null,null,null,null,null,null,null,{"$f":"ETL!$D$11","v":""}]
[]
[null,{"$error":"#REF!"}]
[null,"　化学兵器の禁止及び特定物質の規制等に関する法律第２８条の規定により次のとおり届け出ます。"]
[]
[null,{"$f":" CONCATENATE(ETL!$D$115, \"をした指定物質\")","v":"をした指定物質"},null,null,null,null,null,null,null,null,null,null,null,null,{"$f":"ETL!$G$117","v":""}]
[null,null,null,null,null,null,null,null,null,null,null,null,null,null,{"$f":"CONCATENATE(\"(CAS No. \", ETL!$G$116, \")\")","v":"(CAS No. )"}]
[null,"第一種、第二種の区分",null,null,null,null,null,null,null,null,null,null,null,null,{"$f":"CONCATENATE(ETL!$D$120, \"(\", ETL!$D$121, \")\")","v":"()"}]
[null,{"$f":" CONCATENATE(ETL!$D$115, \"をした指定物質の数量\n（相手国ごとに記入すること。）\")","v":"をした指定物質の数量\n（相手国ごとに記入すること。）"},null,null,null,null,null,null,null,null,null,null,null,null,"相手国",null,null,null,null,null,null,null,null,null,"数量"]
[null,null,null,null,null,null,null,null,null,null,null,null,null,null,{"$f":"ETL!$F124","v":""},null,null,null,null,null,null,null,null,null,{"$f":"ETL!$J124","v":"0"},null,null,null,null,null,null,"kg"]
[null,null,null,null,null,null,null,null,null,null,null,null,null,null,{"$f":"ETL!$F125","v":""},null,null,null,null,null,null,null,null,null,{"$f":"ETL!$J125","v":""},null,null,null,null,null,null,"kg"]
[null,null,null,null,null,null,null,null,null,null,null,null,null,null,{"$f":"ETL!$F126","v":""},null,null,null,null,null,null,null,null,null,{"$f":"ETL!$J126","v":""},null,null,null,null,null,null,"kg"]
[null,null,null,null,null,null,null,null,null,null,null,null,null,null,{"$f":"ETL!$F127","v":""},null,null,null,null,null,null,null,null,null,{"$f":"ETL!$J127","v":""},null,null,null,null,null,null,"kg"]
[null,null,null,null,null,null,null,null,null,null,null,null,null,null,{"$f":"ETL!$F128","v":""},null,null,null,null,null,null,null,null,null,{"$f":"ETL!$J128","v":""},null,null,null,null,null,null,"kg"]
[null,null,null,null,null,null,null,null,null,null,null,null,null,null,{"$f":"ETL!$F129","v":""},null,null,null,null,null,null,null,null,null,{"$f":"ETL!$J129","v":""},null,null,null,null,null,null,"kg"]
[null,null,null,null,null,null,null,null,null,null,null,null,null,null,{"$f":"ETL!$F130","v":""},null,null,null,null,null,null,null,null,null,{"$f":"ETL!$J130","v":""},null,null,null,null,null,null,"kg"]
[null,"備考",null,null,null,"用紙の大きさは、日本産業規格Ａ４とすること。"]
[]
["（別紙様式１）","様式第２０（第２１条関係）"]
[]
[null,{"$f":" CONCATENATE(ETL!$D$132, \"実績届出書\")","v":"実績届出書"}]
[]
[]
[null,null,null,null,null,null,null,null,null,null,null,null,null,null,null,null,null,null,null,null,null,null,null,{"$f":"ETL!$G$4","v":{"$error":"#NUM!"}}]
[]
[]
[null,"経済産業大臣殿"]
[null,null,null,null,null,null,null,null,null,null,"氏名又は名称及び法人にあっては、その代表者の氏名",null,null,null,null,null,null,null,null,null,{"$f":"ETL!$D$7","v":""}]
[]
[null,null,null,null,null,null,null,null,null,null,null,null,null,null,null,null,null,null,null,null,{"$f":"ETL!$G$8","v":""}]
[]
[null,null,null,null,null,null,null,null,null,null,"住　所",null,null,null,null,null,null,null,null,null,{"$f":"ETL!$D$11","v":""}]
[]
[null,{"$error":"#REF!"}]
[null,"　化学兵器の禁止及び特定物質の規制等に関する法律第２８条の規定により次のとおり届け出ます。"]
[]
[null,{"$f":" CONCATENATE(ETL!$D$132, \"をした指定物質\")","v":"をした指定物質"},null,null,null,null,null,null,null,null,null,null,null,null,{"$f":"ETL!$G$134","v":""}]
[null,null,null,null,null,null,null,null,null,null,null,null,null,null,{"$f":"CONCATENATE(\"(CAS No. \", ETL!$G$133, \")\")","v":"(CAS No. )"}]
[null,"第一種、第二種の区分",null,null,null,null,null,null,null,null,null,null,null,null,{"$f":"CONCATENATE(ETL!$D$137, \"(\", ETL!$D$138, \")\")","v":"()"}]
[null,{"$f":" CONCATENATE(ETL!$D$132, \"をした指定物質の数量\n（相手国ごとに記入すること。）\")","v":"をした指定物質の数量\n（相手国ごとに記入すること。）"},null,null,null,null,null,null,null,null,null,null,null,null,"相手国",null,null,null,null,null,null,null,null,null,"数量"]
[null,null,null,null,null,null,null,null,null,null,null,null,null,null,{"$f":"ETL!$F141","v":""},null,null,null,null,null,null,null,null,null,{"$f":"ETL!$J141","v":"0"},null,null,null,null,null,null,"kg"]
[null,null,null,null,null,null,null,null,null,null,null,null,null,null,{"$f":"ETL!$F142","v":""},null,null,null,null,null,null,null,null,null,{"$f":"ETL!$J142","v":""},null,null,null,null,null,null,"kg"]
[null,null,null,null,null,null,null,null,null,null,null,null,null,null,{"$f":"ETL!$F143","v":""},null,null,null,null,null,null,null,null,null,{"$f":"ETL!$J143","v":""},null,null,null,null,null,null,"kg"]
[null,null,null,null,null,null,null,null,null,null,null,null,null,null,{"$f":"ETL!$F144","v":""},null,null,null,null,null,null,null,null,null,{"$f":"ETL!$J144","v":""},null,null,null,null,null,null,"kg"]
[null,null,null,null,null,null,null,null,null,null,null,null,null,null,{"$f":"ETL!$F145","v":""},null,null,null,null,null,null,null,null,null,{"$f":"ETL!$J145","v":""},null,null,null,null,null,null,"kg"]
[null,null,null,null,null,null,null,null,null,null,null,null,null,null,{"$f":"ETL!$F146","v":""},null,null,null,null,null,null,null,null,null,{"$f":"ETL!$J146","v":""},null,null,null,null,null,null,"kg"]
[null,null,null,null,null,null,null,null,null,null,null,null,null,null,{"$f":"ETL!$F147","v":""},null,null,null,null,null,null,null,null,null,{"$f":"ETL!$J147","v":""},null,null,null,null,null,null,"kg"]
[null,"備考",null,null,null,"用紙の大きさは、日本産業規格Ａ４とすること。"]
[]
["（別紙様式１）","様式第２０（第２１条関係）"]
[]
[null,{"$f":" CONCATENATE(ETL!$D$149, \"実績届出書\")","v":"実績届出書"}]
[]
[]
[null,null,null,null,null,null,null,null,null,null,null,null,null,null,null,null,null,null,null,null,null,null,null,{"$f":"ETL!$G$4","v":{"$error":"#NUM!"}}]
[]
[]
[null,"経済産業大臣殿"]
[null,null,null,null,null,null,null,null,null,null,"氏名又は名称及び法人にあっては、その代表者の氏名",null,null,null,null,null,null,null,null,null,{"$f":"ETL!$D$7","v":""}]
[]
[null,null,null,null,null,null,null,null,null,null,null,null,null,null,null,null,null,null,null,null,{"$f":"ETL!$G$8","v":""}]
[]
[null,null,null,null,null,null,null,null,null,null,"住　所",null,null,null,null,null,null,null,null,null,{"$f":"ETL!$D$11","v":""}]
[]
[null,{"$error":"#REF!"}]
[null,"　化学兵器の禁止及び特定物質の規制等に関する法律第２８条の規定により次のとおり届け出ます。"]
[]
[null,{"$f":" CONCATENATE(ETL!$D$149, \"をした指定物質\")","v":"をした指定物質"},null,null,null,null,null,null,null,null,null,null,null,null,{"$f":"ETL!$G$151","v":""}]
[null,null,null,null,null,null,null,null,null,null,null,null,null,null,{"$f":"CONCATENATE(\"(CAS No. \", ETL!$G$150, \")\")","v":"(CAS No. )"}]
[null,"第一種、第二種の区分",null,null,null,null,null,null,null,null,null,null,null,null,{"$f":"CONCATENATE(ETL!$D$154, \"(\", ETL!$D$155, \")\")","v":"()"}]
[null,{"$f":" CONCATENATE(ETL!$D$149, \"をした指定物質の数量\n（相手国ごとに記入すること。）\")","v":"をした指定物質の数量\n（相手国ごとに記入すること。）"},null,null,null,null,null,null,null,null,null,null,null,null,"相手国",null,null,null,null,null,null,null,null,null,"数量"]
[null,null,null,null,null,null,null,null,null,null,null,null,null,null,{"$f":"ETL!$F158","v":""},null,null,null,null,null,null,null,null,null,{"$f":"ETL!$J158","v":"0"},null,null,null,null,null,null,"kg"]
[null,null,null,null,null,null,null,null,null,null,null,null,null,null,{"$f":"ETL!$F159","v":""},null,null,null,null,null,null,null,null,null,{"$f":"ETL!$J159","v":""},null,null,null,null,null,null,"kg"]
[null,null,null,null,null,null,null,null,null,null,null,null,null,null,{"$f":"ETL!$F160","v":""},null,null,null,null,null,null,null,null,null,{"$f":"ETL!$J160","v":""},null,null,null,null,null,null,"kg"]
[null,null,null,null,null,null,null,null,null,null,null,null,null,null,{"$f":"ETL!$F161","v":""},null,null,null,null,null,null,null,null,null,{"$f":"ETL!$J161","v":""},null,null,null,null,null,null,"kg"]
[null,null,null,null,null,null,null,null,null,null,null,null,null,null,{"$f":"ETL!$F162","v":""},null,null,null,null,null,null,null,null,null,{"$f":"ETL!$J162","v":""},null,null,null,null,null,null,"kg"]
[null,null,null,null,null,null,null,null,null,null,null,null,null,null,{"$f":"ETL!$F163","v":""},null,null,null,null,null,null,null,null,null,{"$f":"ETL!$J163","v":""},null,null,null,null,null,null,"kg"]
[null,null,null,null,null,null,null,null,null,null,null,null,null,null,{"$f":"ETL!$F164","v":""},null,null,null,null,null,null,null,null,null,{"$f":"ETL!$J164","v":""},null,null,null,null,null,null,"kg"]
[null,"備考",null,null,null,"用紙の大きさは、日本産業規格Ａ４とすること。"]
[]
["（別紙様式１）","様式第２０（第２１条関係）"]
[]
[null,{"$f":" CONCATENATE(ETL!$D$166, \"実績届出書\")","v":"実績届出書"}]
[]
[]
[null,null,null,null,null,null,null,null,null,null,null,null,null,null,null,null,null,null,null,null,null,null,null,{"$f":"ETL!$G$4","v":{"$error":"#NUM!"}}]
[]
[]
[null,"経済産業大臣殿"]
[null,null,null,null,null,null,null,null,null,null,"氏名又は名称及び法人にあっては、その代表者の氏名",null,null,null,null,null,null,null,null,null,{"$f":"ETL!$D$7","v":""}]
[]
[null,null,null,null,null,null,null,null,null,null,null,null,null,null,null,null,null,null,null,null,{"$f":"ETL!$G$8","v":""}]
[]
[null,null,null,null,null,null,null,null,null,null,"住　所",null,null,null,null,null,null,null,null,null,{"$f":"ETL!$D$11","v":""}]
[]
[null,{"$error":"#REF!"}]
[null,"　化学兵器の禁止及び特定物質の規制等に関する法律第２８条の規定により次のとおり届け出ます。"]
[]
[null,{"$f":" CONCATENATE(ETL!$D$166, \"をした指定物質\")","v":"をした指定物質"},null,null,null,null,null,null,null,null,null,null,null,null,{"$f":"ETL!$G$168","v":""}]
[null,null,null,null,null,null,null,null,null,null,null,null,null,null,{"$f":"CONCATENATE(\"(CAS No. \", ETL!$G$167, \")\")","v":"(CAS No. )"}]
[null,"第一種、第二種の区分",null,null,null,null,null,null,null,null,null,null,null,null,{"$f":"CONCATENATE(ETL!$D$171, \"(\", ETL!$D$172, \")\")","v":"()"}]
[null,{"$f":" CONCATENATE(ETL!$D$166, \"をした指定物質の数量\n（相手国ごとに記入すること。）\")","v":"をした指定物質の数量\n（相手国ごとに記入すること。）"},null,null,null,null,null,null,null,null,null,null,null,null,"相手国",null,null,null,null,null,null,null,null,null,"数量"]
[null,null,null,null,null,null,null,null,null,null,null,null,null,null,{"$f":"ETL!$F175","v":""},null,null,null,null,null,null,null,null,null,{"$f":"ETL!$J175","v":"0"},null,null,null,null,null,null,"kg"]
[null,null,null,null,null,null,null,null,null,null,null,null,null,null,{"$f":"ETL!$F176","v":""},null,null,null,null,null,null,null,null,null,{"$f":"ETL!$J176","v":""},null,null,null,null,null,null,"kg"]
[null,null,null,null,null,null,null,null,null,null,null,null,null,null,{"$f":"ETL!$F177","v":""},null,null,null,null,null,null,null,null,null,{"$f":"ETL!$J177","v":""},null,null,null,null,null,null,"kg"]
[null,null,null,null,null,null,null,null,null,null,null,null,null,null,{"$f":"ETL!$F178","v":""},null,null,null,null,null,null,null,null,null,{"$f":"ETL!$J178","v":""},null,null,null,null,null,null,"kg"]
[null,null,null,null,null,null,null,null,null,null,null,null,null,null,{"$f":"ETL!$F179","v":""},null,null,null,null,null,null,null,null,null,{"$f":"ETL!$J179","v":""},null,null,null,null,null,null,"kg"]
[null,null,null,null,null,null,null,null,null,null,null,null,null,null,{"$f":"ETL!$F180","v":""},null,null,null,null,null,null,null,null,null,{"$f":"ETL!$J180","v":""},null,null,null,null,null,null,"kg"]
[null,null,null,null,null,null,null,null,null,null,null,null,null,null,{"$f":"ETL!$F181","v":""},null,null,null,null,null,null,null,null,null,{"$f":"ETL!$J181","v":""},null,null,null,null,null,null,"kg"]
[null,"備考",null,null,null,"用紙の大きさは、日本産業規格Ａ４とすること。"]
[]
["（別紙様式１）","様式第２０（第２１条関係）"]
[]
[null,{"$f":" CONCATENATE(ETL!$D$183, \"実績届出書\")","v":"実績届出書"}]
[]
[]
[null,null,null,null,null,null,null,null,null,null,null,null,null,null,null,null,null,null,null,null,null,null,null,{"$f":"ETL!$G$4","v":{"$error":"#NUM!"}}]
[]
[]
[null,"経済産業大臣殿"]
[null,null,null,null,null,null,null,null,null,null,"氏名又は名称及び法人にあっては、その代表者の氏名",null,null,null,null,null,null,null,null,null,{"$f":"ETL!$D$7","v":""}]
[]
[null,null,null,null,null,null,null,null,null,null,null,null,null,null,null,null,null,null,null,null,{"$f":"ETL!$G$8","v":""}]
[]
[null,null,null,null,null,null,null,null,null,null,"住　所",null,null,null,null,null,null,null,null,null,{"$f":"ETL!$D$11","v":""}]
[]
[null,{"$error":"#REF!"}]
[null,"　化学兵器の禁止及び特定物質の規制等に関する法律第２８条の規定により次のとおり届け出ます。"]
[]
[null,{"$f":" CONCATENATE(ETL!$D$183, \"をした指定物質\")","v":"をした指定物質"},null,null,null,null,null,null,null,null,null,null,null,null,{"$f":"ETL!$G$185","v":""}]
[null,null,null,null,null,null,null,null,null,null,null,null,null,null,{"$f":"CONCATENATE(\"(CAS No. \", ETL!$G$184, \")\")","v":"(CAS No. )"}]
[null,"第一種、第二種の区分",null,null,null,null,null,null,null,null,null,null,null,null,{"$f":"CONCATENATE(ETL!$D$188, \"(\", ETL!$D$189, \")\")","v":"()"}]
[null,{"$f":" CONCATENATE(ETL!$D$183, \"をした指定物質の数量\n（相手国ごとに記入すること。）\")","v":"をした指定物質の数量\n（相手国ごとに記入すること。）"},null,null,null,null,null,null,null,null,null,null,null,null,"相手国",null,null,null,null,null,null,null,null,null,"数量"]
[null,null,null,null,null,null,null,null,null,null,null,null,null,null,{"$f":"ETL!$F192","v":""},null,null,null,null,null,null,null,null,null,{"$f":"ETL!$J192","v":"0"},null,null,null,null,null,null,"kg"]
[null,null,null,null,null,null,null,null,null,null,null,null,null,null,{"$f":"ETL!$F193","v":""},null,null,null,null,null,null,null,null,null,{"$f":"ETL!$J193","v":""},null,null,null,null,null,null,"kg"]
[null,null,null,null,null,null,null,null,null,null,null,null,null,null,{"$f":"ETL!$F194","v":""},null,null,null,null,null,null,null,null,null,{"$f":"ETL!$J194","v":""},null,null,null,null,null,null,"kg"]
[null,null,null,null,null,null,null,null,null,null,null,null,null,null,{"$f":"ETL!$F195","v":""},null,null,null,null,null,null,null,null,null,{"$f":"ETL!$J195","v":""},null,null,null,null,null,null,"kg"]
[null,null,null,null,null,null,null,null,null,null,null,null,null,null,{"$f":"ETL!$F196","v":""},null,null,null,null,null,null,null,null,null,{"$f":"ETL!$J196","v":""},null,null,null,null,null,null,"kg"]
[null,null,null,null,null,null,null,null,null,null,null,null,null,null,{"$f":"ETL!$F197","v":""},null,null,null,null,null,null,null,null,null,{"$f":"ETL!$J197","v":""},null,null,null,null,null,null,"kg"]
[null,null,null,null,null,null,null,null,null,null,null,null,null,null,{"$f":"ETL!$F198","v":""},null,null,null,null,null,null,null,null,null,{"$f":"ETL!$J198","v":""},null,null,null,null,null,null,"kg"]
[null,"備考",null,null,null,"用紙の大きさは、日本産業規格Ａ４とすること。"]